Workbook

Sheet New_policy_development
A1: EN
C3: Title of the new policy (programme) | R3: Total program output
C4: Tolerance | D4: 0.1 | R4: Expected energy savings | S4: =SUM(DataInput!G:G) -> 12346.82178
C5: Expected allocation of the policy (programme) | D5: 500000 | R5: Expected drop of CO2 emissions | S5: =SUM(DataInput!H:H) -> 1052612.205
C6: Loan interest | D6: 0.01 | R6: Expected drop of CH4 emissions | S6: =SUM(DataInput!I:I) -> 56550.24219
C7: Discount rate | D7: 0.05 | R7: Expected drop of N2O emissions | S7: =SUM(DataInput!J:J) -> 13827.5545
C8: Measure lifetime | D8: =VLOOKUP($C$9,DataInput!$A:$U,19,FALSE) -> 0 | R8: Expected drop of CO2eq emissions | S8: =SUM(DataInput!K:K) -> 1058146.572
C9: Mesure d'economie 7 | D9: =VLOOKUP($C$9,DataInput!$A:$AA,20,FALSE) -> Installation de systeme solaire thermique (generation de chaleur)
C10: Total saving potential of the measure | D10: =SUMIF(Saving_measures[Measure],D9,Saving_measures[Energy saving potential '[TJ']]) -> 0 | R10: Expected Cash Flow | S10: =D5 -> 500000
C11: Savings realised without any subsidies | D11: =SUMIFS(Saving_measures[Energy saving potential '[TJ']],Saving_measures[Measure],D9,Saving_measures[Subsidy share '[%']],0) -> 0 | R11: Allocation | S11: =SUM(DataInput!E:E) -> 1771179.341
C12: Share on the policy (programme allocation) | D12: =VLOOKUP($C$9,DataInput!$A:$L,3,FALSE) -> 0.01 | E12: =1-D12 -> 0.99 | R12: Expected allocation utilisation | S12: =SUM(DataInput!F:F) -> 2739343.957
D13: =D12*D5 -> 5000
C14: Share of subsidy on the total investment costs | D14: =VLOOKUP(C9,DataInput!A:U,16,FALSE) -> 0.89 | R14: Price of the saved energy | S14: =IFERROR(S12/S4,0) -> 221.8663236
C15: Share of loan on the total investment costs | D15: =VLOOKUP($C$9,DataInput!$A:$U,17,FALSE) -> 0 | R15: Price of saved CO2 emissions | S15: =IFERROR(S12/S5,0) -> 2.602424657
C16: Share of own ressources on the total investment costs | D16: =VLOOKUP($C$9,DataInput!$A:$U,18,FALSE) -> 0.11 | R16: Price of saved CH4 emissions | S16: =IFERROR(S12/S6,0) -> 48.44088814
C17: Net Present Value | D17: 842163.9579 | R17: Price of saved N2O emissions | S17: =IFERROR(S12/S7,0) -> 198.1076232
C18: Expected allocation utilisation | D18: =VLOOKUP($C$9,DataInput!$A:$L,5,FALSE) -> 0 | E18: =IF(D18<D13*(1-Tolerance),"Allocation will be likely not exhausted",IF(D18>D13*(1+Tolerance),"Allocation will be likely overdrawn","Allocation will be likely exhausted")) -> Allocation will be likely not exhausted | R18: Price of saved CO2eq emissions | S18: =IFERROR(S12/S8,0) -> 2.588813334
C19: Investment costs at the expected utilisation of the allocation | D19: =VLOOKUP($C$9,DataInput!$A:$L,6,FALSE) -> 0
C20: Expected energy savings | D20: =VLOOKUP($C$9,DataInput!$A:$L,7,FALSE) -> 0
C21: Expected drop of CO2 emissions | D21: =VLOOKUP($C$9,DataInput!$A:$L,8,FALSE) -> 0
C22: Expected drop of CH4 emissions | D22: =VLOOKUP($C$9,DataInput!$A:$L,9,FALSE) -> 0
C23: Expected drop of N2O emissions | D23: =VLOOKUP($C$9,DataInput!$A:$L,10,FALSE) -> 0
C24: Expected drop of CO2eq emissions | D24: =VLOOKUP($C$9,DataInput!$A:$L,11,FALSE) -> 0
C25: Expected Cash Flow | D25: =VLOOKUP($C$9,DataInput!$A:$L,12,FALSE) -> 0 | E25: =SUM(DataInput!L:L) -> 193632.9231

Sheet Languages
A1: EN | B1: BG | C1: CS | D1: DE | E1: EL | F1: ES | G1: ET | H1: FI | I1: FR | J1: GA | K1: HR | L1: HU | M1: IT | N1: LT | O1: LV | P1: MK | Q1: NL | R1: PL | S1: PT | T1: SL | U1: SK
A2: 1 | B2: 2 | C2: 3 | D2: 4 | E2: 5 | F2: 6 | G2: 7 | H2: 8 | I2: 9 | J2: 10 | K2: 11 | L2: 12 | M2: 13 | N2: 14 | O2: 15 | P2: 16 | Q2: 17 | R2: 18 | S2: 19 | T2: 20 | U2: 21
A4: Title of the new policy (programme) | I4: Titre du nouveau programme
A5: Tolerance | I5: Tolerance
A6: Expected allocation of the policy (programme) | I6: Allocation du programme attendu
A7: Loan interest | I7: Interet des pret
A8: Discount rate | I8: Taux d'actualisation
A9: Measure lifetime | I9: Duree de vie de la Mesure
A10: Total saving potential of the measure | I10: Potential d'economie d'energie total de la mesure
A11: Savings realised without any subsidies | I11: Economie realise sans subvention
A12: Share on the policy (programme allocation) | I12: Part dans le programme (allocation)
A13: Share of subsidy on the total investment costs | I13: Part des subventions dans les couts d'investissement totaux
A14: Share of loan on the total investment costs | I14: Part des prets dans les couts d'investissement totaux
A15: Share of own ressources on the total investment costs | I15: Part des capitaux propres dans les couts d'investissement totaux
A16: Net Present Value | I16: Valeur nette actualisee
A17: Expected allocation utilisation | I17: Utilisation de l'allocation attendu
A18: Investment costs at the expected utilisation of the allocation | I18: Cout d'investissement selon l'utilisation de l'allocation attendu
A19: Expected energy savings | I19: Economie d'energie attendu
A20: Expected drop of CO2 emissions | I20: Reductions d'emission de CO2 attendu
A21: Expected drop of CH4 emissions | I21: Reductions d'emission de CH4 attendu
A22: Expected drop of N2O emissions | I22: Reductions d'emission de N2O attendu
A23: Expected drop of CO2eq emissions | I23: Reductions d'emission de CO2eq attendu
A24: Expected Cash Flow | I24: Flux financier attendu
A26: Total program output | I26: Resultat total du programme
A27: Allocation | I27: Allocation
A28: Total investment costs | I28: Cout d'investissement totaux
A29: Price of the saved energy | I29: Prix des economies d'energies
A30: Price of saved CO2 emissions | I30: Prix des reductions d'emission de CO2
A31: Price of saved CH4 emissions | I31: Prix des reductions d'emission de CH4
A32: Price of saved N2O emissions | I32: Prix des reductions d'emission de N2O
A33: Price of saved CO2eq emissions | I33: Prix des reductions d'emission de CO2eq
A34: Allocation share | I34: Part d'allocation
A35: Expected drop of emissions | I35: Reduction d'emission attendu
A36: Measure | I36: Mesure
A37: Saving Measure | I37: Mesure d'economie
A39: Energy Management | I39: Management de l'energie
A40: Installation of photovoltaic systems (for electricity generation) | I40: Installation de systeme photovoltaique (generation d'electricite)
A41: Installation of solar thermal systems (for heat generation | I41: Installation de systeme solaire thermique (generation de chaleur)
A42: Installation of cogeneration units | I42: Installation d'unite cogeneratrice
A43: Installation/replacement of compressors | I43: Installation/remplacement de compresseurs
A44: Replacement of coal boilers with gas boilers | I44: Remplacement de chaudiere charbon par chaudiere gaz
A45: Waste heat utilisation | I45: Recuperation des pertes de chaleur
A46: Control of circulation pumps | I46: Controle des pompes de circulations
A47: Installation of frequency inverters | I47: Installation de variateur de frequence
A48: Installation flue gas pre-heaters to boilers | I48: Installation de préchauffeur d'air de gaz de combustion sur chaudiere
A49: Change of technological processes | I49: Amelioration des processus technologiques
A50: Installation of heat pumps | I50: Installation de pompes a chaleur
A51: Thermal insulation of technologies | I51: Isolation thermique des installations
A52: Decrease of losses in heat distribution | I52: Reduction des pertes dans la distribution de chaleur
A53: Transformers replacement | I53: Remplacement des transformateurs
A54: Buildings Insulation | I54: Isolation thermique des batiments
A55: Replacement of coal boiler with new coal boiler | I55: Remplacement des chaudieres a charbon par des chaudieres a charbon recentes
A56: Replacement of existing lighting with LED80 | I56: Remplacement des eclairages existant par des LED80
A57: Replacement of lighting LED80 with LED110 | I57: Remplacement des eclairages LED80 par des LED110
A58: Replacement of coal boiler with biomass boiler | I58: Remplacement des chaudieres a charbon par des chaudieres a biomass
A60: Total Investment share | I60: Part totale d'investissement
A61: Share of Allocation on Total Investment | I61: Part des allocations dans l'investissement total
A62: Total Combination | I62: Total pour la Combinaison
A63: Rest of Investment | I63: Reste Investissement
A64: Other Investment | I64: Autre Investissement
A66: START NEW | I66: NOUVEAU
A67: ADD MEASURE | I67: AJOUTER
A68: RELOAD GRAPH | I68: ACTUALISER
A69: RELOAD PANEL | I69: ACTUALISER
A71: You have no measure in the Policy selection model yet | I71: Vous n'avez pas encore de mesure dans le programme
A72: deleted | I72: supprime
A73: removed from the policy tool | I73: retire du programme
A74: added to the policy tool | I74: ajoute au programme
A75: The shares must be = | I75: Les parts doivent etre egales a =
A76: The total allocation cannot exceed 100%, the allocation share left is equal to | I76: L'allocation totale ne peut pas depasser 100%, la part d'allocation restante est egale a
A77: The share on the policy must be =< 100 | I77: La part d'allocation dans le programme doit etre =< 100
A79: Shares on the total investment costs | I79: Parts dans les couts investissement totaux
A80: Subsidy | I80: Subvention
A81: Loan | I81: Pret
A82: Own ressources | I82: Capitaux propres
A83: Validate | I83: Valider
A84: Finish | I84: Fin
A85: Delete last | I85: Supprimer
A86: Policy Program | I86: Programme
A88: Drop of CO2 | I88: Reduction de CO2
A89: Drop of CH4 | I89: Reduction de CH4
A90: Drop of N2O | I90: Reduction de N2O

Sheet Control_Panel
A1: EN

Sheet Emission_factors_energy (hidden)
A1: Saved energy carrier | B1: Sector | C1: Key | D1: CO2 [kg/GJ] | E1: CH4 [g/GJ] | F1: N2O [g/GJ]
A2: All energy carriers | B2: Industry | C2: =A2 & "#" & B2 -> All energy carriers#Industry | D2: 109.5506436 | E2: 4.275652568 | F2: 1.47228301
A3: All energy carriers | B3: Industry - food and tobacco | C3: All energy carriers#Industry - food and tobacco | D3: 104.9751248 | E3: 2.076926386 | F3: 1.109779396
A4: All energy carriers | B4: Industry - fuel mining and processing | C4: All energy carriers#Industry - fuel mining and processing | D4: 123.0397312 | E4: 1.572242348 | F4: 1.297693344
A5: All energy carriers | B5: Industry - chemical and petrochemical | C5: All energy carriers#Industry - chemical and petrochemical | D5: 118.0757701 | E5: 2.718862463 | F5: 1.412153901
A6: All energy carriers | B6: Industry - iron and steel | C6: All energy carriers#Industry - iron and steel | D6: 95.68956125 | E6: 4.396851711 | F6: 1.052123184
A7: All energy carriers | B7: Industry - mineral materials | C7: All energy carriers#Industry - mineral materials | D7: 92.73585542 | E7: 7.36782312 | F7: 1.675733291
A8: All energy carriers | B8: Industry - nonferrous metalls | C8: All energy carriers#Industry - nonferrous metalls | D8: 141.0250243 | E8: 2.064299143 | F8: 1.646094567
A9: All energy carriers | B9: Industry - other | C9: All energy carriers#Industry - other | D9: 131.7789737 | E9: 2.536065485 | F9: 1.606742834
A10: All energy carriers | B10: Industry - paper, pulp, polygraphic industry | C10: All energy carriers#Industry - paper, pulp, polygraphic industry | D10: 118.2048366 | E10: 2.679339229 | F10: 1.405179325
A11: Coal | B11: Industry | C11: Coal#Industry | D11: 91.06706287 | E11: 8.654559321 | F11: 1.290709228
A12: Electricity | B12: Energy | C12: Electricity#Energy | D12: 243.305357 | E12: 2.599417806 | F12: 3.411996308
A13: Electricity | B13: Industry | C13: Electricity#Industry | D13: 243.305357 | E13: 2.599417806 | F13: 3.411996308
A14: Electricity | B14: Industry - food and tobacco | C14: Electricity#Industry - food and tobacco | D14: 243.305357 | E14: 2.599417806 | F14: 3.411996308
A15: Electricity | B15: Industry - fuel mining and processing | C15: Electricity#Industry - fuel mining and processing | D15: 243.305357 | E15: 2.599417806 | F15: 3.411996308
A16: Electricity | B16: Industry - chemical and petrochemical | C16: Electricity#Industry - chemical and petrochemical | D16: 243.305357 | E16: 2.599417806 | F16: 3.411996308
A17: Electricity | B17: Industry - iron and steel | C17: Electricity#Industry - iron and steel | D17: 243.305357 | E17: 2.599417806 | F17: 3.411996308
A18: Electricity | B18: Industry - mineral materials | C18: Electricity#Industry - mineral materials | D18: 243.305357 | E18: 2.599417806 | F18: 3.411996308
A19: Electricity | B19: Industry - nonferrous metalls | C19: Electricity#Industry - nonferrous metalls | D19: 243.305357 | E19: 2.599417806 | F19: 3.411996308
A20: Electricity | B20: Industry - other | C20: Electricity#Industry - other | D20: 243.305357 | E20: 2.599417806 | F20: 3.411996308
A21: Electricity | B21: Industry - paper, pulp, polygraphic industry | C21: Electricity#Industry - paper, pulp, polygraphic industry | D21: 243.305357 | E21: 2.599417806 | F21: 3.411996308
A22: Fuels and heat | B22: Industry | C22: Fuels and heat#Industry | D22: 66.29939364 | E22: 4.817683925 | F22: 0.8450525932
A23: Fuels and heat | B23: Industry - food and tobacco | C23: Fuels and heat#Industry - food and tobacco | D23: 68.87907579 | E23: 1.940586877 | F23: 0.5090362812
A24: Fuels and heat | B24: Industry - fuel mining and processing | C24: Fuels and heat#Industry - fuel mining and processing | D24: 56.01863939 | E24: 0.9998225879 | F24: 0.1194440143
A25: Fuels and heat | B25: Industry - chemical and petrochemical | C25: Fuels and heat#Industry - chemical and petrochemical | D25: 81.58831163 | E25: 2.753664398 | F25: 0.8294707781
A26: Fuels and heat | B26: Industry - iron and steel | C26: Fuels and heat#Industry - iron and steel | D26: 76.60041921 | E26: 4.629289378 | F26: 0.7469529068
A27: Fuels and heat | B27: Industry - mineral materials | C27: Fuels and heat#Industry - mineral materials | D27: 50.53682566 | E27: 8.704229734 | F27: 1.18912336
A28: Fuels and heat | B28: Industry - nonferrous metalls | C28: Fuels and heat#Industry - nonferrous metalls | D28: 59.33281013 | E28: 1.636895093 | F28: 0.2356530941
A29: Fuels and heat | B29: Industry - other | C29: Fuels and heat#Industry - other | D29: 75.35777402 | E29: 2.504015544 | F29: 0.6934650628
A30: Fuels and heat | B30: Industry - paper, pulp, polygraphic industry | C30: Fuels and heat#Industry - paper, pulp, polygraphic industry | D30: 81.75498344 | E30: 2.702625496 | F30: 0.8204640579
A31: Fuels only | B31: Industry | C31: Fuels only#Industry | D31: 59.64593479 | E31: 5.73491728 | F31: 0.7980530955
A32: Fuels only | B32: Industry - food and tobacco | C32: Fuels only#Industry - food and tobacco | D32: 59.15882376 | E32: 2.257882514 | F32: 0.2966920336
A33: Fuels only | B33: Industry - fuel mining and processing | C33: Fuels only#Industry - fuel mining and processing | D33: 55.21989926 | E33: 0.9963849977 | F33: 0.09963849975
A34: Fuels only | B34: Industry - chemical and petrochemical | C34: =A34 & "#" & B34 -> Fuels only#Industry - chemical and petrochemical | D34: 70.46735852 | E34: 4.329937696 | F34: 0.6288098595
A35: Fuels only | B35: Industry - iron and steel | C35: Fuels only#Industry - iron and steel | D35: 74.97862678 | E35: 4.975841501 | F35: 0.7184370351
A36: Fuels only | B36: Industry - mineral materials | C36: Fuels only#Industry - mineral materials | D36: 49.6137625 | E36: 8.868867986 | F36: 1.192539271
A37: Fuels only | B37: Industry - nonferrous metalls | C37: Fuels only#Industry - nonferrous metalls | D37: 57.89720706 | E37: 1.657397523 | F37: 0.2015138428
A38: Fuels only | B38: Industry - other | C38: Fuels only#Industry - other | D38: 67.6498304 | E38: 3.097207619 | F38: 0.5439904217
A39: Fuels only | B39: Industry - paper, pulp, polygraphic industry | C39: Fuels only#Industry - paper, pulp, polygraphic industry | D39: 70.79870864 | E39: 4.228470345 | F39: 0.6109041441
A40: Gaseous biofuels | B40: Industry | C40: Gaseous biofuels#Industry | D40: 0 | E40: 18.23334405 | F40: 2.417587649
A41: Gaseous biofuels | B41: Industry - food and tobacco | C41: Gaseous biofuels#Industry - food and tobacco | D41: 0 | E41: 2.884142905 | F41: 0.3533847356
A42: Gaseous biofuels | B42: Industry - fuel mining and processing | C42: Gaseous biofuels#Industry - fuel mining and processing | D42: 0 | E42: 0 | F42: 0
A43: Gaseous biofuels | B43: Industry - chemical and petrochemical | C43: Gaseous biofuels#Industry - chemical and petrochemical | D43: 0 | E43: 30 | F43: 4
A44: Gaseous biofuels | B44: Industry - iron and steel | C44: Gaseous biofuels#Industry - iron and steel | D44: 0 | E44: 30 | F44: 3.999999999
A45: Gaseous biofuels | B45: Industry - mineral materials | C45: Gaseous biofuels#Industry - mineral materials | D45: 0 | E45: 30 | F45: 4
A46: Gaseous biofuels | B46: Industry - nonferrous metalls | C46: Gaseous biofuels#Industry - nonferrous metalls | D46: 0 | E46: 30 | F46: 4
A47: Gaseous biofuels | B47: Industry - other | C47: Gaseous biofuels#Industry - other | D47: 0 | E47: 28.7740735 | F47: 3.835134023
A48: Gaseous biofuels | B48: Industry - paper, pulp, polygraphic industry | C48: Gaseous biofuels#Industry - paper, pulp, polygraphic industry | D48: 0 | E48: 19.70837994 | F48: 2.615954544
A49: Heat | B49: Industry | C49: Heat#Industry | D49: 94.92633451 | E49: 1.14827426 | F49: 1.120186927
A50: Heat | B50: Industry - food and tobacco | C50: Heat#Industry - food and tobacco | D50: 94.92633451 | E50: 1.14827426 | F50: 1.120186927
A51: Heat | B51: Industry - fuel mining and processing | C51: Heat#Industry - fuel mining and processing | D51: 94.92633451 | E51: 1.14827426 | F51: 1.120186927
A52: Heat | B52: Industry - chemical and petrochemical | C52: Heat#Industry - chemical and petrochemical | D52: 94.92633451 | E52: 1.14827426 | F52: 1.120186927
A53: Heat | B53: Industry - iron and steel | C53: Heat#Industry - iron and steel | D53: 94.92633451 | E53: 1.14827426 | F53: 1.120186927
A54: Heat | B54: Industry - mineral materials | C54: Heat#Industry - mineral materials | D54: 94.92633451 | E54: 1.14827426 | F54: 1.120186927
A55: Heat | B55: Industry - nonferrous metalls | C55: Heat#Industry - nonferrous metalls | D55: 94.92633451 | E55: 1.14827426 | F55: 1.120186927
A56: Heat | B56: Industry - other | C56: Heat#Industry - other | D56: 94.92633451 | E56: 1.14827426 | F56: 1.120186927
A57: Heat | B57: Industry - paper, pulp, polygraphic industry | C57: Heat#Industry - paper, pulp, polygraphic industry | D57: 94.92633451 | E57: 1.14827426 | F57: 1.120186927
A58: Liquid biofuels | B58: Industry | C58: Liquid biofuels#Industry | D58: 0 | E58: 18.23334405 | F58: 2.417587649
A59: Liquid biofuels | B59: Industry - food and tobacco | C59: Liquid biofuels#Industry - food and tobacco | D59: 0 | E59: 2.884142905 | F59: 0.3533847356
A60: Liquid biofuels | B60: Industry - fuel mining and processing | C60: Liquid biofuels#Industry - fuel mining and processing | D60: 0 | E60: 0 | F60: 0
A61: Liquid biofuels | B61: Industry - chemical and petrochemical | C61: Liquid biofuels#Industry - chemical and petrochemical | D61: 0 | E61: 30 | F61: 4
A62: Liquid biofuels | B62: Industry - iron and steel | C62: Liquid biofuels#Industry - iron and steel | D62: 0 | E62: 30 | F62: 3.999999999
A63: Liquid biofuels | B63: Industry - mineral materials | C63: Liquid biofuels#Industry - mineral materials | D63: 0 | E63: 30 | F63: 4
A64: Liquid biofuels | B64: Industry - nonferrous metalls | C64: Liquid biofuels#Industry - nonferrous metalls | D64: 0 | E64: 30 | F64: 4
A65: Liquid biofuels | B65: Industry - other | C65: Liquid biofuels#Industry - other | D65: 0 | E65: 28.7740735 | F65: 3.835134023
A66: Liquid biofuels | B66: Industry - paper, pulp, polygraphic industry | C66: =A66 & "#" & B66 -> Liquid biofuels#Industry - paper, pulp, polygraphic industry | D66: 0 | E66: 19.70837994 | F66: 2.615954544
A67: Natural gas | B67: Industry | C67: Natural gas#Industry | D67: 55.42024357 | E67: 1 | F67: 0.1
A68: Natural gas | B68: Industry - food and tobacco | C68: Natural gas#Industry - food and tobacco | D68: 55.42024357 | E68: 1 | F68: 0.1
A69: Natural gas | B69: Industry - fuel mining and processing | C69: Natural gas#Industry - fuel mining and processing | D69: 55.42024357 | E69: 1 | F69: 0.09999999997
A70: Natural gas | B70: Industry - chemical and petrochemical | C70: Natural gas#Industry - chemical and petrochemical | D70: 55.42024357 | E70: 1 | F70: 0.1
A71: Natural gas | B71: Industry - iron and steel | C71: Natural gas#Industry - iron and steel | D71: 55.42024357 | E71: 1 | F71: 0.1
A72: Natural gas | B72: Industry - mineral materials | C72: Natural gas#Industry - mineral materials | D72: 55.42024357 | E72: 1 | F72: 0.1
A73: Natural gas | B73: Industry - nonferrous metalls | C73: Natural gas#Industry - nonferrous metalls | D73: 55.42024357 | E73: 1 | F73: 0.1
A74: Natural gas | B74: Industry - other | C74: Natural gas#Industry - other | D74: 55.42024357 | E74: 1 | F74: 0.1
A75: Natural gas | B75: Industry - paper, pulp, polygraphic industry | C75: Natural gas#Industry - paper, pulp, polygraphic industry | D75: 55.42024357 | E75: 1 | F75: 0.1
A76: RES except biomass | B76: Industry | C76: RES except biomass#Industry | D76: 0 | E76: 0 | F76: 0
A77: RES except biomass | B77: Industry - food and tobacco | C77: RES except biomass#Industry - food and tobacco | D77: 0 | E77: 0 | F77: 0
A78: RES except biomass | B78: Industry - fuel mining and processing | C78: RES except biomass#Industry - fuel mining and processing | D78: 0 | E78: 0 | F78: 0
A79: RES except biomass | B79: Industry - chemical and petrochemical | C79: RES except biomass#Industry - chemical and petrochemical | D79: 0 | E79: 0 | F79: 0
A80: RES except biomass | B80: Industry - iron and steel | C80: RES except biomass#Industry - iron and steel | D80: 0 | E80: 0 | F80: 0
A81: RES except biomass | B81: Industry - mineral materials | C81: RES except biomass#Industry - mineral materials | D81: 0 | E81: 0 | F81: 0
A82: RES except biomass | B82: Industry - nonferrous metalls | C82: RES except biomass#Industry - nonferrous metalls | D82: 0 | E82: 0 | F82: 0
A83: RES except biomass | B83: Industry - other | C83: RES except biomass#Industry - other | D83: 0 | E83: 0 | F83: 0
A84: RES except biomass | B84: Industry - paper, pulp, polygraphic industry | C84: RES except biomass#Industry - paper, pulp, polygraphic industry | D84: 0 | E84: 0 | F84: 0
A85: Solid biofuels | B85: Industry | C85: Solid biofuels#Industry | D85: 0 | E85: 18.23334405 | F85: 2.417587649
A86: Solid biofuels | B86: Industry - food and tobacco | C86: Solid biofuels#Industry - food and tobacco | D86: 0 | E86: 2.884142905 | F86: 0.3533847356
A87: Solid biofuels | B87: Industry - fuel mining and processing | C87: Solid biofuels#Industry - fuel mining and processing | D87: 0 | E87: 0 | F87: 0
A88: Solid biofuels | B88: Industry - chemical and petrochemical | C88: Solid biofuels#Industry - chemical and petrochemical | D88: 0 | E88: 30 | F88: 4
A89: Solid biofuels | B89: Industry - iron and steel | C89: Solid biofuels#Industry - iron and steel | D89: 0 | E89: 30 | F89: 3.999999999
A90: Solid biofuels | B90: Industry - mineral materials | C90: Solid biofuels#Industry - mineral materials | D90: 0 | E90: 30 | F90: 4
A91: Solid biofuels | B91: Industry - nonferrous metalls | C91: Solid biofuels#Industry - nonferrous metalls | D91: 0 | E91: 30 | F91: 4
A92: Solid biofuels | B92: Industry - other | C92: Solid biofuels#Industry - other | D92: 0 | E92: 28.7740735 | F92: 3.835134023
A93: Solid biofuels | B93: Industry - paper, pulp, polygraphic industry | C93: Solid biofuels#Industry - paper, pulp, polygraphic industry | D93: 0 | E93: 19.70837994 | F93: 2.615954544

Sheet Saving_measures (hidden)
A1: Measure | B1: Cost type | C1: Measure detail | D1: Unit investments [€/GJ] | E1: Subsidy share [%] | F1: Annual Cost Saved [€/GJ.y] | G1: Investment costs [€] | H1: Subsidy [€] | I1: Payback period w/o subsidy [y] | J1: Energy saving potential [TJ] | K1: Lifetime [y] | L1: Energy carrier saved | M1: The most similar sector | N1: Drop of CO2 emissions [t] | O1: Drop of CH4 emissions[kg] | P1: Drop of N2O emissions [kg] | Q1: Drop of CO2eq emissions [t] | R1: EF of CO2 [kg/GJ] | S1: EF of CH4 [g/GJ] | T1: EF of N2O [g/GJ] | U1: EF of CO2 eq [kg/GJ] | V1: Unit investments [Kč/t CO2 eq]
A2: Buildings insulation | B2: MAX | C2: =Saving_measures[[#This Row],[Measure]] & "#" & Saving_measures[[#This Row],[Cost type]] -> Buildings insulation#MAX | D2: 390.8293501 | E2: =VLOOKUP(Saving_measures[[#This Row],[Measure detail]],Potential_of_measures!$C$1:$E$192,3,0) -> 0.875 | F2: =Saving_measures[[#This Row],[Unit investments '[€/GJ']]]/Saving_measures[[#This Row],[Payback period w/o subsidy '[y']]] -> 9.770733754 | G2: =Saving_measures[[#This Row],[Energy saving potential '[TJ']]]*Saving_measures[[#This Row],[Unit investments '[€/GJ']]]*1000 -> 846887897.1 | H2: =Saving_measures[[#This Row],[Subsidy share '[%']]]*Saving_measures[[#This Row],[Investment costs '[€']]] -> 741026909.9 | I2: 40 | J2: =VLOOKUP(Saving_measures[[#This Row],[Measure detail]],Potential_of_measures!$C$1:$E$192,2,0) -> 2166.899433 | K2: 25 | L2: Fuels and heat | M2: Industry | N2: =Saving_measures[[#This Row],[Energy saving potential '[TJ']]]*Saving_measures[[#This Row],[EF of CO2 '[kg/GJ']]] -> 143664.1185 | O2: =Saving_measures[[#This Row],[Energy saving potential '[TJ']]]*Saving_measures[[#This Row],[EF of CH4 '[g/GJ']]] -> 10439.43656 | P2: =Saving_measures[[#This Row],[Energy saving potential '[TJ']]]*Saving_measures[[#This Row],[EF of N2O '[g/GJ']]] -> 1831.143985 | Q2: =Saving_measures[[#This Row],[Energy saving potential '[TJ']]]*Saving_measures[[#This Row],[EF of CO2 eq '[kg/GJ']]] -> 144470.7853 | R2: =VLOOKUP(Saving_measures[[#This Row],[Energy carrier saved]] & "#" & Saving_measures[[#This Row],[The most similar sector]],Emiskoef,2,FALSE) -> 66.29939364 | S2: =VLOOKUP(Saving_measures[[#This Row],[Energy carrier saved]] & "#" & Saving_measures[[#This Row],[The most similar sector]],Emiskoef,3,FALSE) -> 4.817683925 | T2: =VLOOKUP(Saving_measures[[#This Row],[Energy carrier saved]] & "#" & Saving_measures[[#This Row],[The most similar sector]],Emiskoef,4,FALSE) -> 0.8450525932 | U2: =Saving_measures[[#This Row],[EF of CO2 '[kg/GJ']]]+0.025*Saving_measures[[#This Row],[EF of CH4 '[g/GJ']]]+0.298*Saving_measures[[#This Row],[EF of N2O '[g/GJ']]] -> 66.67166142 | V2: =1000*Saving_measures[[#This Row],[Unit investments '[€/GJ']]]/Saving_measures[[#This Row],[EF of CO2 eq '[kg/GJ']]] -> 5862.001064
A3: Buildings insulation | B3: MIN | C3: =Saving_measures[[#This Row],[Measure]] & "#" & Saving_measures[[#This Row],[Cost type]] -> Buildings insulation#MIN | D3: 174.6639571 | E3: =VLOOKUP(Saving_measures[[#This Row],[Measure detail]],Potential_of_measures!$C$1:$E$192,3,0) -> 0.5833333333 | F3: =Saving_measures[[#This Row],[Unit investments '[€/GJ']]]/Saving_measures[[#This Row],[Payback period w/o subsidy '[y']]] -> 14.55532976 | G3: =Saving_measures[[#This Row],[Energy saving potential '[TJ']]]*Saving_measures[[#This Row],[Unit investments '[€/GJ']]]*1000 -> 378479229.5 | H3: =Saving_measures[[#This Row],[Subsidy share '[%']]]*Saving_measures[[#This Row],[Investment costs '[€']]] -> 220779550.5 | I3: 12 | J3: =VLOOKUP(Saving_measures[[#This Row],[Measure detail]],Potential_of_measures!$C$1:$E$192,2,0) -> 2166.899433 | K3: 25 | L3: Fuels and heat | M3: Industry | N3: =Saving_measures[[#This Row],[Energy saving potential '[TJ']]]*Saving_measures[[#This Row],[EF of CO2 '[kg/GJ']]] -> 143664.1185 | O3: =Saving_measures[[#This Row],[Energy saving potential '[TJ']]]*Saving_measures[[#This Row],[EF of CH4 '[g/GJ']]] -> 10439.43656 | P3: =Saving_measures[[#This Row],[Energy saving potential '[TJ']]]*Saving_measures[[#This Row],[EF of N2O '[g/GJ']]] -> 1831.143985 | Q3: =Saving_measures[[#This Row],[Energy saving potential '[TJ']]]*Saving_measures[[#This Row],[EF of CO2 eq '[kg/GJ']]] -> 144470.7853 | R3: =VLOOKUP(Saving_measures[[#This Row],[Energy carrier saved]] & "#" & Saving_measures[[#This Row],[The most similar sector]],Emiskoef,2,FALSE) -> 66.29939364 | S3: =VLOOKUP(Saving_measures[[#This Row],[Energy carrier saved]] & "#" & Saving_measures[[#This Row],[The most similar sector]],Emiskoef,3,FALSE) -> 4.817683925 | T3: =VLOOKUP(Saving_measures[[#This Row],[Energy carrier saved]] & "#" & Saving_measures[[#This Row],[The most similar sector]],Emiskoef,4,FALSE) -> 0.8450525932 | U3: =Saving_measures[[#This Row],[EF of CO2 '[kg/GJ']]]+0.025*Saving_measures[[#This Row],[EF of CH4 '[g/GJ']]]+0.298*Saving_measures[[#This Row],[EF of N2O '[g/GJ']]] -> 66.67166142 | V3: =1000*Saving_measures[[#This Row],[Unit investments '[€/GJ']]]/Saving_measures[[#This Row],[EF of CO2 eq '[kg/GJ']]] -> 2619.76308
A4: Buildings insulation | B4: TYP | C4: =Saving_measures[[#This Row],[Measure]] & "#" & Saving_measures[[#This Row],[Cost type]] -> Buildings insulation#TYP | D4: 249.9168532 | E4: =VLOOKUP(Saving_measures[[#This Row],[Measure detail]],Potential_of_measures!$C$1:$E$192,3,0) -> 0.75 | F4: =Saving_measures[[#This Row],[Unit investments '[€/GJ']]]/Saving_measures[[#This Row],[Payback period w/o subsidy '[y']]] -> 12.49584266 | G4: =Saving_measures[[#This Row],[Energy saving potential '[TJ']]]*Saving_measures[[#This Row],[Unit investments '[€/GJ']]]*1000 -> 1083089375 | H4: =Saving_measures[[#This Row],[Subsidy share '[%']]]*Saving_measures[[#This Row],[Investment costs '[€']]] -> 812317031.2 | I4: 20 | J4: =VLOOKUP(Saving_measures[[#This Row],[Measure detail]],Potential_of_measures!$C$1:$E$192,2,0) -> 4333.798865 | K4: 25 | L4: Fuels and heat | M4: Industry | N4: =Saving_measures[[#This Row],[Energy saving potential '[TJ']]]*Saving_measures[[#This Row],[EF of CO2 '[kg/GJ']]] -> 287328.2369 | O4: =Saving_measures[[#This Row],[Energy saving potential '[TJ']]]*Saving_measures[[#This Row],[EF of CH4 '[g/GJ']]] -> 20878.87313 | P4: =Saving_measures[[#This Row],[Energy saving potential '[TJ']]]*Saving_measures[[#This Row],[EF of N2O '[g/GJ']]] -> 3662.28797 | Q4: =Saving_measures[[#This Row],[Energy saving potential '[TJ']]]*Saving_measures[[#This Row],[EF of CO2 eq '[kg/GJ']]] -> 288941.5706 | R4: =VLOOKUP(Saving_measures[[#This Row],[Energy carrier saved]] & "#" & Saving_measures[[#This Row],[The most similar sector]],Emiskoef,2,FALSE) -> 66.29939364 | S4: =VLOOKUP(Saving_measures[[#This Row],[Energy carrier saved]] & "#" & Saving_measures[[#This Row],[The most similar sector]],Emiskoef,3,FALSE) -> 4.817683925 | T4: =VLOOKUP(Saving_measures[[#This Row],[Energy carrier saved]] & "#" & Saving_measures[[#This Row],[The most similar sector]],Emiskoef,4,FALSE) -> 0.8450525932 | U4: =Saving_measures[[#This Row],[EF of CO2 '[kg/GJ']]]+0.025*Saving_measures[[#This Row],[EF of CH4 '[g/GJ']]]+0.298*Saving_measures[[#This Row],[EF of N2O '[g/GJ']]] -> 66.67166142 | V4: =1000*Saving_measures[[#This Row],[Unit investments '[€/GJ']]]/Saving_measures[[#This Row],[EF of CO2 eq '[kg/GJ']]] -> 3748.471958
A5: Control of circulation pumps | B5: MAX | C5: =Saving_measures[[#This Row],[Measure]] & "#" & Saving_measures[[#This Row],[Cost type]] -> Control of circulation pumps#MAX | D5: 78.43137255 | E5: =VLOOKUP(Saving_measures[[#This Row],[Measure detail]],Potential_of_measures!$C$1:$E$192,3,0) -> 0.2857142857 | F5: =Saving_measures[[#This Row],[Unit investments '[€/GJ']]]/Saving_measures[[#This Row],[Payback period w/o subsidy '[y']]] -> 11.20448179 | G5: =Saving_measures[[#This Row],[Energy saving potential '[TJ']]]*Saving_measures[[#This Row],[Unit investments '[€/GJ']]]*1000 -> 1232858.247 | H5: =Saving_measures[[#This Row],[Subsidy share '[%']]]*Saving_measures[[#This Row],[Investment costs '[€']]] -> 352245.2135 | I5: 7 | J5: =VLOOKUP(Saving_measures[[#This Row],[Measure detail]],Potential_of_measures!$C$1:$E$192,2,0) -> 15.71894265 | K5: 20 | L5: Electricity | M5: Industry | N5: =Saving_measures[[#This Row],[Energy saving potential '[TJ']]]*Saving_measures[[#This Row],[EF of CO2 '[kg/GJ']]] -> 3824.502954 | O5: =Saving_measures[[#This Row],[Energy saving potential '[TJ']]]*Saving_measures[[#This Row],[EF of CH4 '[g/GJ']]] -> 40.86009942 | P5: =Saving_measures[[#This Row],[Energy saving potential '[TJ']]]*Saving_measures[[#This Row],[EF of N2O '[g/GJ']]] -> 53.6329743 | Q5: =Saving_measures[[#This Row],[Energy saving potential '[TJ']]]*Saving_measures[[#This Row],[EF of CO2 eq '[kg/GJ']]] -> 3841.507083 | R5: =VLOOKUP(Saving_measures[[#This Row],[Energy carrier saved]] & "#" & Saving_measures[[#This Row],[The most similar sector]],Emiskoef,2,FALSE) -> 243.305357 | S5: =VLOOKUP(Saving_measures[[#This Row],[Energy carrier saved]] & "#" & Saving_measures[[#This Row],[The most similar sector]],Emiskoef,3,FALSE) -> 2.599417806 | T5: =VLOOKUP(Saving_measures[[#This Row],[Energy carrier saved]] & "#" & Saving_measures[[#This Row],[The most similar sector]],Emiskoef,4,FALSE) -> 3.411996308 | U5: =Saving_measures[[#This Row],[EF of CO2 '[kg/GJ']]]+0.025*Saving_measures[[#This Row],[EF of CH4 '[g/GJ']]]+0.298*Saving_measures[[#This Row],[EF of N2O '[g/GJ']]] -> 244.3871173 | V5: =1000*Saving_measures[[#This Row],[Unit investments '[€/GJ']]]/Saving_measures[[#This Row],[EF of CO2 eq '[kg/GJ']]] -> 320.9308797
A6: Control of circulation pumps | B6: MIN | C6: =Saving_measures[[#This Row],[Measure]] & "#" & Saving_measures[[#This Row],[Cost type]] -> Control of circulation pumps#MIN | D6: 36.07843137 | E6: =VLOOKUP(Saving_measures[[#This Row],[Measure detail]],Potential_of_measures!$C$1:$E$192,3,0) -> 0 | F6: =Saving_measures[[#This Row],[Unit investments '[€/GJ']]]/Saving_measures[[#This Row],[Payback period w/o subsidy '[y']]] -> 18.03921569 | G6: =Saving_measures[[#This Row],[Energy saving potential '[TJ']]]*Saving_measures[[#This Row],[Unit investments '[€/GJ']]]*1000 -> 567114.7938 | H6: =Saving_measures[[#This Row],[Subsidy share '[%']]]*Saving_measures[[#This Row],[Investment costs '[€']]] -> 0 | I6: 2 | J6: =VLOOKUP(Saving_measures[[#This Row],[Measure detail]],Potential_of_measures!$C$1:$E$192,2,0) -> 15.71894265 | K6: 20 | L6: Electricity | M6: Industry | N6: =Saving_measures[[#This Row],[Energy saving potential '[TJ']]]*Saving_measures[[#This Row],[EF of CO2 '[kg/GJ']]] -> 3824.502954 | O6: =Saving_measures[[#This Row],[Energy saving potential '[TJ']]]*Saving_measures[[#This Row],[EF of CH4 '[g/GJ']]] -> 40.86009942 | P6: =Saving_measures[[#This Row],[Energy saving potential '[TJ']]]*Saving_measures[[#This Row],[EF of N2O '[g/GJ']]] -> 53.6329743 | Q6: =Saving_measures[[#This Row],[Energy saving potential '[TJ']]]*Saving_measures[[#This Row],[EF of CO2 eq '[kg/GJ']]] -> 3841.507083 | R6: =VLOOKUP(Saving_measures[[#This Row],[Energy carrier saved]] & "#" & Saving_measures[[#This Row],[The most similar sector]],Emiskoef,2,FALSE) -> 243.305357 | S6: =VLOOKUP(Saving_measures[[#This Row],[Energy carrier saved]] & "#" & Saving_measures[[#This Row],[The most similar sector]],Emiskoef,3,FALSE) -> 2.599417806 | T6: =VLOOKUP(Saving_measures[[#This Row],[Energy carrier saved]] & "#" & Saving_measures[[#This Row],[The most similar sector]],Emiskoef,4,FALSE) -> 3.411996308 | U6: =Saving_measures[[#This Row],[EF of CO2 '[kg/GJ']]]+0.025*Saving_measures[[#This Row],[EF of CH4 '[g/GJ']]]+0.298*Saving_measures[[#This Row],[EF of N2O '[g/GJ']]] -> 244.3871173 | V6: =1000*Saving_measures[[#This Row],[Unit investments '[€/GJ']]]/Saving_measures[[#This Row],[EF of CO2 eq '[kg/GJ']]] -> 147.6282046
A7: Control of circulation pumps | B7: TYP | C7: =Saving_measures[[#This Row],[Measure]] & "#" & Saving_measures[[#This Row],[Cost type]] -> Control of circulation pumps#TYP | D7: 54.90196078 | E7: =VLOOKUP(Saving_measures[[#This Row],[Measure detail]],Potential_of_measures!$C$1:$E$192,3,0) -> 0 | F7: =Saving_measures[[#This Row],[Unit investments '[€/GJ']]]/Saving_measures[[#This Row],[Payback period w/o subsidy '[y']]] -> 13.7254902 | G7: =Saving_measures[[#This Row],[Energy saving potential '[TJ']]]*Saving_measures[[#This Row],[Unit investments '[€/GJ']]]*1000 -> 1726001.546 | H7: =Saving_measures[[#This Row],[Subsidy share '[%']]]*Saving_measures[[#This Row],[Investment costs '[€']]] -> 0 | I7: 4 | J7: =VLOOKUP(Saving_measures[[#This Row],[Measure detail]],Potential_of_measures!$C$1:$E$192,2,0) -> 31.43788531 | K7: 20 | L7: Electricity | M7: Industry | N7: =Saving_measures[[#This Row],[Energy saving potential '[TJ']]]*Saving_measures[[#This Row],[EF of CO2 '[kg/GJ']]] -> 7649.005908 | O7: =Saving_measures[[#This Row],[Energy saving potential '[TJ']]]*Saving_measures[[#This Row],[EF of CH4 '[g/GJ']]] -> 81.72019885 | P7: =Saving_measures[[#This Row],[Energy saving potential '[TJ']]]*Saving_measures[[#This Row],[EF of N2O '[g/GJ']]] -> 107.2659486 | Q7: =Saving_measures[[#This Row],[Energy saving potential '[TJ']]]*Saving_measures[[#This Row],[EF of CO2 eq '[kg/GJ']]] -> 7683.014166 | R7: =VLOOKUP(Saving_measures[[#This Row],[Energy carrier saved]] & "#" & Saving_measures[[#This Row],[The most similar sector]],Emiskoef,2,FALSE) -> 243.305357 | S7: =VLOOKUP(Saving_measures[[#This Row],[Energy carrier saved]] & "#" & Saving_measures[[#This Row],[The most similar sector]],Emiskoef,3,FALSE) -> 2.599417806 | T7: =VLOOKUP(Saving_measures[[#This Row],[Energy carrier saved]] & "#" & Saving_measures[[#This Row],[The most similar sector]],Emiskoef,4,FALSE) -> 3.411996308 | U7: =Saving_measures[[#This Row],[EF of CO2 '[kg/GJ']]]+0.025*Saving_measures[[#This Row],[EF of CH4 '[g/GJ']]]+0.298*Saving_measures[[#This Row],[EF of N2O '[g/GJ']]] -> 244.3871173 | V7: =1000*Saving_measures[[#This Row],[Unit investments '[€/GJ']]]/Saving_measures[[#This Row],[EF of CO2 eq '[kg/GJ']]] -> 224.6516158
A8: Decrease of losses in heat distribution | B8: MAX | C8: =Saving_measures[[#This Row],[Measure]] & "#" & Saving_measures[[#This Row],[Cost type]] -> Decrease of losses in heat distribution#MAX | D8: 784.3137255 | E8: =VLOOKUP(Saving_measures[[#This Row],[Measure detail]],Potential_of_measures!$C$1:$E$192,3,0) -> 0.9166666667 | F8: =Saving_measures[[#This Row],[Unit investments '[€/GJ']]]/Saving_measures[[#This Row],[Payback period w/o subsidy '[y']]] -> 13.07189542 | G8: =Saving_measures[[#This Row],[Energy saving potential '[TJ']]]*Saving_measures[[#This Row],[Unit investments '[€/GJ']]]*1000 -> 238970795.6 | H8: =Saving_measures[[#This Row],[Subsidy share '[%']]]*Saving_measures[[#This Row],[Investment costs '[€']]] -> 219056562.6 | I8: 60 | J8: =VLOOKUP(Saving_measures[[#This Row],[Measure detail]],Potential_of_measures!$C$1:$E$192,2,0) -> 304.6877644 | K8: 30 | L8: Heat | M8: Industry | N8: =Saving_measures[[#This Row],[Energy saving potential '[TJ']]]*Saving_measures[[#This Row],[EF of CO2 '[kg/GJ']]] -> 28922.89264 | O8: =Saving_measures[[#This Row],[Energy saving potential '[TJ']]]*Saving_measures[[#This Row],[EF of CH4 '[g/GJ']]] -> 349.8651172 | P8: =Saving_measures[[#This Row],[Energy saving potential '[TJ']]]*Saving_measures[[#This Row],[EF of N2O '[g/GJ']]] -> 341.3072506 | Q8: =Saving_measures[[#This Row],[Energy saving potential '[TJ']]]*Saving_measures[[#This Row],[EF of CO2 eq '[kg/GJ']]] -> 29033.34883 | R8: =VLOOKUP(Saving_measures[[#This Row],[Energy carrier saved]] & "#" & Saving_measures[[#This Row],[The most similar sector]],Emiskoef,2,FALSE) -> 94.92633451 | S8: =VLOOKUP(Saving_measures[[#This Row],[Energy carrier saved]] & "#" & Saving_measures[[#This Row],[The most similar sector]],Emiskoef,3,FALSE) -> 1.14827426 | T8: =VLOOKUP(Saving_measures[[#This Row],[Energy carrier saved]] & "#" & Saving_measures[[#This Row],[The most similar sector]],Emiskoef,4,FALSE) -> 1.120186927 | U8: =Saving_measures[[#This Row],[EF of CO2 '[kg/GJ']]]+0.025*Saving_measures[[#This Row],[EF of CH4 '[g/GJ']]]+0.298*Saving_measures[[#This Row],[EF of N2O '[g/GJ']]] -> 95.28885707 | V8: =1000*Saving_measures[[#This Row],[Unit investments '[€/GJ']]]/Saving_measures[[#This Row],[EF of CO2 eq '[kg/GJ']]] -> 8230.907051
A9: Decrease of losses in heat distribution | B9: MIN | C9: =Saving_measures[[#This Row],[Measure]] & "#" & Saving_measures[[#This Row],[Cost type]] -> Decrease of losses in heat distribution#MIN | D9: 117.6470588 | E9: =VLOOKUP(Saving_measures[[#This Row],[Measure detail]],Potential_of_measures!$C$1:$E$192,3,0) -> 0.6666666667 | F9: =Saving_measures[[#This Row],[Unit investments '[€/GJ']]]/Saving_measures[[#This Row],[Payback period w/o subsidy '[y']]] -> 7.843137255 | G9: =Saving_measures[[#This Row],[Energy saving potential '[TJ']]]*Saving_measures[[#This Row],[Unit investments '[€/GJ']]]*1000 -> 35845619.34 | H9: =Saving_measures[[#This Row],[Subsidy share '[%']]]*Saving_measures[[#This Row],[Investment costs '[€']]] -> 23897079.56 | I9: 15 | J9: =VLOOKUP(Saving_measures[[#This Row],[Measure detail]],Potential_of_measures!$C$1:$E$192,2,0) -> 304.6877644 | K9: 30 | L9: Heat | M9: Industry | N9: =Saving_measures[[#This Row],[Energy saving potential '[TJ']]]*Saving_measures[[#This Row],[EF of CO2 '[kg/GJ']]] -> 28922.89264 | O9: =Saving_measures[[#This Row],[Energy saving potential '[TJ']]]*Saving_measures[[#This Row],[EF of CH4 '[g/GJ']]] -> 349.8651172 | P9: =Saving_measures[[#This Row],[Energy saving potential '[TJ']]]*Saving_measures[[#This Row],[EF of N2O '[g/GJ']]] -> 341.3072506 | Q9: =Saving_measures[[#This Row],[Energy saving potential '[TJ']]]*Saving_measures[[#This Row],[EF of CO2 eq '[kg/GJ']]] -> 29033.34883 | R9: =VLOOKUP(Saving_measures[[#This Row],[Energy carrier saved]] & "#" & Saving_measures[[#This Row],[The most similar sector]],Emiskoef,2,FALSE) -> 94.92633451 | S9: =VLOOKUP(Saving_measures[[#This Row],[Energy carrier saved]] & "#" & Saving_measures[[#This Row],[The most similar sector]],Emiskoef,3,FALSE) -> 1.14827426 | T9: =VLOOKUP(Saving_measures[[#This Row],[Energy carrier saved]] & "#" & Saving_measures[[#This Row],[The most similar sector]],Emiskoef,4,FALSE) -> 1.120186927 | U9: =Saving_measures[[#This Row],[EF of CO2 '[kg/GJ']]]+0.025*Saving_measures[[#This Row],[EF of CH4 '[g/GJ']]]+0.298*Saving_measures[[#This Row],[EF of N2O '[g/GJ']]] -> 95.28885707 | V9: =1000*Saving_measures[[#This Row],[Unit investments '[€/GJ']]]/Saving_measures[[#This Row],[EF of CO2 eq '[kg/GJ']]] -> 1234.636058
A10: Decrease of losses in heat distribution | B10: TYP | C10: =Saving_measures[[#This Row],[Measure]] & "#" & Saving_measures[[#This Row],[Cost type]] -> Decrease of losses in heat distribution#TYP | D10: 588.2352941 | E10: =VLOOKUP(Saving_measures[[#This Row],[Measure detail]],Potential_of_measures!$C$1:$E$192,3,0) -> 0.8888888889 | F10: =Saving_measures[[#This Row],[Unit investments '[€/GJ']]]/Saving_measures[[#This Row],[Payback period w/o subsidy '[y']]] -> 13.07189542 | G10: =Saving_measures[[#This Row],[Energy saving potential '[TJ']]]*Saving_measures[[#This Row],[Unit investments '[€/GJ']]]*1000 -> 537684290 | H10: =Saving_measures[[#This Row],[Subsidy share '[%']]]*Saving_measures[[#This Row],[Investment costs '[€']]] -> 477941591.2 | I10: 45 | J10: =VLOOKUP(Saving_measures[[#This Row],[Measure detail]],Potential_of_measures!$C$1:$E$192,2,0) -> 914.0632931 | K10: 30 | L10: Heat | M10: Industry | N10: =Saving_measures[[#This Row],[Energy saving potential '[TJ']]]*Saving_measures[[#This Row],[EF of CO2 '[kg/GJ']]] -> 86768.67792 | O10: =Saving_measures[[#This Row],[Energy saving potential '[TJ']]]*Saving_measures[[#This Row],[EF of CH4 '[g/GJ']]] -> 1049.595351 | P10: =Saving_measures[[#This Row],[Energy saving potential '[TJ']]]*Saving_measures[[#This Row],[EF of N2O '[g/GJ']]] -> 1023.921752 | Q10: =Saving_measures[[#This Row],[Energy saving potential '[TJ']]]*Saving_measures[[#This Row],[EF of CO2 eq '[kg/GJ']]] -> 87100.04649 | R10: =VLOOKUP(Saving_measures[[#This Row],[Energy carrier saved]] & "#" & Saving_measures[[#This Row],[The most similar sector]],Emiskoef,2,FALSE) -> 94.92633451 | S10: =VLOOKUP(Saving_measures[[#This Row],[Energy carrier saved]] & "#" & Saving_measures[[#This Row],[The most similar sector]],Emiskoef,3,FALSE) -> 1.14827426 | T10: =VLOOKUP(Saving_measures[[#This Row],[Energy carrier saved]] & "#" & Saving_measures[[#This Row],[The most similar sector]],Emiskoef,4,FALSE) -> 1.120186927 | U10: =Saving_measures[[#This Row],[EF of CO2 '[kg/GJ']]]+0.025*Saving_measures[[#This Row],[EF of CH4 '[g/GJ']]]+0.298*Saving_measures[[#This Row],[EF of N2O '[g/GJ']]] -> 95.28885707 | V10: =1000*Saving_measures[[#This Row],[Unit investments '[€/GJ']]]/Saving_measures[[#This Row],[EF of CO2 eq '[kg/GJ']]] -> 6173.180288
A11: Energy management | B11: MAX | C11: =Saving_measures[[#This Row],[Measure]] & "#" & Saving_measures[[#This Row],[Cost type]] -> Energy management#MAX | D11: 78.16587003 | E11: =VLOOKUP(Saving_measures[[#This Row],[Measure detail]],Potential_of_measures!$C$1:$E$192,3,0) -> 0.375 | F11: =Saving_measures[[#This Row],[Unit investments '[€/GJ']]]/Saving_measures[[#This Row],[Payback period w/o subsidy '[y']]] -> 9.770733754 | G11: =Saving_measures[[#This Row],[Energy saving potential '[TJ']]]*Saving_measures[[#This Row],[Unit investments '[€/GJ']]]*1000 -> 34083738.09 | H11: =Saving_measures[[#This Row],[Subsidy share '[%']]]*Saving_measures[[#This Row],[Investment costs '[€']]] -> 12781401.78 | I11: 8 | J11: =VLOOKUP(Saving_measures[[#This Row],[Measure detail]],Potential_of_measures!$C$1:$E$192,2,0) -> 436.0437372 | K11: 10 | L11: All energy carriers | M11: Industry | N11: =Saving_measures[[#This Row],[Energy saving potential '[TJ']]]*Saving_measures[[#This Row],[EF of CO2 '[kg/GJ']]] -> 47768.87205 | O11: =Saving_measures[[#This Row],[Energy saving potential '[TJ']]]*Saving_measures[[#This Row],[EF of CH4 '[g/GJ']]] -> 1864.371525 | P11: =Saving_measures[[#This Row],[Energy saving potential '[TJ']]]*Saving_measures[[#This Row],[EF of N2O '[g/GJ']]] -> 641.9797861 | Q11: =Saving_measures[[#This Row],[Energy saving potential '[TJ']]]*Saving_measures[[#This Row],[EF of CO2 eq '[kg/GJ']]] -> 48006.79132 | R11: =VLOOKUP(Saving_measures[[#This Row],[Energy carrier saved]] & "#" & Saving_measures[[#This Row],[The most similar sector]],Emiskoef,2,FALSE) -> 109.5506436 | S11: =VLOOKUP(Saving_measures[[#This Row],[Energy carrier saved]] & "#" & Saving_measures[[#This Row],[The most similar sector]],Emiskoef,3,FALSE) -> 4.275652568 | T11: =VLOOKUP(Saving_measures[[#This Row],[Energy carrier saved]] & "#" & Saving_measures[[#This Row],[The most similar sector]],Emiskoef,4,FALSE) -> 1.47228301 | U11: =Saving_measures[[#This Row],[EF of CO2 '[kg/GJ']]]+0.025*Saving_measures[[#This Row],[EF of CH4 '[g/GJ']]]+0.298*Saving_measures[[#This Row],[EF of N2O '[g/GJ']]] -> 110.0962753 | V11: =1000*Saving_measures[[#This Row],[Unit investments '[€/GJ']]]/Saving_measures[[#This Row],[EF of CO2 eq '[kg/GJ']]] -> 709.9774252
A12: Energy management | B12: MIN | C12: =Saving_measures[[#This Row],[Measure]] & "#" & Saving_measures[[#This Row],[Cost type]] -> Energy management#MIN | D12: 34.93279141 | E12: =VLOOKUP(Saving_measures[[#This Row],[Measure detail]],Potential_of_measures!$C$1:$E$192,3,0) -> 0 | F12: =Saving_measures[[#This Row],[Unit investments '[€/GJ']]]/Saving_measures[[#This Row],[Payback period w/o subsidy '[y']]] -> 23.28852761 | G12: =Saving_measures[[#This Row],[Energy saving potential '[TJ']]]*Saving_measures[[#This Row],[Unit investments '[€/GJ']]]*1000 -> 1692469.435 | H12: =Saving_measures[[#This Row],[Subsidy share '[%']]]*Saving_measures[[#This Row],[Investment costs '[€']]] -> 0 | I12: 1.5 | J12: =VLOOKUP(Saving_measures[[#This Row],[Measure detail]],Potential_of_measures!$C$1:$E$192,2,0) -> 48.44930414 | K12: 10 | L12: All energy carriers | M12: Industry | N12: =Saving_measures[[#This Row],[Energy saving potential '[TJ']]]*Saving_measures[[#This Row],[EF of CO2 '[kg/GJ']]] -> 5307.65245 | O12: =Saving_measures[[#This Row],[Energy saving potential '[TJ']]]*Saving_measures[[#This Row],[EF of CH4 '[g/GJ']]] -> 207.1523917 | P12: =Saving_measures[[#This Row],[Energy saving potential '[TJ']]]*Saving_measures[[#This Row],[EF of N2O '[g/GJ']]] -> 71.33108735 | Q12: =Saving_measures[[#This Row],[Energy saving potential '[TJ']]]*Saving_measures[[#This Row],[EF of CO2 eq '[kg/GJ']]] -> 5334.087924 | R12: =VLOOKUP(Saving_measures[[#This Row],[Energy carrier saved]] & "#" & Saving_measures[[#This Row],[The most similar sector]],Emiskoef,2,FALSE) -> 109.5506436 | S12: =VLOOKUP(Saving_measures[[#This Row],[Energy carrier saved]] & "#" & Saving_measures[[#This Row],[The most similar sector]],Emiskoef,3,FALSE) -> 4.275652568 | T12: =VLOOKUP(Saving_measures[[#This Row],[Energy carrier saved]] & "#" & Saving_measures[[#This Row],[The most similar sector]],Emiskoef,4,FALSE) -> 1.47228301 | U12: =Saving_measures[[#This Row],[EF of CO2 '[kg/GJ']]]+0.025*Saving_measures[[#This Row],[EF of CH4 '[g/GJ']]]+0.298*Saving_measures[[#This Row],[EF of N2O '[g/GJ']]] -> 110.0962753 | V12: =1000*Saving_measures[[#This Row],[Unit investments '[€/GJ']]]/Saving_measures[[#This Row],[EF of CO2 eq '[kg/GJ']]] -> 317.2931267
A13: Energy management | B13: TYP | C13: =Saving_measures[[#This Row],[Measure]] & "#" & Saving_measures[[#This Row],[Cost type]] -> Energy management#TYP | D13: 49.98337065 | E13: =VLOOKUP(Saving_measures[[#This Row],[Measure detail]],Potential_of_measures!$C$1:$E$192,3,0) -> 0 | F13: =Saving_measures[[#This Row],[Unit investments '[€/GJ']]]/Saving_measures[[#This Row],[Payback period w/o subsidy '[y']]] -> 12.49584266 | G13: =Saving_measures[[#This Row],[Energy saving potential '[TJ']]]*Saving_measures[[#This Row],[Unit investments '[€/GJ']]]*1000 -> 24216595.26 | H13: =Saving_measures[[#This Row],[Subsidy share '[%']]]*Saving_measures[[#This Row],[Investment costs '[€']]] -> 0 | I13: 4 | J13: =VLOOKUP(Saving_measures[[#This Row],[Measure detail]],Potential_of_measures!$C$1:$E$192,2,0) -> 484.4930414 | K13: 10 | L13: All energy carriers | M13: Industry | N13: =Saving_measures[[#This Row],[Energy saving potential '[TJ']]]*Saving_measures[[#This Row],[EF of CO2 '[kg/GJ']]] -> 53076.5245 | O13: =Saving_measures[[#This Row],[Energy saving potential '[TJ']]]*Saving_measures[[#This Row],[EF of CH4 '[g/GJ']]] -> 2071.523917 | P13: =Saving_measures[[#This Row],[Energy saving potential '[TJ']]]*Saving_measures[[#This Row],[EF of N2O '[g/GJ']]] -> 713.3108735 | Q13: =Saving_measures[[#This Row],[Energy saving potential '[TJ']]]*Saving_measures[[#This Row],[EF of CO2 eq '[kg/GJ']]] -> 53340.87924 | R13: =VLOOKUP(Saving_measures[[#This Row],[Energy carrier saved]] & "#" & Saving_measures[[#This Row],[The most similar sector]],Emiskoef,2,FALSE) -> 109.5506436 | S13: =VLOOKUP(Saving_measures[[#This Row],[Energy carrier saved]] & "#" & Saving_measures[[#This Row],[The most similar sector]],Emiskoef,3,FALSE) -> 4.275652568 | T13: =VLOOKUP(Saving_measures[[#This Row],[Energy carrier saved]] & "#" & Saving_measures[[#This Row],[The most similar sector]],Emiskoef,4,FALSE) -> 1.47228301 | U13: =Saving_measures[[#This Row],[EF of CO2 '[kg/GJ']]]+0.025*Saving_measures[[#This Row],[EF of CH4 '[g/GJ']]]+0.298*Saving_measures[[#This Row],[EF of N2O '[g/GJ']]] -> 110.0962753 | V13: =1000*Saving_measures[[#This Row],[Unit investments '[€/GJ']]]/Saving_measures[[#This Row],[EF of CO2 eq '[kg/GJ']]] -> 453.996927
A14: Change of technological processes | B14: MAX | C14: =Saving_measures[[#This Row],[Measure]] & "#" & Saving_measures[[#This Row],[Cost type]] -> Change of technological processes#MAX | D14: 168.4098619 | E14: =VLOOKUP(Saving_measures[[#This Row],[Measure detail]],Potential_of_measures!$C$1:$E$192,3,0) -> 0.8333333333 | F14: =Saving_measures[[#This Row],[Unit investments '[€/GJ']]]/Saving_measures[[#This Row],[Payback period w/o subsidy '[y']]] -> 5.613662063 | G14: =Saving_measures[[#This Row],[Energy saving potential '[TJ']]]*Saving_measures[[#This Row],[Unit investments '[€/GJ']]]*1000 -> 202307430.8 | H14: =Saving_measures[[#This Row],[Subsidy share '[%']]]*Saving_measures[[#This Row],[Investment costs '[€']]] -> 168589525.7 | I14: 30 | J14: =VLOOKUP(Saving_measures[[#This Row],[Measure detail]],Potential_of_measures!$C$1:$E$192,2,0) -> 1201.280189 | K14: 30 | L14: All energy carriers | M14: Industry | N14: =Saving_measures[[#This Row],[Energy saving potential '[TJ']]]*Saving_measures[[#This Row],[EF of CO2 '[kg/GJ']]] -> 131601.0179 | O14: =Saving_measures[[#This Row],[Energy saving potential '[TJ']]]*Saving_measures[[#This Row],[EF of CH4 '[g/GJ']]] -> 5136.256727 | P14: =Saving_measures[[#This Row],[Energy saving potential '[TJ']]]*Saving_measures[[#This Row],[EF of N2O '[g/GJ']]] -> 1768.624413 | Q14: =Saving_measures[[#This Row],[Energy saving potential '[TJ']]]*Saving_measures[[#This Row],[EF of CO2 eq '[kg/GJ']]] -> 132256.4744 | R14: =VLOOKUP(Saving_measures[[#This Row],[Energy carrier saved]] & "#" & Saving_measures[[#This Row],[The most similar sector]],Emiskoef,2,FALSE) -> 109.5506436 | S14: =VLOOKUP(Saving_measures[[#This Row],[Energy carrier saved]] & "#" & Saving_measures[[#This Row],[The most similar sector]],Emiskoef,3,FALSE) -> 4.275652568 | T14: =VLOOKUP(Saving_measures[[#This Row],[Energy carrier saved]] & "#" & Saving_measures[[#This Row],[The most similar sector]],Emiskoef,4,FALSE) -> 1.47228301 | U14: =Saving_measures[[#This Row],[EF of CO2 '[kg/GJ']]]+0.025*Saving_measures[[#This Row],[EF of CH4 '[g/GJ']]]+0.298*Saving_measures[[#This Row],[EF of N2O '[g/GJ']]] -> 110.0962753 | V14: =1000*Saving_measures[[#This Row],[Unit investments '[€/GJ']]]/Saving_measures[[#This Row],[EF of CO2 eq '[kg/GJ']]] -> 1529.659941
A15: Change of technological processes | B15: MIN | C15: =Saving_measures[[#This Row],[Measure]] & "#" & Saving_measures[[#This Row],[Cost type]] -> Change of technological processes#MIN | D15: 57.7980533 | E15: =VLOOKUP(Saving_measures[[#This Row],[Measure detail]],Potential_of_measures!$C$1:$E$192,3,0) -> 0 | F15: =Saving_measures[[#This Row],[Unit investments '[€/GJ']]]/Saving_measures[[#This Row],[Payback period w/o subsidy '[y']]] -> 11.55961066 | G15: =Saving_measures[[#This Row],[Energy saving potential '[TJ']]]*Saving_measures[[#This Row],[Unit investments '[€/GJ']]]*1000 -> 9918808.058 | H15: =Saving_measures[[#This Row],[Subsidy share '[%']]]*Saving_measures[[#This Row],[Investment costs '[€']]] -> 0 | I15: 5 | J15: =VLOOKUP(Saving_measures[[#This Row],[Measure detail]],Potential_of_measures!$C$1:$E$192,2,0) -> 171.6114556 | K15: 30 | L15: All energy carriers | M15: Industry | N15: =Saving_measures[[#This Row],[Energy saving potential '[TJ']]]*Saving_measures[[#This Row],[EF of CO2 '[kg/GJ']]] -> 18800.14541 | O15: =Saving_measures[[#This Row],[Energy saving potential '[TJ']]]*Saving_measures[[#This Row],[EF of CH4 '[g/GJ']]] -> 733.750961 | P15: =Saving_measures[[#This Row],[Energy saving potential '[TJ']]]*Saving_measures[[#This Row],[EF of N2O '[g/GJ']]] -> 252.6606305 | Q15: =Saving_measures[[#This Row],[Energy saving potential '[TJ']]]*Saving_measures[[#This Row],[EF of CO2 eq '[kg/GJ']]] -> 18893.78206 | R15: =VLOOKUP(Saving_measures[[#This Row],[Energy carrier saved]] & "#" & Saving_measures[[#This Row],[The most similar sector]],Emiskoef,2,FALSE) -> 109.5506436 | S15: =VLOOKUP(Saving_measures[[#This Row],[Energy carrier saved]] & "#" & Saving_measures[[#This Row],[The most similar sector]],Emiskoef,3,FALSE) -> 4.275652568 | T15: =VLOOKUP(Saving_measures[[#This Row],[Energy carrier saved]] & "#" & Saving_measures[[#This Row],[The most similar sector]],Emiskoef,4,FALSE) -> 1.47228301 | U15: =Saving_measures[[#This Row],[EF of CO2 '[kg/GJ']]]+0.025*Saving_measures[[#This Row],[EF of CH4 '[g/GJ']]]+0.298*Saving_measures[[#This Row],[EF of N2O '[g/GJ']]] -> 110.0962753 | V15: =1000*Saving_measures[[#This Row],[Unit investments '[€/GJ']]]/Saving_measures[[#This Row],[EF of CO2 eq '[kg/GJ']]] -> 524.9773724
A16: Change of technological processes | B16: TYP | C16: =Saving_measures[[#This Row],[Measure]] & "#" & Saving_measures[[#This Row],[Cost type]] -> Change of technological processes#TYP | D16: 89.11969146 | E16: =VLOOKUP(Saving_measures[[#This Row],[Measure detail]],Potential_of_measures!$C$1:$E$192,3,0) -> 0.375 | F16: =Saving_measures[[#This Row],[Unit investments '[€/GJ']]]/Saving_measures[[#This Row],[Payback period w/o subsidy '[y']]] -> 11.13996143 | G16: =Saving_measures[[#This Row],[Energy saving potential '[TJ']]]*Saving_measures[[#This Row],[Unit investments '[€/GJ']]]*1000 -> 183527519.7 | H16: =Saving_measures[[#This Row],[Subsidy share '[%']]]*Saving_measures[[#This Row],[Investment costs '[€']]] -> 68822819.89 | I16: 8 | J16: =VLOOKUP(Saving_measures[[#This Row],[Measure detail]],Potential_of_measures!$C$1:$E$192,2,0) -> 2059.337467 | K16: 30 | L16: All energy carriers | M16: Industry | N16: =Saving_measures[[#This Row],[Energy saving potential '[TJ']]]*Saving_measures[[#This Row],[EF of CO2 '[kg/GJ']]] -> 225601.745 | O16: =Saving_measures[[#This Row],[Energy saving potential '[TJ']]]*Saving_measures[[#This Row],[EF of CH4 '[g/GJ']]] -> 8805.011532 | P16: =Saving_measures[[#This Row],[Energy saving potential '[TJ']]]*Saving_measures[[#This Row],[EF of N2O '[g/GJ']]] -> 3031.927566 | Q16: =Saving_measures[[#This Row],[Energy saving potential '[TJ']]]*Saving_measures[[#This Row],[EF of CO2 eq '[kg/GJ']]] -> 226725.3847 | R16: =VLOOKUP(Saving_measures[[#This Row],[Energy carrier saved]] & "#" & Saving_measures[[#This Row],[The most similar sector]],Emiskoef,2,FALSE) -> 109.5506436 | S16: =VLOOKUP(Saving_measures[[#This Row],[Energy carrier saved]] & "#" & Saving_measures[[#This Row],[The most similar sector]],Emiskoef,3,FALSE) -> 4.275652568 | T16: =VLOOKUP(Saving_measures[[#This Row],[Energy carrier saved]] & "#" & Saving_measures[[#This Row],[The most similar sector]],Emiskoef,4,FALSE) -> 1.47228301 | U16: =Saving_measures[[#This Row],[EF of CO2 '[kg/GJ']]]+0.025*Saving_measures[[#This Row],[EF of CH4 '[g/GJ']]]+0.298*Saving_measures[[#This Row],[EF of N2O '[g/GJ']]] -> 110.0962753 | V16: =1000*Saving_measures[[#This Row],[Unit investments '[€/GJ']]]/Saving_measures[[#This Row],[EF of CO2 eq '[kg/GJ']]] -> 809.4705406
A17: Installation flue gas pre-heaters to boilers | B17: MAX | C17: =Saving_measures[[#This Row],[Measure]] & "#" & Saving_measures[[#This Row],[Cost type]] -> Installation flue gas pre-heaters to boilers#MAX | D17: 15.41575953 | E17: =VLOOKUP(Saving_measures[[#This Row],[Measure detail]],Potential_of_measures!$C$1:$E$192,3,0) -> 0 | F17: =Saving_measures[[#This Row],[Unit investments '[€/GJ']]]/Saving_measures[[#This Row],[Payback period w/o subsidy '[y']]] -> 5.138586512 | G17: =Saving_measures[[#This Row],[Energy saving potential '[TJ']]]*Saving_measures[[#This Row],[Unit investments '[€/GJ']]]*1000 -> 4605140.971 | H17: =Saving_measures[[#This Row],[Subsidy share '[%']]]*Saving_measures[[#This Row],[Investment costs '[€']]] -> 0 | I17: 3 | J17: =VLOOKUP(Saving_measures[[#This Row],[Measure detail]],Potential_of_measures!$C$1:$E$192,2,0) -> 298.7294243 | K17: 20 | L17: Fuels and heat | M17: Industry | N17: =Saving_measures[[#This Row],[Energy saving potential '[TJ']]]*Saving_measures[[#This Row],[EF of CO2 '[kg/GJ']]] -> 19805.5797 | O17: =Saving_measures[[#This Row],[Energy saving potential '[TJ']]]*Saving_measures[[#This Row],[EF of CH4 '[g/GJ']]] -> 1439.183945 | P17: =Saving_measures[[#This Row],[Energy saving potential '[TJ']]]*Saving_measures[[#This Row],[EF of N2O '[g/GJ']]] -> 252.4420747 | Q17: =Saving_measures[[#This Row],[Energy saving potential '[TJ']]]*Saving_measures[[#This Row],[EF of CO2 eq '[kg/GJ']]] -> 19916.78703 | R17: =VLOOKUP(Saving_measures[[#This Row],[Energy carrier saved]] & "#" & Saving_measures[[#This Row],[The most similar sector]],Emiskoef,2,FALSE) -> 66.29939364 | S17: =VLOOKUP(Saving_measures[[#This Row],[Energy carrier saved]] & "#" & Saving_measures[[#This Row],[The most similar sector]],Emiskoef,3,FALSE) -> 4.817683925 | T17: =VLOOKUP(Saving_measures[[#This Row],[Energy carrier saved]] & "#" & Saving_measures[[#This Row],[The most similar sector]],Emiskoef,4,FALSE) -> 0.8450525932 | U17: =Saving_measures[[#This Row],[EF of CO2 '[kg/GJ']]]+0.025*Saving_measures[[#This Row],[EF of CH4 '[g/GJ']]]+0.298*Saving_measures[[#This Row],[EF of N2O '[g/GJ']]] -> 66.67166142 | V17: =1000*Saving_measures[[#This Row],[Unit investments '[€/GJ']]]/Saving_measures[[#This Row],[EF of CO2 eq '[kg/GJ']]] -> 231.2190698
A18: Installation flue gas pre-heaters to boilers | B18: MIN | C18: =Saving_measures[[#This Row],[Measure]] & "#" & Saving_measures[[#This Row],[Cost type]] -> Installation flue gas pre-heaters to boilers#MIN | D18: 8.452769269 | E18: =VLOOKUP(Saving_measures[[#This Row],[Measure detail]],Potential_of_measures!$C$1:$E$192,3,0) -> 0 | F18: =Saving_measures[[#This Row],[Unit investments '[€/GJ']]]/Saving_measures[[#This Row],[Payback period w/o subsidy '[y']]] -> 16.90553854 | G18: =Saving_measures[[#This Row],[Energy saving potential '[TJ']]]*Saving_measures[[#This Row],[Unit investments '[€/GJ']]]*1000 -> 1262545.449 | H18: =Saving_measures[[#This Row],[Subsidy share '[%']]]*Saving_measures[[#This Row],[Investment costs '[€']]] -> 0 | I18: 0.5 | J18: =VLOOKUP(Saving_measures[[#This Row],[Measure detail]],Potential_of_measures!$C$1:$E$192,2,0) -> 149.3647122 | K18: 20 | L18: Fuels and heat | M18: Industry | N18: =Saving_measures[[#This Row],[Energy saving potential '[TJ']]]*Saving_measures[[#This Row],[EF of CO2 '[kg/GJ']]] -> 9902.789848 | O18: =Saving_measures[[#This Row],[Energy saving potential '[TJ']]]*Saving_measures[[#This Row],[EF of CH4 '[g/GJ']]] -> 719.5919727 | P18: =Saving_measures[[#This Row],[Energy saving potential '[TJ']]]*Saving_measures[[#This Row],[EF of N2O '[g/GJ']]] -> 126.2210373 | Q18: =Saving_measures[[#This Row],[Energy saving potential '[TJ']]]*Saving_measures[[#This Row],[EF of CO2 eq '[kg/GJ']]] -> 9958.393516 | R18: =VLOOKUP(Saving_measures[[#This Row],[Energy carrier saved]] & "#" & Saving_measures[[#This Row],[The most similar sector]],Emiskoef,2,FALSE) -> 66.29939364 | S18: =VLOOKUP(Saving_measures[[#This Row],[Energy carrier saved]] & "#" & Saving_measures[[#This Row],[The most similar sector]],Emiskoef,3,FALSE) -> 4.817683925 | T18: =VLOOKUP(Saving_measures[[#This Row],[Energy carrier saved]] & "#" & Saving_measures[[#This Row],[The most similar sector]],Emiskoef,4,FALSE) -> 0.8450525932 | U18: =Saving_measures[[#This Row],[EF of CO2 '[kg/GJ']]]+0.025*Saving_measures[[#This Row],[EF of CH4 '[g/GJ']]]+0.298*Saving_measures[[#This Row],[EF of N2O '[g/GJ']]] -> 66.67166142 | V18: =1000*Saving_measures[[#This Row],[Unit investments '[€/GJ']]]/Saving_measures[[#This Row],[EF of CO2 eq '[kg/GJ']]] -> 126.7820404
A19: Installation flue gas pre-heaters to boilers | B19: TYP | C19: =Saving_measures[[#This Row],[Measure]] & "#" & Saving_measures[[#This Row],[Cost type]] -> Installation flue gas pre-heaters to boilers#TYP | D19: 12.17379103 | E19: =VLOOKUP(Saving_measures[[#This Row],[Measure detail]],Potential_of_measures!$C$1:$E$192,3,0) -> 0 | F19: =Saving_measures[[#This Row],[Unit investments '[€/GJ']]]/Saving_measures[[#This Row],[Payback period w/o subsidy '[y']]] -> 12.17379103 | G19: =Saving_measures[[#This Row],[Energy saving potential '[TJ']]]*Saving_measures[[#This Row],[Unit investments '[€/GJ']]]*1000 -> 6667227.576 | H19: =Saving_measures[[#This Row],[Subsidy share '[%']]]*Saving_measures[[#This Row],[Investment costs '[€']]] -> 0 | I19: 1 | J19: =VLOOKUP(Saving_measures[[#This Row],[Measure detail]],Potential_of_measures!$C$1:$E$192,2,0) -> 547.6706112 | K19: 20 | L19: Fuels and heat | M19: Industry | N19: =Saving_measures[[#This Row],[Energy saving potential '[TJ']]]*Saving_measures[[#This Row],[EF of CO2 '[kg/GJ']]] -> 36310.22944 | O19: =Saving_measures[[#This Row],[Energy saving potential '[TJ']]]*Saving_measures[[#This Row],[EF of CH4 '[g/GJ']]] -> 2638.5039 | P19: =Saving_measures[[#This Row],[Energy saving potential '[TJ']]]*Saving_measures[[#This Row],[EF of N2O '[g/GJ']]] -> 462.8104702 | Q19: =Saving_measures[[#This Row],[Energy saving potential '[TJ']]]*Saving_measures[[#This Row],[EF of CO2 eq '[kg/GJ']]] -> 36514.10956 | R19: =VLOOKUP(Saving_measures[[#This Row],[Energy carrier saved]] & "#" & Saving_measures[[#This Row],[The most similar sector]],Emiskoef,2,FALSE) -> 66.29939364 | S19: =VLOOKUP(Saving_measures[[#This Row],[Energy carrier saved]] & "#" & Saving_measures[[#This Row],[The most similar sector]],Emiskoef,3,FALSE) -> 4.817683925 | T19: =VLOOKUP(Saving_measures[[#This Row],[Energy carrier saved]] & "#" & Saving_measures[[#This Row],[The most similar sector]],Emiskoef,4,FALSE) -> 0.8450525932 | U19: =Saving_measures[[#This Row],[EF of CO2 '[kg/GJ']]]+0.025*Saving_measures[[#This Row],[EF of CH4 '[g/GJ']]]+0.298*Saving_measures[[#This Row],[EF of N2O '[g/GJ']]] -> 66.67166142 | V19: =1000*Saving_measures[[#This Row],[Unit investments '[€/GJ']]]/Saving_measures[[#This Row],[EF of CO2 eq '[kg/GJ']]] -> 182.5931854
A20: Installation of cogeneration units | B20: MAX | C20: =Saving_measures[[#This Row],[Measure]] & "#" & Saving_measures[[#This Row],[Cost type]] -> Installation of cogeneration units#MAX | D20: 39.21568627 | E20: =VLOOKUP(Saving_measures[[#This Row],[Measure detail]],Potential_of_measures!$C$1:$E$192,3,0) -> 0.5 | F20: =Saving_measures[[#This Row],[Unit investments '[€/GJ']]]/Saving_measures[[#This Row],[Payback period w/o subsidy '[y']]] -> 6.535947712 | G20: =Saving_measures[[#This Row],[Energy saving potential '[TJ']]]*Saving_measures[[#This Row],[Unit investments '[€/GJ']]]*1000 -> 17185949.53 | H20: =Saving_measures[[#This Row],[Subsidy share '[%']]]*Saving_measures[[#This Row],[Investment costs '[€']]] -> 8592974.763 | I20: 6 | J20: =VLOOKUP(Saving_measures[[#This Row],[Measure detail]],Potential_of_measures!$C$1:$E$192,2,0) -> 438.2417129 | K20: 15 | L20: Fuels and heat | M20: Industry | N20: =Saving_measures[[#This Row],[Energy saving potential '[TJ']]]*Saving_measures[[#This Row],[EF of CO2 '[kg/GJ']]] -> 29055.15984 | O20: =Saving_measures[[#This Row],[Energy saving potential '[TJ']]]*Saving_measures[[#This Row],[EF of CH4 '[g/GJ']]] -> 2111.310055 | P20: =Saving_measures[[#This Row],[Energy saving potential '[TJ']]]*Saving_measures[[#This Row],[EF of N2O '[g/GJ']]] -> 370.3372959 | Q20: =Saving_measures[[#This Row],[Energy saving potential '[TJ']]]*Saving_measures[[#This Row],[EF of CO2 eq '[kg/GJ']]] -> 29218.3031 | R20: =VLOOKUP(Saving_measures[[#This Row],[Energy carrier saved]] & "#" & Saving_measures[[#This Row],[The most similar sector]],Emiskoef,2,FALSE) -> 66.29939364 | S20: =VLOOKUP(Saving_measures[[#This Row],[Energy carrier saved]] & "#" & Saving_measures[[#This Row],[The most similar sector]],Emiskoef,3,FALSE) -> 4.817683925 | T20: =VLOOKUP(Saving_measures[[#This Row],[Energy carrier saved]] & "#" & Saving_measures[[#This Row],[The most similar sector]],Emiskoef,4,FALSE) -> 0.8450525932 | U20: =Saving_measures[[#This Row],[EF of CO2 '[kg/GJ']]]+0.025*Saving_measures[[#This Row],[EF of CH4 '[g/GJ']]]+0.298*Saving_measures[[#This Row],[EF of N2O '[g/GJ']]] -> 66.67166142 | V20: =1000*Saving_measures[[#This Row],[Unit investments '[€/GJ']]]/Saving_measures[[#This Row],[EF of CO2 eq '[kg/GJ']]] -> 588.1912261
A21: Installation of cogeneration units | B21: MIN | C21: =Saving_measures[[#This Row],[Measure]] & "#" & Saving_measures[[#This Row],[Cost type]] -> Installation of cogeneration units#MIN | D21: 13.7254902 | E21: =VLOOKUP(Saving_measures[[#This Row],[Measure detail]],Potential_of_measures!$C$1:$E$192,3,0) -> 0 | F21: =Saving_measures[[#This Row],[Unit investments '[€/GJ']]]/Saving_measures[[#This Row],[Payback period w/o subsidy '[y']]] -> 2.745098039 | G21: =Saving_measures[[#This Row],[Energy saving potential '[TJ']]]*Saving_measures[[#This Row],[Unit investments '[€/GJ']]]*1000 -> 6015082.334 | H21: =Saving_measures[[#This Row],[Subsidy share '[%']]]*Saving_measures[[#This Row],[Investment costs '[€']]] -> 0 | I21: 5 | J21: =VLOOKUP(Saving_measures[[#This Row],[Measure detail]],Potential_of_measures!$C$1:$E$192,2,0) -> 438.2417129 | K21: 15 | L21: Fuels and heat | M21: Industry | N21: =Saving_measures[[#This Row],[Energy saving potential '[TJ']]]*Saving_measures[[#This Row],[EF of CO2 '[kg/GJ']]] -> 29055.15984 | O21: =Saving_measures[[#This Row],[Energy saving potential '[TJ']]]*Saving_measures[[#This Row],[EF of CH4 '[g/GJ']]] -> 2111.310055 | P21: =Saving_measures[[#This Row],[Energy saving potential '[TJ']]]*Saving_measures[[#This Row],[EF of N2O '[g/GJ']]] -> 370.3372959 | Q21: =Saving_measures[[#This Row],[Energy saving potential '[TJ']]]*Saving_measures[[#This Row],[EF of CO2 eq '[kg/GJ']]] -> 29218.3031 | R21: =VLOOKUP(Saving_measures[[#This Row],[Energy carrier saved]] & "#" & Saving_measures[[#This Row],[The most similar sector]],Emiskoef,2,FALSE) -> 66.29939364 | S21: =VLOOKUP(Saving_measures[[#This Row],[Energy carrier saved]] & "#" & Saving_measures[[#This Row],[The most similar sector]],Emiskoef,3,FALSE) -> 4.817683925 | T21: =VLOOKUP(Saving_measures[[#This Row],[Energy carrier saved]] & "#" & Saving_measures[[#This Row],[The most similar sector]],Emiskoef,4,FALSE) -> 0.8450525932 | U21: =Saving_measures[[#This Row],[EF of CO2 '[kg/GJ']]]+0.025*Saving_measures[[#This Row],[EF of CH4 '[g/GJ']]]+0.298*Saving_measures[[#This Row],[EF of N2O '[g/GJ']]] -> 66.67166142 | V21: =1000*Saving_measures[[#This Row],[Unit investments '[€/GJ']]]/Saving_measures[[#This Row],[EF of CO2 eq '[kg/GJ']]] -> 205.8669291
A22: Installation of cogeneration units | B22: TYP | C22: =Saving_measures[[#This Row],[Measure]] & "#" & Saving_measures[[#This Row],[Cost type]] -> Installation of cogeneration units#TYP | D22: 31.37254902 | E22: =VLOOKUP(Saving_measures[[#This Row],[Measure detail]],Potential_of_measures!$C$1:$E$192,3,0) -> 0.1666666667 | F22: =Saving_measures[[#This Row],[Unit investments '[€/GJ']]]/Saving_measures[[#This Row],[Payback period w/o subsidy '[y']]] -> 7.843137255 | G22: =Saving_measures[[#This Row],[Energy saving potential '[TJ']]]*Saving_measures[[#This Row],[Unit investments '[€/GJ']]]*1000 -> 27497519.24 | H22: =Saving_measures[[#This Row],[Subsidy share '[%']]]*Saving_measures[[#This Row],[Investment costs '[€']]] -> 4582919.874 | I22: 4 | J22: =VLOOKUP(Saving_measures[[#This Row],[Measure detail]],Potential_of_measures!$C$1:$E$192,2,0) -> 876.4834258 | K22: 15 | L22: Fuels and heat | M22: Industry | N22: =Saving_measures[[#This Row],[Energy saving potential '[TJ']]]*Saving_measures[[#This Row],[EF of CO2 '[kg/GJ']]] -> 58110.31967 | O22: =Saving_measures[[#This Row],[Energy saving potential '[TJ']]]*Saving_measures[[#This Row],[EF of CH4 '[g/GJ']]] -> 4222.620111 | P22: =Saving_measures[[#This Row],[Energy saving potential '[TJ']]]*Saving_measures[[#This Row],[EF of N2O '[g/GJ']]] -> 740.6745919 | Q22: =Saving_measures[[#This Row],[Energy saving potential '[TJ']]]*Saving_measures[[#This Row],[EF of CO2 eq '[kg/GJ']]] -> 58436.6062 | R22: =VLOOKUP(Saving_measures[[#This Row],[Energy carrier saved]] & "#" & Saving_measures[[#This Row],[The most similar sector]],Emiskoef,2,FALSE) -> 66.29939364 | S22: =VLOOKUP(Saving_measures[[#This Row],[Energy carrier saved]] & "#" & Saving_measures[[#This Row],[The most similar sector]],Emiskoef,3,FALSE) -> 4.817683925 | T22: =VLOOKUP(Saving_measures[[#This Row],[Energy carrier saved]] & "#" & Saving_measures[[#This Row],[The most similar sector]],Emiskoef,4,FALSE) -> 0.8450525932 | U22: =Saving_measures[[#This Row],[EF of CO2 '[kg/GJ']]]+0.025*Saving_measures[[#This Row],[EF of CH4 '[g/GJ']]]+0.298*Saving_measures[[#This Row],[EF of N2O '[g/GJ']]] -> 66.67166142 | V22: =1000*Saving_measures[[#This Row],[Unit investments '[€/GJ']]]/Saving_measures[[#This Row],[EF of CO2 eq '[kg/GJ']]] -> 470.5529809
A23: Installation of frequency inverters | B23: MAX | C23: =Saving_measures[[#This Row],[Measure]] & "#" & Saving_measures[[#This Row],[Cost type]] -> Installation of frequency inverters#MAX | D23: 211.7647059 | E23: =VLOOKUP(Saving_measures[[#This Row],[Measure detail]],Potential_of_measures!$C$1:$E$192,3,0) -> 0.5833333333 | F23: =Saving_measures[[#This Row],[Unit investments '[€/GJ']]]/Saving_measures[[#This Row],[Payback period w/o subsidy '[y']]] -> 17.64705882 | G23: =Saving_measures[[#This Row],[Energy saving potential '[TJ']]]*Saving_measures[[#This Row],[Unit investments '[€/GJ']]]*1000 -> 85717282.3 | H23: =Saving_measures[[#This Row],[Subsidy share '[%']]]*Saving_measures[[#This Row],[Investment costs '[€']]] -> 50001748.01 | I23: 12 | J23: =VLOOKUP(Saving_measures[[#This Row],[Measure detail]],Potential_of_measures!$C$1:$E$192,2,0) -> 404.7760553 | K23: 15 | L23: Electricity | M23: Industry | N23: =Saving_measures[[#This Row],[Energy saving potential '[TJ']]]*Saving_measures[[#This Row],[EF of CO2 '[kg/GJ']]] -> 98484.18264 | O23: =Saving_measures[[#This Row],[Energy saving potential '[TJ']]]*Saving_measures[[#This Row],[EF of CH4 '[g/GJ']]] -> 1052.182086 | P23: =Saving_measures[[#This Row],[Energy saving potential '[TJ']]]*Saving_measures[[#This Row],[EF of N2O '[g/GJ']]] -> 1381.094406 | Q23: =Saving_measures[[#This Row],[Energy saving potential '[TJ']]]*Saving_measures[[#This Row],[EF of CO2 eq '[kg/GJ']]] -> 98922.05333 | R23: =VLOOKUP(Saving_measures[[#This Row],[Energy carrier saved]] & "#" & Saving_measures[[#This Row],[The most similar sector]],Emiskoef,2,FALSE) -> 243.305357 | S23: =VLOOKUP(Saving_measures[[#This Row],[Energy carrier saved]] & "#" & Saving_measures[[#This Row],[The most similar sector]],Emiskoef,3,FALSE) -> 2.599417806 | T23: =VLOOKUP(Saving_measures[[#This Row],[Energy carrier saved]] & "#" & Saving_measures[[#This Row],[The most similar sector]],Emiskoef,4,FALSE) -> 3.411996308 | U23: =Saving_measures[[#This Row],[EF of CO2 '[kg/GJ']]]+0.025*Saving_measures[[#This Row],[EF of CH4 '[g/GJ']]]+0.298*Saving_measures[[#This Row],[EF of N2O '[g/GJ']]] -> 244.3871173 | V23: =1000*Saving_measures[[#This Row],[Unit investments '[€/GJ']]]/Saving_measures[[#This Row],[EF of CO2 eq '[kg/GJ']]] -> 866.5133751
A24: Installation of frequency inverters | B24: MIN | C24: =Saving_measures[[#This Row],[Measure]] & "#" & Saving_measures[[#This Row],[Cost type]] -> Installation of frequency inverters#MIN | D24: 58.82352941 | E24: =VLOOKUP(Saving_measures[[#This Row],[Measure detail]],Potential_of_measures!$C$1:$E$192,3,0) -> 0 | F24: =Saving_measures[[#This Row],[Unit investments '[€/GJ']]]/Saving_measures[[#This Row],[Payback period w/o subsidy '[y']]] -> 29.41176471 | G24: =Saving_measures[[#This Row],[Energy saving potential '[TJ']]]*Saving_measures[[#This Row],[Unit investments '[€/GJ']]]*1000 -> 2645595.133 | H24: =Saving_measures[[#This Row],[Subsidy share '[%']]]*Saving_measures[[#This Row],[Investment costs '[€']]] -> 0 | I24: 2 | J24: =VLOOKUP(Saving_measures[[#This Row],[Measure detail]],Potential_of_measures!$C$1:$E$192,2,0) -> 44.97511726 | K24: 15 | L24: Electricity | M24: Industry | N24: =Saving_measures[[#This Row],[Energy saving potential '[TJ']]]*Saving_measures[[#This Row],[EF of CO2 '[kg/GJ']]] -> 10942.68696 | O24: =Saving_measures[[#This Row],[Energy saving potential '[TJ']]]*Saving_measures[[#This Row],[EF of CH4 '[g/GJ']]] -> 116.9091206 | P24: =Saving_measures[[#This Row],[Energy saving potential '[TJ']]]*Saving_measures[[#This Row],[EF of N2O '[g/GJ']]] -> 153.454934 | Q24: =Saving_measures[[#This Row],[Energy saving potential '[TJ']]]*Saving_measures[[#This Row],[EF of CO2 eq '[kg/GJ']]] -> 10991.33926 | R24: =VLOOKUP(Saving_measures[[#This Row],[Energy carrier saved]] & "#" & Saving_measures[[#This Row],[The most similar sector]],Emiskoef,2,FALSE) -> 243.305357 | S24: =VLOOKUP(Saving_measures[[#This Row],[Energy carrier saved]] & "#" & Saving_measures[[#This Row],[The most similar sector]],Emiskoef,3,FALSE) -> 2.599417806 | T24: =VLOOKUP(Saving_measures[[#This Row],[Energy carrier saved]] & "#" & Saving_measures[[#This Row],[The most similar sector]],Emiskoef,4,FALSE) -> 3.411996308 | U24: =Saving_measures[[#This Row],[EF of CO2 '[kg/GJ']]]+0.025*Saving_measures[[#This Row],[EF of CH4 '[g/GJ']]]+0.298*Saving_measures[[#This Row],[EF of N2O '[g/GJ']]] -> 244.3871173 | V24: =1000*Saving_measures[[#This Row],[Unit investments '[€/GJ']]]/Saving_measures[[#This Row],[EF of CO2 eq '[kg/GJ']]] -> 240.6981598
A25: Installation of frequency inverters | B25: TYP | C25: =Saving_measures[[#This Row],[Measure]] & "#" & Saving_measures[[#This Row],[Cost type]] -> Installation of frequency inverters#TYP | D25: 82.35294118 | E25: =VLOOKUP(Saving_measures[[#This Row],[Measure detail]],Potential_of_measures!$C$1:$E$192,3,0) -> 0.1666666667 | F25: =Saving_measures[[#This Row],[Unit investments '[€/GJ']]]/Saving_measures[[#This Row],[Payback period w/o subsidy '[y']]] -> 13.7254902 | G25: =Saving_measures[[#This Row],[Energy saving potential '[TJ']]]*Saving_measures[[#This Row],[Unit investments '[€/GJ']]]*1000 -> 37038331.86 | H25: =Saving_measures[[#This Row],[Subsidy share '[%']]]*Saving_measures[[#This Row],[Investment costs '[€']]] -> 6173055.31 | I25: 6 | J25: =VLOOKUP(Saving_measures[[#This Row],[Measure detail]],Potential_of_measures!$C$1:$E$192,2,0) -> 449.7511726 | K25: 15 | L25: Electricity | M25: Industry | N25: =Saving_measures[[#This Row],[Energy saving potential '[TJ']]]*Saving_measures[[#This Row],[EF of CO2 '[kg/GJ']]] -> 109426.8696 | O25: =Saving_measures[[#This Row],[Energy saving potential '[TJ']]]*Saving_measures[[#This Row],[EF of CH4 '[g/GJ']]] -> 1169.091206 | P25: =Saving_measures[[#This Row],[Energy saving potential '[TJ']]]*Saving_measures[[#This Row],[EF of N2O '[g/GJ']]] -> 1534.54934 | Q25: =Saving_measures[[#This Row],[Energy saving potential '[TJ']]]*Saving_measures[[#This Row],[EF of CO2 eq '[kg/GJ']]] -> 109913.3926 | R25: =VLOOKUP(Saving_measures[[#This Row],[Energy carrier saved]] & "#" & Saving_measures[[#This Row],[The most similar sector]],Emiskoef,2,FALSE) -> 243.305357 | S25: =VLOOKUP(Saving_measures[[#This Row],[Energy carrier saved]] & "#" & Saving_measures[[#This Row],[The most similar sector]],Emiskoef,3,FALSE) -> 2.599417806 | T25: =VLOOKUP(Saving_measures[[#This Row],[Energy carrier saved]] & "#" & Saving_measures[[#This Row],[The most similar sector]],Emiskoef,4,FALSE) -> 3.411996308 | U25: =Saving_measures[[#This Row],[EF of CO2 '[kg/GJ']]]+0.025*Saving_measures[[#This Row],[EF of CH4 '[g/GJ']]]+0.298*Saving_measures[[#This Row],[EF of N2O '[g/GJ']]] -> 244.3871173 | V25: =1000*Saving_measures[[#This Row],[Unit investments '[€/GJ']]]/Saving_measures[[#This Row],[EF of CO2 eq '[kg/GJ']]] -> 336.9774237
A26: Installation of heat pumps | B26: MAX | C26: =Saving_measures[[#This Row],[Measure]] & "#" & Saving_measures[[#This Row],[Cost type]] -> Installation of heat pumps#MAX | D26: 92.49455721 | E26: =VLOOKUP(Saving_measures[[#This Row],[Measure detail]],Potential_of_measures!$C$1:$E$192,3,0) -> 0.5 | F26: =Saving_measures[[#This Row],[Unit investments '[€/GJ']]]/Saving_measures[[#This Row],[Payback period w/o subsidy '[y']]] -> 9.249455721 | G26: =Saving_measures[[#This Row],[Energy saving potential '[TJ']]]*Saving_measures[[#This Row],[Unit investments '[€/GJ']]]*1000 -> 469414193.5 | H26: =Saving_measures[[#This Row],[Subsidy share '[%']]]*Saving_measures[[#This Row],[Investment costs '[€']]] -> 234707096.8 | I26: 10 | J26: =VLOOKUP(Saving_measures[[#This Row],[Measure detail]],Potential_of_measures!$C$1:$E$192,2,0) -> 5075.046659 | K26: 15 | L26: Fuels and heat | M26: Industry | N26: =Saving_measures[[#This Row],[Energy saving potential '[TJ']]]*Saving_measures[[#This Row],[EF of CO2 '[kg/GJ']]] -> 336472.5162 | O26: =Saving_measures[[#This Row],[Energy saving potential '[TJ']]]*Saving_measures[[#This Row],[EF of CH4 '[g/GJ']]] -> 24449.9707 | P26: =Saving_measures[[#This Row],[Energy saving potential '[TJ']]]*Saving_measures[[#This Row],[EF of N2O '[g/GJ']]] -> 4288.68134 | Q26: =Saving_measures[[#This Row],[Energy saving potential '[TJ']]]*Saving_measures[[#This Row],[EF of CO2 eq '[kg/GJ']]] -> 338361.7925 | R26: =VLOOKUP(Saving_measures[[#This Row],[Energy carrier saved]] & "#" & Saving_measures[[#This Row],[The most similar sector]],Emiskoef,2,FALSE) -> 66.29939364 | S26: =VLOOKUP(Saving_measures[[#This Row],[Energy carrier saved]] & "#" & Saving_measures[[#This Row],[The most similar sector]],Emiskoef,3,FALSE) -> 4.817683925 | T26: =VLOOKUP(Saving_measures[[#This Row],[Energy carrier saved]] & "#" & Saving_measures[[#This Row],[The most similar sector]],Emiskoef,4,FALSE) -> 0.8450525932 | U26: =Saving_measures[[#This Row],[EF of CO2 '[kg/GJ']]]+0.025*Saving_measures[[#This Row],[EF of CH4 '[g/GJ']]]+0.298*Saving_measures[[#This Row],[EF of N2O '[g/GJ']]] -> 66.67166142 | V26: =1000*Saving_measures[[#This Row],[Unit investments '[€/GJ']]]/Saving_measures[[#This Row],[EF of CO2 eq '[kg/GJ']]] -> 1387.314419
A27: Installation of heat pumps | B27: MIN | C27: =Saving_measures[[#This Row],[Measure]] & "#" & Saving_measures[[#This Row],[Cost type]] -> Installation of heat pumps#MIN | D27: 50.71661562 | E27: =VLOOKUP(Saving_measures[[#This Row],[Measure detail]],Potential_of_measures!$C$1:$E$192,3,0) -> 0 | F27: =Saving_measures[[#This Row],[Unit investments '[€/GJ']]]/Saving_measures[[#This Row],[Payback period w/o subsidy '[y']]] -> 16.90553854 | G27: =Saving_measures[[#This Row],[Energy saving potential '[TJ']]]*Saving_measures[[#This Row],[Unit investments '[€/GJ']]]*1000 -> 34318558.75 | H27: =Saving_measures[[#This Row],[Subsidy share '[%']]]*Saving_measures[[#This Row],[Investment costs '[€']]] -> 0 | I27: 3 | J27: =VLOOKUP(Saving_measures[[#This Row],[Measure detail]],Potential_of_measures!$C$1:$E$192,2,0) -> 676.6728878 | K27: 15 | L27: Fuels and heat | M27: Industry | N27: =Saving_measures[[#This Row],[Energy saving potential '[TJ']]]*Saving_measures[[#This Row],[EF of CO2 '[kg/GJ']]] -> 44863.00216 | O27: =Saving_measures[[#This Row],[Energy saving potential '[TJ']]]*Saving_measures[[#This Row],[EF of CH4 '[g/GJ']]] -> 3259.996094 | P27: =Saving_measures[[#This Row],[Energy saving potential '[TJ']]]*Saving_measures[[#This Row],[EF of N2O '[g/GJ']]] -> 571.8241786 | Q27: =Saving_measures[[#This Row],[Energy saving potential '[TJ']]]*Saving_measures[[#This Row],[EF of CO2 eq '[kg/GJ']]] -> 45114.90567 | R27: =VLOOKUP(Saving_measures[[#This Row],[Energy carrier saved]] & "#" & Saving_measures[[#This Row],[The most similar sector]],Emiskoef,2,FALSE) -> 66.29939364 | S27: =VLOOKUP(Saving_measures[[#This Row],[Energy carrier saved]] & "#" & Saving_measures[[#This Row],[The most similar sector]],Emiskoef,3,FALSE) -> 4.817683925 | T27: =VLOOKUP(Saving_measures[[#This Row],[Energy carrier saved]] & "#" & Saving_measures[[#This Row],[The most similar sector]],Emiskoef,4,FALSE) -> 0.8450525932 | U27: =Saving_measures[[#This Row],[EF of CO2 '[kg/GJ']]]+0.025*Saving_measures[[#This Row],[EF of CH4 '[g/GJ']]]+0.298*Saving_measures[[#This Row],[EF of N2O '[g/GJ']]] -> 66.67166142 | V27: =1000*Saving_measures[[#This Row],[Unit investments '[€/GJ']]]/Saving_measures[[#This Row],[EF of CO2 eq '[kg/GJ']]] -> 760.6922422
A28: Installation of heat pumps | B28: TYP | C28: =Saving_measures[[#This Row],[Measure]] & "#" & Saving_measures[[#This Row],[Cost type]] -> Installation of heat pumps#TYP | D28: 73.04274619 | E28: =VLOOKUP(Saving_measures[[#This Row],[Measure detail]],Potential_of_measures!$C$1:$E$192,3,0) -> 0.1666666667 | F28: =Saving_measures[[#This Row],[Unit investments '[€/GJ']]]/Saving_measures[[#This Row],[Payback period w/o subsidy '[y']]] -> 12.17379103 | G28: =Saving_measures[[#This Row],[Energy saving potential '[TJ']]]*Saving_measures[[#This Row],[Unit investments '[€/GJ']]]*1000 -> 197704184 | H28: =Saving_measures[[#This Row],[Subsidy share '[%']]]*Saving_measures[[#This Row],[Investment costs '[€']]] -> 32950697.33 | I28: 6 | J28: =VLOOKUP(Saving_measures[[#This Row],[Measure detail]],Potential_of_measures!$C$1:$E$192,2,0) -> 2706.691551 | K28: 15 | L28: Fuels and heat | M28: Industry | N28: =Saving_measures[[#This Row],[Energy saving potential '[TJ']]]*Saving_measures[[#This Row],[EF of CO2 '[kg/GJ']]] -> 179452.0086 | O28: =Saving_measures[[#This Row],[Energy saving potential '[TJ']]]*Saving_measures[[#This Row],[EF of CH4 '[g/GJ']]] -> 13039.98438 | P28: =Saving_measures[[#This Row],[Energy saving potential '[TJ']]]*Saving_measures[[#This Row],[EF of N2O '[g/GJ']]] -> 2287.296714 | Q28: =Saving_measures[[#This Row],[Energy saving potential '[TJ']]]*Saving_measures[[#This Row],[EF of CO2 eq '[kg/GJ']]] -> 180459.6227 | R28: =VLOOKUP(Saving_measures[[#This Row],[Energy carrier saved]] & "#" & Saving_measures[[#This Row],[The most similar sector]],Emiskoef,2,FALSE) -> 66.29939364 | S28: =VLOOKUP(Saving_measures[[#This Row],[Energy carrier saved]] & "#" & Saving_measures[[#This Row],[The most similar sector]],Emiskoef,3,FALSE) -> 4.817683925 | T28: =VLOOKUP(Saving_measures[[#This Row],[Energy carrier saved]] & "#" & Saving_measures[[#This Row],[The most similar sector]],Emiskoef,4,FALSE) -> 0.8450525932 | U28: =Saving_measures[[#This Row],[EF of CO2 '[kg/GJ']]]+0.025*Saving_measures[[#This Row],[EF of CH4 '[g/GJ']]]+0.298*Saving_measures[[#This Row],[EF of N2O '[g/GJ']]] -> 66.67166142 | V28: =1000*Saving_measures[[#This Row],[Unit investments '[€/GJ']]]/Saving_measures[[#This Row],[EF of CO2 eq '[kg/GJ']]] -> 1095.559112
A29: Installation of photovoltaic systems (for electricity generation) | B29: MAX | C29: =Saving_measures[[#This Row],[Measure]] & "#" & Saving_measures[[#This Row],[Cost type]] -> Installation of photovoltaic systems (for electricity generation)#MAX | D29: 670.5882353 | E29: =VLOOKUP(Saving_measures[[#This Row],[Measure detail]],Potential_of_measures!$C$1:$E$192,3,0) -> 0.8214285714 | F29: =Saving_measures[[#This Row],[Unit investments '[€/GJ']]]/Saving_measures[[#This Row],[Payback period w/o subsidy '[y']]] -> 23.94957983 | G29: =Saving_measures[[#This Row],[Energy saving potential '[TJ']]]*Saving_measures[[#This Row],[Unit investments '[€/GJ']]]*1000 -> 1142115605 | H29: =Saving_measures[[#This Row],[Subsidy share '[%']]]*Saving_measures[[#This Row],[Investment costs '[€']]] -> 938166389.6 | I29: 28 | J29: =VLOOKUP(Saving_measures[[#This Row],[Measure detail]],Potential_of_measures!$C$1:$E$192,2,0) -> 1703.154849 | K29: 20 | L29: Electricity | M29: Industry | N29: =Saving_measures[[#This Row],[Energy saving potential '[TJ']]]*Saving_measures[[#This Row],[EF of CO2 '[kg/GJ']]] -> 414386.6986 | O29: =Saving_measures[[#This Row],[Energy saving potential '[TJ']]]*Saving_measures[[#This Row],[EF of CH4 '[g/GJ']]] -> 4427.211041 | P29: =Saving_measures[[#This Row],[Energy saving potential '[TJ']]]*Saving_measures[[#This Row],[EF of N2O '[g/GJ']]] -> 5811.158057 | Q29: =Saving_measures[[#This Row],[Energy saving potential '[TJ']]]*Saving_measures[[#This Row],[EF of CO2 eq '[kg/GJ']]] -> 416229.104 | R29: =VLOOKUP(Saving_measures[[#This Row],[Energy carrier saved]] & "#" & Saving_measures[[#This Row],[The most similar sector]],Emiskoef,2,FALSE) -> 243.305357 | S29: =VLOOKUP(Saving_measures[[#This Row],[Energy carrier saved]] & "#" & Saving_measures[[#This Row],[The most similar sector]],Emiskoef,3,FALSE) -> 2.599417806 | T29: =VLOOKUP(Saving_measures[[#This Row],[Energy carrier saved]] & "#" & Saving_measures[[#This Row],[The most similar sector]],Emiskoef,4,FALSE) -> 3.411996308 | U29: =Saving_measures[[#This Row],[EF of CO2 '[kg/GJ']]]+0.025*Saving_measures[[#This Row],[EF of CH4 '[g/GJ']]]+0.298*Saving_measures[[#This Row],[EF of N2O '[g/GJ']]] -> 244.3871173 | V29: =1000*Saving_measures[[#This Row],[Unit investments '[€/GJ']]]/Saving_measures[[#This Row],[EF of CO2 eq '[kg/GJ']]] -> 2743.959021
A30: Installation of photovoltaic systems (for electricity generation) | B30: MIN | C30: =Saving_measures[[#This Row],[Measure]] & "#" & Saving_measures[[#This Row],[Cost type]] -> Installation of photovoltaic systems (for electricity generation)#MIN | D30: 186.2745098 | E30: =VLOOKUP(Saving_measures[[#This Row],[Measure detail]],Potential_of_measures!$C$1:$E$192,3,0) -> 0.5 | F30: =Saving_measures[[#This Row],[Unit investments '[€/GJ']]]/Saving_measures[[#This Row],[Payback period w/o subsidy '[y']]] -> 18.62745098 | G30: =Saving_measures[[#This Row],[Energy saving potential '[TJ']]]*Saving_measures[[#This Row],[Unit investments '[€/GJ']]]*1000 -> 63450866.93 | H30: =Saving_measures[[#This Row],[Subsidy share '[%']]]*Saving_measures[[#This Row],[Investment costs '[€']]] -> 31725433.46 | I30: 10 | J30: =VLOOKUP(Saving_measures[[#This Row],[Measure detail]],Potential_of_measures!$C$1:$E$192,2,0) -> 340.6309698 | K30: 20 | L30: Electricity | M30: Industry | N30: =Saving_measures[[#This Row],[Energy saving potential '[TJ']]]*Saving_measures[[#This Row],[EF of CO2 '[kg/GJ']]] -> 82877.33972 | O30: =Saving_measures[[#This Row],[Energy saving potential '[TJ']]]*Saving_measures[[#This Row],[EF of CH4 '[g/GJ']]] -> 885.4422082 | P30: =Saving_measures[[#This Row],[Energy saving potential '[TJ']]]*Saving_measures[[#This Row],[EF of N2O '[g/GJ']]] -> 1162.231611 | Q30: =Saving_measures[[#This Row],[Energy saving potential '[TJ']]]*Saving_measures[[#This Row],[EF of CO2 eq '[kg/GJ']]] -> 83245.82079 | R30: =VLOOKUP(Saving_measures[[#This Row],[Energy carrier saved]] & "#" & Saving_measures[[#This Row],[The most similar sector]],Emiskoef,2,FALSE) -> 243.305357 | S30: =VLOOKUP(Saving_measures[[#This Row],[Energy carrier saved]] & "#" & Saving_measures[[#This Row],[The most similar sector]],Emiskoef,3,FALSE) -> 2.599417806 | T30: =VLOOKUP(Saving_measures[[#This Row],[Energy carrier saved]] & "#" & Saving_measures[[#This Row],[The most similar sector]],Emiskoef,4,FALSE) -> 3.411996308 | U30: =Saving_measures[[#This Row],[EF of CO2 '[kg/GJ']]]+0.025*Saving_measures[[#This Row],[EF of CH4 '[g/GJ']]]+0.298*Saving_measures[[#This Row],[EF of N2O '[g/GJ']]] -> 244.3871173 | V30: =1000*Saving_measures[[#This Row],[Unit investments '[€/GJ']]]/Saving_measures[[#This Row],[EF of CO2 eq '[kg/GJ']]] -> 762.2108392
A31: Installation of photovoltaic systems (for electricity generation) | B31: TYP | C31: =Saving_measures[[#This Row],[Measure]] & "#" & Saving_measures[[#This Row],[Cost type]] -> Installation of photovoltaic systems (for electricity generation)#TYP | D31: 260.7843137 | E31: =VLOOKUP(Saving_measures[[#This Row],[Measure detail]],Potential_of_measures!$C$1:$E$192,3,0) -> 0.7368421053 | F31: =Saving_measures[[#This Row],[Unit investments '[€/GJ']]]/Saving_measures[[#This Row],[Payback period w/o subsidy '[y']]] -> 13.7254902 | G31: =Saving_measures[[#This Row],[Energy saving potential '[TJ']]]*Saving_measures[[#This Row],[Unit investments '[€/GJ']]]*1000 -> 1243636992 | H31: =Saving_measures[[#This Row],[Subsidy share '[%']]]*Saving_measures[[#This Row],[Investment costs '[€']]] -> 916364099.2 | I31: 19 | J31: =VLOOKUP(Saving_measures[[#This Row],[Measure detail]],Potential_of_measures!$C$1:$E$192,2,0) -> 4768.833578 | K31: 20 | L31: Electricity | M31: Industry | N31: =Saving_measures[[#This Row],[Energy saving potential '[TJ']]]*Saving_measures[[#This Row],[EF of CO2 '[kg/GJ']]] -> 1160282.756 | O31: =Saving_measures[[#This Row],[Energy saving potential '[TJ']]]*Saving_measures[[#This Row],[EF of CH4 '[g/GJ']]] -> 12396.19091 | P31: =Saving_measures[[#This Row],[Energy saving potential '[TJ']]]*Saving_measures[[#This Row],[EF of N2O '[g/GJ']]] -> 16271.24256 | Q31: =Saving_measures[[#This Row],[Energy saving potential '[TJ']]]*Saving_measures[[#This Row],[EF of CO2 eq '[kg/GJ']]] -> 1165441.491 | R31: =VLOOKUP(Saving_measures[[#This Row],[Energy carrier saved]] & "#" & Saving_measures[[#This Row],[The most similar sector]],Emiskoef,2,FALSE) -> 243.305357 | S31: =VLOOKUP(Saving_measures[[#This Row],[Energy carrier saved]] & "#" & Saving_measures[[#This Row],[The most similar sector]],Emiskoef,3,FALSE) -> 2.599417806 | T31: =VLOOKUP(Saving_measures[[#This Row],[Energy carrier saved]] & "#" & Saving_measures[[#This Row],[The most similar sector]],Emiskoef,4,FALSE) -> 3.411996308 | U31: =Saving_measures[[#This Row],[EF of CO2 '[kg/GJ']]]+0.025*Saving_measures[[#This Row],[EF of CH4 '[g/GJ']]]+0.298*Saving_measures[[#This Row],[EF of N2O '[g/GJ']]] -> 244.3871173 | V31: =1000*Saving_measures[[#This Row],[Unit investments '[€/GJ']]]/Saving_measures[[#This Row],[EF of CO2 eq '[kg/GJ']]] -> 1067.095175
A32: Installation of solar thermal systems (for heat generation) | B32: MAX | C32: =Saving_measures[[#This Row],[Measure]] & "#" & Saving_measures[[#This Row],[Cost type]] -> Installation of solar thermal systems (for heat generation)#MAX | D32: 488.5366877 | E32: =VLOOKUP(Saving_measures[[#This Row],[Measure detail]],Potential_of_measures!$C$1:$E$192,3,0) -> 0.8214285714 | F32: =Saving_measures[[#This Row],[Unit investments '[€/GJ']]]/Saving_measures[[#This Row],[Payback period w/o subsidy '[y']]] -> 17.44773885 | G32: =Saving_measures[[#This Row],[Energy saving potential '[TJ']]]*Saving_measures[[#This Row],[Unit investments '[€/GJ']]]*1000 -> 18364194.05 | H32: =Saving_measures[[#This Row],[Subsidy share '[%']]]*Saving_measures[[#This Row],[Investment costs '[€']]] -> 15084873.69 | I32: 28 | J32: =VLOOKUP(Saving_measures[[#This Row],[Measure detail]],Potential_of_measures!$C$1:$E$192,2,0) -> 37.59020462 | K32: 20 | L32: Heat | M32: Industry | N32: =Saving_measures[[#This Row],[Energy saving potential '[TJ']]]*Saving_measures[[#This Row],[EF of CO2 '[kg/GJ']]] -> 3568.300338 | O32: =Saving_measures[[#This Row],[Energy saving potential '[TJ']]]*Saving_measures[[#This Row],[EF of CH4 '[g/GJ']]] -> 43.1638644 | P32: =Saving_measures[[#This Row],[Energy saving potential '[TJ']]]*Saving_measures[[#This Row],[EF of N2O '[g/GJ']]] -> 42.10805581 | Q32: =Saving_measures[[#This Row],[Energy saving potential '[TJ']]]*Saving_measures[[#This Row],[EF of CO2 eq '[kg/GJ']]] -> 3581.927635 | R32: =VLOOKUP(Saving_measures[[#This Row],[Energy carrier saved]] & "#" & Saving_measures[[#This Row],[The most similar sector]],Emiskoef,2,FALSE) -> 94.92633451 | S32: =VLOOKUP(Saving_measures[[#This Row],[Energy carrier saved]] & "#" & Saving_measures[[#This Row],[The most similar sector]],Emiskoef,3,FALSE) -> 1.14827426 | T32: =VLOOKUP(Saving_measures[[#This Row],[Energy carrier saved]] & "#" & Saving_measures[[#This Row],[The most similar sector]],Emiskoef,4,FALSE) -> 1.120186927 | U32: =Saving_measures[[#This Row],[EF of CO2 '[kg/GJ']]]+0.025*Saving_measures[[#This Row],[EF of CH4 '[g/GJ']]]+0.298*Saving_measures[[#This Row],[EF of N2O '[g/GJ']]] -> 95.28885707 | V32: =1000*Saving_measures[[#This Row],[Unit investments '[€/GJ']]]/Saving_measures[[#This Row],[EF of CO2 eq '[kg/GJ']]] -> 5126.902586
A33: Installation of solar thermal systems (for heat generation) | B33: MIN | C33: =Saving_measures[[#This Row],[Measure]] & "#" & Saving_measures[[#This Row],[Cost type]] -> Installation of solar thermal systems (for heat generation)#MIN | D33: 218.3299463 | E33: =VLOOKUP(Saving_measures[[#This Row],[Measure detail]],Potential_of_measures!$C$1:$E$192,3,0) -> 0.6666666667 | F33: =Saving_measures[[#This Row],[Unit investments '[€/GJ']]]/Saving_measures[[#This Row],[Payback period w/o subsidy '[y']]] -> 14.55532976 | G33: =Saving_measures[[#This Row],[Energy saving potential '[TJ']]]*Saving_measures[[#This Row],[Unit investments '[€/GJ']]]*1000 -> 3517314.582 | H33: =Saving_measures[[#This Row],[Subsidy share '[%']]]*Saving_measures[[#This Row],[Investment costs '[€']]] -> 2344876.388 | I33: 15 | J33: =VLOOKUP(Saving_measures[[#This Row],[Measure detail]],Potential_of_measures!$C$1:$E$192,2,0) -> 16.11008769 | K33: 20 | L33: Heat | M33: Industry | N33: =Saving_measures[[#This Row],[Energy saving potential '[TJ']]]*Saving_measures[[#This Row],[EF of CO2 '[kg/GJ']]] -> 1529.271573 | O33: =Saving_measures[[#This Row],[Energy saving potential '[TJ']]]*Saving_measures[[#This Row],[EF of CH4 '[g/GJ']]] -> 18.49879903 | P33: =Saving_measures[[#This Row],[Energy saving potential '[TJ']]]*Saving_measures[[#This Row],[EF of N2O '[g/GJ']]] -> 18.04630963 | Q33: =Saving_measures[[#This Row],[Energy saving potential '[TJ']]]*Saving_measures[[#This Row],[EF of CO2 eq '[kg/GJ']]] -> 1535.111844 | R33: =VLOOKUP(Saving_measures[[#This Row],[Energy carrier saved]] & "#" & Saving_measures[[#This Row],[The most similar sector]],Emiskoef,2,FALSE) -> 94.92633451 | S33: =VLOOKUP(Saving_measures[[#This Row],[Energy carrier saved]] & "#" & Saving_measures[[#This Row],[The most similar sector]],Emiskoef,3,FALSE) -> 1.14827426 | T33: =VLOOKUP(Saving_measures[[#This Row],[Energy carrier saved]] & "#" & Saving_measures[[#This Row],[The most similar sector]],Emiskoef,4,FALSE) -> 1.120186927 | U33: =Saving_measures[[#This Row],[EF of CO2 '[kg/GJ']]]+0.025*Saving_measures[[#This Row],[EF of CH4 '[g/GJ']]]+0.298*Saving_measures[[#This Row],[EF of N2O '[g/GJ']]] -> 95.28885707 | V33: =1000*Saving_measures[[#This Row],[Unit investments '[€/GJ']]]/Saving_measures[[#This Row],[EF of CO2 eq '[kg/GJ']]] -> 2291.243206
A34: Installation of solar thermal systems (for heat generation) | B34: TYP | C34: =Saving_measures[[#This Row],[Measure]] & "#" & Saving_measures[[#This Row],[Cost type]] -> Installation of solar thermal systems (for heat generation)#TYP | D34: 312.3960665 | E34: =VLOOKUP(Saving_measures[[#This Row],[Measure detail]],Potential_of_measures!$C$1:$E$192,3,0) -> 0.8 | F34: =Saving_measures[[#This Row],[Unit investments '[€/GJ']]]/Saving_measures[[#This Row],[Payback period w/o subsidy '[y']]] -> 12.49584266 | G34: =Saving_measures[[#This Row],[Energy saving potential '[TJ']]]*Saving_measures[[#This Row],[Unit investments '[€/GJ']]]*1000 -> 16775760.09 | H34: =Saving_measures[[#This Row],[Subsidy share '[%']]]*Saving_measures[[#This Row],[Investment costs '[€']]] -> 13420608.07 | I34: 25 | J34: =VLOOKUP(Saving_measures[[#This Row],[Measure detail]],Potential_of_measures!$C$1:$E$192,2,0) -> 53.70029232 | K34: 20 | L34: Heat | M34: Industry | N34: =Saving_measures[[#This Row],[Energy saving potential '[TJ']]]*Saving_measures[[#This Row],[EF of CO2 '[kg/GJ']]] -> 5097.571912 | O34: =Saving_measures[[#This Row],[Energy saving potential '[TJ']]]*Saving_measures[[#This Row],[EF of CH4 '[g/GJ']]] -> 61.66266342 | P34: =Saving_measures[[#This Row],[Energy saving potential '[TJ']]]*Saving_measures[[#This Row],[EF of N2O '[g/GJ']]] -> 60.15436545 | Q34: =Saving_measures[[#This Row],[Energy saving potential '[TJ']]]*Saving_measures[[#This Row],[EF of CO2 eq '[kg/GJ']]] -> 5117.039479 | R34: =VLOOKUP(Saving_measures[[#This Row],[Energy carrier saved]] & "#" & Saving_measures[[#This Row],[The most similar sector]],Emiskoef,2,FALSE) -> 94.92633451 | S34: =VLOOKUP(Saving_measures[[#This Row],[Energy carrier saved]] & "#" & Saving_measures[[#This Row],[The most similar sector]],Emiskoef,3,FALSE) -> 1.14827426 | T34: =VLOOKUP(Saving_measures[[#This Row],[Energy carrier saved]] & "#" & Saving_measures[[#This Row],[The most similar sector]],Emiskoef,4,FALSE) -> 1.120186927 | U34: =Saving_measures[[#This Row],[EF of CO2 '[kg/GJ']]]+0.025*Saving_measures[[#This Row],[EF of CH4 '[g/GJ']]]+0.298*Saving_measures[[#This Row],[EF of N2O '[g/GJ']]] -> 95.28885707 | V34: =1000*Saving_measures[[#This Row],[Unit investments '[€/GJ']]]/Saving_measures[[#This Row],[EF of CO2 eq '[kg/GJ']]] -> 3278.411308
A35: Installation/replacement of compressors | B35: MAX | C35: =Saving_measures[[#This Row],[Measure]] & "#" & Saving_measures[[#This Row],[Cost type]] -> Installation/replacement of compressors#MAX | D35: 317.6470588 | E35: =VLOOKUP(Saving_measures[[#This Row],[Measure detail]],Potential_of_measures!$C$1:$E$192,3,0) -> 0.6666666667 | F35: =Saving_measures[[#This Row],[Unit investments '[€/GJ']]]/Saving_measures[[#This Row],[Payback period w/o subsidy '[y']]] -> 21.17647059 | G35: =Saving_measures[[#This Row],[Energy saving potential '[TJ']]]*Saving_measures[[#This Row],[Unit investments '[€/GJ']]]*1000 -> 688799589.9 | H35: =Saving_measures[[#This Row],[Subsidy share '[%']]]*Saving_measures[[#This Row],[Investment costs '[€']]] -> 459199726.6 | I35: 15 | J35: =VLOOKUP(Saving_measures[[#This Row],[Measure detail]],Potential_of_measures!$C$1:$E$192,2,0) -> 2168.443154 | K35: 15 | L35: Electricity | M35: Industry | N35: =Saving_measures[[#This Row],[Energy saving potential '[TJ']]]*Saving_measures[[#This Row],[EF of CO2 '[kg/GJ']]] -> 527593.8356 | O35: =Saving_measures[[#This Row],[Energy saving potential '[TJ']]]*Saving_measures[[#This Row],[EF of CH4 '[g/GJ']]] -> 5636.689744 | P35: =Saving_measures[[#This Row],[Energy saving potential '[TJ']]]*Saving_measures[[#This Row],[EF of N2O '[g/GJ']]] -> 7398.720033 | Q35: =Saving_measures[[#This Row],[Energy saving potential '[TJ']]]*Saving_measures[[#This Row],[EF of CO2 eq '[kg/GJ']]] -> 529939.5714 | R35: =VLOOKUP(Saving_measures[[#This Row],[Energy carrier saved]] & "#" & Saving_measures[[#This Row],[The most similar sector]],Emiskoef,2,FALSE) -> 243.305357 | S35: =VLOOKUP(Saving_measures[[#This Row],[Energy carrier saved]] & "#" & Saving_measures[[#This Row],[The most similar sector]],Emiskoef,3,FALSE) -> 2.599417806 | T35: =VLOOKUP(Saving_measures[[#This Row],[Energy carrier saved]] & "#" & Saving_measures[[#This Row],[The most similar sector]],Emiskoef,4,FALSE) -> 3.411996308 | U35: =Saving_measures[[#This Row],[EF of CO2 '[kg/GJ']]]+0.025*Saving_measures[[#This Row],[EF of CH4 '[g/GJ']]]+0.298*Saving_measures[[#This Row],[EF of N2O '[g/GJ']]] -> 244.3871173 | V35: =1000*Saving_measures[[#This Row],[Unit investments '[€/GJ']]]/Saving_measures[[#This Row],[EF of CO2 eq '[kg/GJ']]] -> 1299.770063
A36: Installation/replacement of compressors | B36: MIN | C36: =Saving_measures[[#This Row],[Measure]] & "#" & Saving_measures[[#This Row],[Cost type]] -> Installation/replacement of compressors#MIN | D36: 88.23529412 | E36: =VLOOKUP(Saving_measures[[#This Row],[Measure detail]],Potential_of_measures!$C$1:$E$192,3,0) -> 0 | F36: =Saving_measures[[#This Row],[Unit investments '[€/GJ']]]/Saving_measures[[#This Row],[Payback period w/o subsidy '[y']]] -> 29.41176471 | G36: =Saving_measures[[#This Row],[Energy saving potential '[TJ']]]*Saving_measures[[#This Row],[Unit investments '[€/GJ']]]*1000 -> 8503698.641 | H36: =Saving_measures[[#This Row],[Subsidy share '[%']]]*Saving_measures[[#This Row],[Investment costs '[€']]] -> 0 | I36: 3 | J36: =VLOOKUP(Saving_measures[[#This Row],[Measure detail]],Potential_of_measures!$C$1:$E$192,2,0) -> 96.37525127 | K36: 15 | L36: Electricity | M36: Industry | N36: =Saving_measures[[#This Row],[Energy saving potential '[TJ']]]*Saving_measures[[#This Row],[EF of CO2 '[kg/GJ']]] -> 23448.61492 | O36: =Saving_measures[[#This Row],[Energy saving potential '[TJ']]]*Saving_measures[[#This Row],[EF of CH4 '[g/GJ']]] -> 250.5195442 | P36: =Saving_measures[[#This Row],[Energy saving potential '[TJ']]]*Saving_measures[[#This Row],[EF of N2O '[g/GJ']]] -> 328.8320015 | Q36: =Saving_measures[[#This Row],[Energy saving potential '[TJ']]]*Saving_measures[[#This Row],[EF of CO2 eq '[kg/GJ']]] -> 23552.86984 | R36: =VLOOKUP(Saving_measures[[#This Row],[Energy carrier saved]] & "#" & Saving_measures[[#This Row],[The most similar sector]],Emiskoef,2,FALSE) -> 243.305357 | S36: =VLOOKUP(Saving_measures[[#This Row],[Energy carrier saved]] & "#" & Saving_measures[[#This Row],[The most similar sector]],Emiskoef,3,FALSE) -> 2.599417806 | T36: =VLOOKUP(Saving_measures[[#This Row],[Energy carrier saved]] & "#" & Saving_measures[[#This Row],[The most similar sector]],Emiskoef,4,FALSE) -> 3.411996308 | U36: =Saving_measures[[#This Row],[EF of CO2 '[kg/GJ']]]+0.025*Saving_measures[[#This Row],[EF of CH4 '[g/GJ']]]+0.298*Saving_measures[[#This Row],[EF of N2O '[g/GJ']]] -> 244.3871173 | V36: =1000*Saving_measures[[#This Row],[Unit investments '[€/GJ']]]/Saving_measures[[#This Row],[EF of CO2 eq '[kg/GJ']]] -> 361.0472396
A37: Installation/replacement of compressors | B37: TYP | C37: =Saving_measures[[#This Row],[Measure]] & "#" & Saving_measures[[#This Row],[Cost type]] -> Installation/replacement of compressors#TYP | D37: 123.5294118 | E37: =VLOOKUP(Saving_measures[[#This Row],[Measure detail]],Potential_of_measures!$C$1:$E$192,3,0) -> 0.4444444444 | F37: =Saving_measures[[#This Row],[Unit investments '[€/GJ']]]/Saving_measures[[#This Row],[Payback period w/o subsidy '[y']]] -> 13.7254902 | G37: =Saving_measures[[#This Row],[Energy saving potential '[TJ']]]*Saving_measures[[#This Row],[Unit investments '[€/GJ']]]*1000 -> 315487219.6 | H37: =Saving_measures[[#This Row],[Subsidy share '[%']]]*Saving_measures[[#This Row],[Investment costs '[€']]] -> 140216542 | I37: 9 | J37: =VLOOKUP(Saving_measures[[#This Row],[Measure detail]],Potential_of_measures!$C$1:$E$192,2,0) -> 2553.944159 | K37: 15 | L37: Electricity | M37: Industry | N37: =Saving_measures[[#This Row],[Energy saving potential '[TJ']]]*Saving_measures[[#This Row],[EF of CO2 '[kg/GJ']]] -> 621388.2953 | O37: =Saving_measures[[#This Row],[Energy saving potential '[TJ']]]*Saving_measures[[#This Row],[EF of CH4 '[g/GJ']]] -> 6638.767921 | P37: =Saving_measures[[#This Row],[Energy saving potential '[TJ']]]*Saving_measures[[#This Row],[EF of N2O '[g/GJ']]] -> 8714.048039 | Q37: =Saving_measures[[#This Row],[Energy saving potential '[TJ']]]*Saving_measures[[#This Row],[EF of CO2 eq '[kg/GJ']]] -> 624151.0508 | R37: =VLOOKUP(Saving_measures[[#This Row],[Energy carrier saved]] & "#" & Saving_measures[[#This Row],[The most similar sector]],Emiskoef,2,FALSE) -> 243.305357 | S37: =VLOOKUP(Saving_measures[[#This Row],[Energy carrier saved]] & "#" & Saving_measures[[#This Row],[The most similar sector]],Emiskoef,3,FALSE) -> 2.599417806 | T37: =VLOOKUP(Saving_measures[[#This Row],[Energy carrier saved]] & "#" & Saving_measures[[#This Row],[The most similar sector]],Emiskoef,4,FALSE) -> 3.411996308 | U37: =Saving_measures[[#This Row],[EF of CO2 '[kg/GJ']]]+0.025*Saving_measures[[#This Row],[EF of CH4 '[g/GJ']]]+0.298*Saving_measures[[#This Row],[EF of N2O '[g/GJ']]] -> 244.3871173 | V37: =1000*Saving_measures[[#This Row],[Unit investments '[€/GJ']]]/Saving_measures[[#This Row],[EF of CO2 eq '[kg/GJ']]] -> 505.4661355
A38: Replacement of coal boiler with new coal boiler | B38: MAX | C38: =Saving_measures[[#This Row],[Measure]] & "#" & Saving_measures[[#This Row],[Cost type]] -> Replacement of coal boiler with new coal boiler#MAX | D38: 70.02691314 | E38: =VLOOKUP(Saving_measures[[#This Row],[Measure detail]],Potential_of_measures!$C$1:$E$192,3,0) -> 0.75 | F38: =Saving_measures[[#This Row],[Unit investments '[€/GJ']]]/Saving_measures[[#This Row],[Payback period w/o subsidy '[y']]] -> 3.501345657 | G38: =Saving_measures[[#This Row],[Energy saving potential '[TJ']]]*Saving_measures[[#This Row],[Unit investments '[€/GJ']]]*1000 -> 80946291.91 | H38: =Saving_measures[[#This Row],[Subsidy share '[%']]]*Saving_measures[[#This Row],[Investment costs '[€']]] -> 60709718.93 | I38: 20 | J38: =VLOOKUP(Saving_measures[[#This Row],[Measure detail]],Potential_of_measures!$C$1:$E$192,2,0) -> 1155.931174 | K38: 20 | L38: Coal | M38: Industry | N38: =Saving_measures[[#This Row],[Energy saving potential '[TJ']]]*Saving_measures[[#This Row],[EF of CO2 '[kg/GJ']]] -> 105267.2569 | O38: =Saving_measures[[#This Row],[Energy saving potential '[TJ']]]*Saving_measures[[#This Row],[EF of CH4 '[g/GJ']]] -> 10004.07491 | P38: =Saving_measures[[#This Row],[Energy saving potential '[TJ']]]*Saving_measures[[#This Row],[EF of N2O '[g/GJ']]] -> 1491.971033 | Q38: =Saving_measures[[#This Row],[Energy saving potential '[TJ']]]*Saving_measures[[#This Row],[EF of CO2 eq '[kg/GJ']]] -> 105961.9661 | R38: =VLOOKUP(Saving_measures[[#This Row],[Energy carrier saved]] & "#" & Saving_measures[[#This Row],[The most similar sector]],Emiskoef,2,FALSE) -> 91.06706287 | S38: =VLOOKUP(Saving_measures[[#This Row],[Energy carrier saved]] & "#" & Saving_measures[[#This Row],[The most similar sector]],Emiskoef,3,FALSE) -> 8.654559321 | T38: =VLOOKUP(Saving_measures[[#This Row],[Energy carrier saved]] & "#" & Saving_measures[[#This Row],[The most similar sector]],Emiskoef,4,FALSE) -> 1.290709228 | U38: =Saving_measures[[#This Row],[EF of CO2 '[kg/GJ']]]+0.025*Saving_measures[[#This Row],[EF of CH4 '[g/GJ']]]+0.298*Saving_measures[[#This Row],[EF of N2O '[g/GJ']]] -> 91.66805821 | V38: =1000*Saving_measures[[#This Row],[Unit investments '[€/GJ']]]/Saving_measures[[#This Row],[EF of CO2 eq '[kg/GJ']]] -> 763.9183649
A39: Replacement of coal boilers with gas boilers | B39: MIN | C39: =Saving_measures[[#This Row],[Measure]] & "#" & Saving_measures[[#This Row],[Cost type]] -> Replacement of coal boilers with gas boilers#MIN | D39: 160.0358842 | E39: 0.9 | F39: =Saving_measures[[#This Row],[Unit investments '[€/GJ']]]/Saving_measures[[#This Row],[Payback period w/o subsidy '[y']]] -> 3.200717684 | G39: =Saving_measures[[#This Row],[Energy saving potential '[TJ']]]*Saving_measures[[#This Row],[Unit investments '[€/GJ']]]*1000 -> 83132539.58 | H39: 1907891.783 | I39: 50 | J39: =VLOOKUP(Saving_measures[[#This Row],[Measure detail]],Potential_of_measures!$C$1:$E$192,2,0) -> 519.4618695 | K39: 20 | L39: Coal | M39: Industry | N39: 28824.35015 | O39: 527.1164288 | P39: 53.13689618 | Q39: 28853.36286 | R39: 28824.35015 | S39: 527.1164288 | T39: 53.13689618 | U39: 28853.36286 | V39: 73563.07962
A40: Replacement of existing lighting with LED80 | B40: MAX | C40: =Saving_measures[[#This Row],[Measure]] & "#" & Saving_measures[[#This Row],[Cost type]] -> Replacement of existing lighting with LED80#MAX | D40: 24.70588235 | E40: =VLOOKUP(Saving_measures[[#This Row],[Measure detail]],Potential_of_measures!$C$1:$E$192,3,0) -> 0 | F40: =Saving_measures[[#This Row],[Unit investments '[€/GJ']]]/Saving_measures[[#This Row],[Payback period w/o subsidy '[y']]] -> 27.45098039 | G40: =Saving_measures[[#This Row],[Energy saving potential '[TJ']]]*Saving_measures[[#This Row],[Unit investments '[€/GJ']]]*1000 -> 16688389.56 | H40: =Saving_measures[[#This Row],[Subsidy share '[%']]]*Saving_measures[[#This Row],[Investment costs '[€']]] -> 0 | I40: 0.9 | J40: =VLOOKUP(Saving_measures[[#This Row],[Measure detail]],Potential_of_measures!$C$1:$E$192,2,0) -> 675.4824346 | K40: 8 | L40: Electricity | M40: Industry | N40: =Saving_measures[[#This Row],[Energy saving potential '[TJ']]]*Saving_measures[[#This Row],[EF of CO2 '[kg/GJ']]] -> 164348.4949 | O40: =Saving_measures[[#This Row],[Energy saving potential '[TJ']]]*Saving_measures[[#This Row],[EF of CH4 '[g/GJ']]] -> 1755.861068 | P40: =Saving_measures[[#This Row],[Energy saving potential '[TJ']]]*Saving_measures[[#This Row],[EF of N2O '[g/GJ']]] -> 2304.743573 | Q40: =Saving_measures[[#This Row],[Energy saving potential '[TJ']]]*Saving_measures[[#This Row],[EF of CO2 eq '[kg/GJ']]] -> 165079.205 | R40: =VLOOKUP(Saving_measures[[#This Row],[Energy carrier saved]] & "#" & Saving_measures[[#This Row],[The most similar sector]],Emiskoef,2,FALSE) -> 243.305357 | S40: =VLOOKUP(Saving_measures[[#This Row],[Energy carrier saved]] & "#" & Saving_measures[[#This Row],[The most similar sector]],Emiskoef,3,FALSE) -> 2.599417806 | T40: =VLOOKUP(Saving_measures[[#This Row],[Energy carrier saved]] & "#" & Saving_measures[[#This Row],[The most similar sector]],Emiskoef,4,FALSE) -> 3.411996308 | U40: =Saving_measures[[#This Row],[EF of CO2 '[kg/GJ']]]+0.025*Saving_measures[[#This Row],[EF of CH4 '[g/GJ']]]+0.298*Saving_measures[[#This Row],[EF of N2O '[g/GJ']]] -> 244.3871173 | V40: =1000*Saving_measures[[#This Row],[Unit investments '[€/GJ']]]/Saving_measures[[#This Row],[EF of CO2 eq '[kg/GJ']]] -> 101.0932271
A41: Replacement of lighting LED80 with LED110 | B41: MAX | C41: =Saving_measures[[#This Row],[Measure]] & "#" & Saving_measures[[#This Row],[Cost type]] -> Replacement of lighting LED80 with LED110#MAX | D41: 247.0588235 | E41: =VLOOKUP(Saving_measures[[#This Row],[Measure detail]],Potential_of_measures!$C$1:$E$192,3,0) -> 0.6666666667 | F41: =Saving_measures[[#This Row],[Unit investments '[€/GJ']]]/Saving_measures[[#This Row],[Payback period w/o subsidy '[y']]] -> 16.47058824 | G41: =Saving_measures[[#This Row],[Energy saving potential '[TJ']]]*Saving_measures[[#This Row],[Unit investments '[€/GJ']]]*1000 -> 27464308.23 | H41: =Saving_measures[[#This Row],[Subsidy share '[%']]]*Saving_measures[[#This Row],[Investment costs '[€']]] -> 18309538.82 | I41: 15 | J41: =VLOOKUP(Saving_measures[[#This Row],[Measure detail]],Potential_of_measures!$C$1:$E$192,2,0) -> 111.1650571 | K41: 8 | L41: Electricity | M41: Industry | N41: =Saving_measures[[#This Row],[Energy saving potential '[TJ']]]*Saving_measures[[#This Row],[EF of CO2 '[kg/GJ']]] -> 27047.05391 | O41: =Saving_measures[[#This Row],[Energy saving potential '[TJ']]]*Saving_measures[[#This Row],[EF of CH4 '[g/GJ']]] -> 288.9644288 | P41: =Saving_measures[[#This Row],[Energy saving potential '[TJ']]]*Saving_measures[[#This Row],[EF of N2O '[g/GJ']]] -> 379.2947644 | Q41: =Saving_measures[[#This Row],[Energy saving potential '[TJ']]]*Saving_measures[[#This Row],[EF of CO2 eq '[kg/GJ']]] -> 27167.30786 | R41: =VLOOKUP(Saving_measures[[#This Row],[Energy carrier saved]] & "#" & Saving_measures[[#This Row],[The most similar sector]],Emiskoef,2,FALSE) -> 243.305357 | S41: =VLOOKUP(Saving_measures[[#This Row],[Energy carrier saved]] & "#" & Saving_measures[[#This Row],[The most similar sector]],Emiskoef,3,FALSE) -> 2.599417806 | T41: =VLOOKUP(Saving_measures[[#This Row],[Energy carrier saved]] & "#" & Saving_measures[[#This Row],[The most similar sector]],Emiskoef,4,FALSE) -> 3.411996308 | U41: =Saving_measures[[#This Row],[EF of CO2 '[kg/GJ']]]+0.025*Saving_measures[[#This Row],[EF of CH4 '[g/GJ']]]+0.298*Saving_measures[[#This Row],[EF of N2O '[g/GJ']]] -> 244.3871173 | V41: =1000*Saving_measures[[#This Row],[Unit investments '[€/GJ']]]/Saving_measures[[#This Row],[EF of CO2 eq '[kg/GJ']]] -> 1010.932271
A42: Replacement of lighting LED80 with LED110 | B42: MIN | C42: =Saving_measures[[#This Row],[Measure]] & "#" & Saving_measures[[#This Row],[Cost type]] -> Replacement of lighting LED80 with LED110#MIN | D42: 68.62745098 | E42: =VLOOKUP(Saving_measures[[#This Row],[Measure detail]],Potential_of_measures!$C$1:$E$192,3,0) -> 0 | F42: =Saving_measures[[#This Row],[Unit investments '[€/GJ']]]/Saving_measures[[#This Row],[Payback period w/o subsidy '[y']]] -> 13.7254902 | G42: =Saving_measures[[#This Row],[Energy saving potential '[TJ']]]*Saving_measures[[#This Row],[Unit investments '[€/GJ']]]*1000 -> 1907243.627 | H42: =Saving_measures[[#This Row],[Subsidy share '[%']]]*Saving_measures[[#This Row],[Investment costs '[€']]] -> 0 | I42: 5 | J42: =VLOOKUP(Saving_measures[[#This Row],[Measure detail]],Potential_of_measures!$C$1:$E$192,2,0) -> 27.79126428 | K42: 8 | L42: Electricity | M42: Industry | N42: =Saving_measures[[#This Row],[Energy saving potential '[TJ']]]*Saving_measures[[#This Row],[EF of CO2 '[kg/GJ']]] -> 6761.763477 | O42: =Saving_measures[[#This Row],[Energy saving potential '[TJ']]]*Saving_measures[[#This Row],[EF of CH4 '[g/GJ']]] -> 72.24110721 | P42: =Saving_measures[[#This Row],[Energy saving potential '[TJ']]]*Saving_measures[[#This Row],[EF of N2O '[g/GJ']]] -> 94.8236911 | Q42: =Saving_measures[[#This Row],[Energy saving potential '[TJ']]]*Saving_measures[[#This Row],[EF of CO2 eq '[kg/GJ']]] -> 6791.826964 | R42: =VLOOKUP(Saving_measures[[#This Row],[Energy carrier saved]] & "#" & Saving_measures[[#This Row],[The most similar sector]],Emiskoef,2,FALSE) -> 243.305357 | S42: =VLOOKUP(Saving_measures[[#This Row],[Energy carrier saved]] & "#" & Saving_measures[[#This Row],[The most similar sector]],Emiskoef,3,FALSE) -> 2.599417806 | T42: =VLOOKUP(Saving_measures[[#This Row],[Energy carrier saved]] & "#" & Saving_measures[[#This Row],[The most similar sector]],Emiskoef,4,FALSE) -> 3.411996308 | U42: =Saving_measures[[#This Row],[EF of CO2 '[kg/GJ']]]+0.025*Saving_measures[[#This Row],[EF of CH4 '[g/GJ']]]+0.298*Saving_measures[[#This Row],[EF of N2O '[g/GJ']]] -> 244.3871173 | V42: =1000*Saving_measures[[#This Row],[Unit investments '[€/GJ']]]/Saving_measures[[#This Row],[EF of CO2 eq '[kg/GJ']]] -> 280.8145197
A43: Replacement of lighting LED80 with LED110 | B43: TYP | C43: =Saving_measures[[#This Row],[Measure]] & "#" & Saving_measures[[#This Row],[Cost type]] -> Replacement of lighting LED80 with LED110#TYP | D43: 96.07843137 | E43: =VLOOKUP(Saving_measures[[#This Row],[Measure detail]],Potential_of_measures!$C$1:$E$192,3,0) -> 0.2857142857 | F43: =Saving_measures[[#This Row],[Unit investments '[€/GJ']]]/Saving_measures[[#This Row],[Payback period w/o subsidy '[y']]] -> 13.7254902 | G43: =Saving_measures[[#This Row],[Energy saving potential '[TJ']]]*Saving_measures[[#This Row],[Unit investments '[€/GJ']]]*1000 -> 40052116.16 | H43: =Saving_measures[[#This Row],[Subsidy share '[%']]]*Saving_measures[[#This Row],[Investment costs '[€']]] -> 11443461.76 | I43: 7 | J43: =VLOOKUP(Saving_measures[[#This Row],[Measure detail]],Potential_of_measures!$C$1:$E$192,2,0) -> 416.8689642 | K43: 8 | L43: Electricity | M43: Industry | N43: =Saving_measures[[#This Row],[Energy saving potential '[TJ']]]*Saving_measures[[#This Row],[EF of CO2 '[kg/GJ']]] -> 101426.4521 | O43: =Saving_measures[[#This Row],[Energy saving potential '[TJ']]]*Saving_measures[[#This Row],[EF of CH4 '[g/GJ']]] -> 1083.616608 | P43: =Saving_measures[[#This Row],[Energy saving potential '[TJ']]]*Saving_measures[[#This Row],[EF of N2O '[g/GJ']]] -> 1422.355367 | Q43: =Saving_measures[[#This Row],[Energy saving potential '[TJ']]]*Saving_measures[[#This Row],[EF of CO2 eq '[kg/GJ']]] -> 101877.4045 | R43: =VLOOKUP(Saving_measures[[#This Row],[Energy carrier saved]] & "#" & Saving_measures[[#This Row],[The most similar sector]],Emiskoef,2,FALSE) -> 243.305357 | S43: =VLOOKUP(Saving_measures[[#This Row],[Energy carrier saved]] & "#" & Saving_measures[[#This Row],[The most similar sector]],Emiskoef,3,FALSE) -> 2.599417806 | T43: =VLOOKUP(Saving_measures[[#This Row],[Energy carrier saved]] & "#" & Saving_measures[[#This Row],[The most similar sector]],Emiskoef,4,FALSE) -> 3.411996308 | U43: =Saving_measures[[#This Row],[EF of CO2 '[kg/GJ']]]+0.025*Saving_measures[[#This Row],[EF of CH4 '[g/GJ']]]+0.298*Saving_measures[[#This Row],[EF of N2O '[g/GJ']]] -> 244.3871173 | V43: =1000*Saving_measures[[#This Row],[Unit investments '[€/GJ']]]/Saving_measures[[#This Row],[EF of CO2 eq '[kg/GJ']]] -> 393.1403276
A44: Replacement of coal boiler with biomass boiler | B44: TYP | C44: =Saving_measures[[#This Row],[Measure]] & "#" & Saving_measures[[#This Row],[Cost type]] -> Replacement of coal boiler with biomass boiler#TYP | E44: =VLOOKUP(Saving_measures[[#This Row],[Measure detail]],Potential_of_measures!$C$1:$E$192,3,0) -> 1.9 | F44: =Saving_measures[[#This Row],[Unit investments '[€/GJ']]]/Saving_measures[[#This Row],[Payback period w/o subsidy '[y']]] ->  | G44: =Saving_measures[[#This Row],[Energy saving potential '[TJ']]]*Saving_measures[[#This Row],[Unit investments '[€/GJ']]]*1000 -> 0 | H44: =Saving_measures[[#This Row],[Subsidy share '[%']]]*Saving_measures[[#This Row],[Investment costs '[€']]] -> 0 | J44: =VLOOKUP(Saving_measures[[#This Row],[Measure detail]],Potential_of_measures!$C$1:$E$192,2,0) -> 520.4618695 | N44: =Saving_measures[[#This Row],[Energy saving potential '[TJ']]]*Saving_measures[[#This Row],[EF of CO2 '[kg/GJ']]] ->  | O44: =Saving_measures[[#This Row],[Energy saving potential '[TJ']]]*Saving_measures[[#This Row],[EF of CH4 '[g/GJ']]] ->  | P44: =Saving_measures[[#This Row],[Energy saving potential '[TJ']]]*Saving_measures[[#This Row],[EF of N2O '[g/GJ']]] ->  | Q44: =Saving_measures[[#This Row],[Energy saving potential '[TJ']]]*Saving_measures[[#This Row],[EF of CO2 eq '[kg/GJ']]] ->  | R44: =VLOOKUP(Saving_measures[[#This Row],[Energy carrier saved]] & "#" & Saving_measures[[#This Row],[The most similar sector]],Emiskoef,2,FALSE) ->  | S44: =VLOOKUP(Saving_measures[[#This Row],[Energy carrier saved]] & "#" & Saving_measures[[#This Row],[The most similar sector]],Emiskoef,3,FALSE) ->  | T44: =VLOOKUP(Saving_measures[[#This Row],[Energy carrier saved]] & "#" & Saving_measures[[#This Row],[The most similar sector]],Emiskoef,4,FALSE) ->  | U44: =Saving_measures[[#This Row],[EF of CO2 '[kg/GJ']]]+0.025*Saving_measures[[#This Row],[EF of CH4 '[g/GJ']]]+0.298*Saving_measures[[#This Row],[EF of N2O '[g/GJ']]] ->  | V44: =1000*Saving_measures[[#This Row],[Unit investments '[€/GJ']]]/Saving_measures[[#This Row],[EF of CO2 eq '[kg/GJ']]] -> 
A45: Thermal insulation of technologies | B45: MAX | C45: =Saving_measures[[#This Row],[Measure]] & "#" & Saving_measures[[#This Row],[Cost type]] -> Thermal insulation of technologies#MAX | D45: 182.9930258 | E45: =VLOOKUP(Saving_measures[[#This Row],[Measure detail]],Potential_of_measures!$C$1:$E$192,3,0) -> 0.5 | F45: =Saving_measures[[#This Row],[Unit investments '[€/GJ']]]/Saving_measures[[#This Row],[Payback period w/o subsidy '[y']]] -> 18.29930258 | G45: =Saving_measures[[#This Row],[Energy saving potential '[TJ']]]*Saving_measures[[#This Row],[Unit investments '[€/GJ']]]*1000 -> 477426805.9 | H45: =Saving_measures[[#This Row],[Subsidy share '[%']]]*Saving_measures[[#This Row],[Investment costs '[€']]] -> 238713402.9 | I45: 10 | J45: =VLOOKUP(Saving_measures[[#This Row],[Measure detail]],Potential_of_measures!$C$1:$E$192,2,0) -> 2608.989078 | K45: 20 | L45: Fuels and heat | M45: Industry | N45: =Saving_measures[[#This Row],[Energy saving potential '[TJ']]]*Saving_measures[[#This Row],[EF of CO2 '[kg/GJ']]] -> 172974.3939 | O45: =Saving_measures[[#This Row],[Energy saving potential '[TJ']]]*Saving_measures[[#This Row],[EF of CH4 '[g/GJ']]] -> 12569.28474 | P45: =Saving_measures[[#This Row],[Energy saving potential '[TJ']]]*Saving_measures[[#This Row],[EF of N2O '[g/GJ']]] -> 2204.732986 | Q45: =Saving_measures[[#This Row],[Energy saving potential '[TJ']]]*Saving_measures[[#This Row],[EF of CO2 eq '[kg/GJ']]] -> 173945.6365 | R45: =VLOOKUP(Saving_measures[[#This Row],[Energy carrier saved]] & "#" & Saving_measures[[#This Row],[The most similar sector]],Emiskoef,2,FALSE) -> 66.29939364 | S45: =VLOOKUP(Saving_measures[[#This Row],[Energy carrier saved]] & "#" & Saving_measures[[#This Row],[The most similar sector]],Emiskoef,3,FALSE) -> 4.817683925 | T45: =VLOOKUP(Saving_measures[[#This Row],[Energy carrier saved]] & "#" & Saving_measures[[#This Row],[The most similar sector]],Emiskoef,4,FALSE) -> 0.8450525932 | U45: =Saving_measures[[#This Row],[EF of CO2 '[kg/GJ']]]+0.025*Saving_measures[[#This Row],[EF of CH4 '[g/GJ']]]+0.298*Saving_measures[[#This Row],[EF of N2O '[g/GJ']]] -> 66.67166142 | V45: =1000*Saving_measures[[#This Row],[Unit investments '[€/GJ']]]/Saving_measures[[#This Row],[EF of CO2 eq '[kg/GJ']]] -> 2744.689752
A46: Thermal insulation of technologies | B46: MIN | C46: =Saving_measures[[#This Row],[Measure]] & "#" & Saving_measures[[#This Row],[Cost type]] -> Thermal insulation of technologies#MIN | D46: 57.38494541 | E46: =VLOOKUP(Saving_measures[[#This Row],[Measure detail]],Potential_of_measures!$C$1:$E$192,3,0) -> 0 | F46: =Saving_measures[[#This Row],[Unit investments '[€/GJ']]]/Saving_measures[[#This Row],[Payback period w/o subsidy '[y']]] -> 19.12831514 | G46: =Saving_measures[[#This Row],[Energy saving potential '[TJ']]]*Saving_measures[[#This Row],[Unit investments '[€/GJ']]]*1000 -> 13610608.71 | H46: =Saving_measures[[#This Row],[Subsidy share '[%']]]*Saving_measures[[#This Row],[Investment costs '[€']]] -> 0 | I46: 3 | J46: =VLOOKUP(Saving_measures[[#This Row],[Measure detail]],Potential_of_measures!$C$1:$E$192,2,0) -> 237.1808253 | K46: 20 | L46: Fuels and heat | M46: Industry | N46: =Saving_measures[[#This Row],[Energy saving potential '[TJ']]]*Saving_measures[[#This Row],[EF of CO2 '[kg/GJ']]] -> 15724.9449 | O46: =Saving_measures[[#This Row],[Energy saving potential '[TJ']]]*Saving_measures[[#This Row],[EF of CH4 '[g/GJ']]] -> 1142.662249 | P46: =Saving_measures[[#This Row],[Energy saving potential '[TJ']]]*Saving_measures[[#This Row],[EF of N2O '[g/GJ']]] -> 200.4302715 | Q46: =Saving_measures[[#This Row],[Energy saving potential '[TJ']]]*Saving_measures[[#This Row],[EF of CO2 eq '[kg/GJ']]] -> 15813.23968 | R46: =VLOOKUP(Saving_measures[[#This Row],[Energy carrier saved]] & "#" & Saving_measures[[#This Row],[The most similar sector]],Emiskoef,2,FALSE) -> 66.29939364 | S46: =VLOOKUP(Saving_measures[[#This Row],[Energy carrier saved]] & "#" & Saving_measures[[#This Row],[The most similar sector]],Emiskoef,3,FALSE) -> 4.817683925 | T46: =VLOOKUP(Saving_measures[[#This Row],[Energy carrier saved]] & "#" & Saving_measures[[#This Row],[The most similar sector]],Emiskoef,4,FALSE) -> 0.8450525932 | U46: =Saving_measures[[#This Row],[EF of CO2 '[kg/GJ']]]+0.025*Saving_measures[[#This Row],[EF of CH4 '[g/GJ']]]+0.298*Saving_measures[[#This Row],[EF of N2O '[g/GJ']]] -> 66.67166142 | V46: =1000*Saving_measures[[#This Row],[Unit investments '[€/GJ']]]/Saving_measures[[#This Row],[EF of CO2 eq '[kg/GJ']]] -> 860.7096957
A47: Thermal insulation of technologies | B47: TYP | C47: =Saving_measures[[#This Row],[Measure]] & "#" & Saving_measures[[#This Row],[Cost type]] -> Thermal insulation of technologies#TYP | D47: 82.35294118 | E47: =VLOOKUP(Saving_measures[[#This Row],[Measure detail]],Potential_of_measures!$C$1:$E$192,3,0) -> 0.1666666667 | F47: =Saving_measures[[#This Row],[Unit investments '[€/GJ']]]/Saving_measures[[#This Row],[Payback period w/o subsidy '[y']]] -> 13.7254902 | G47: =Saving_measures[[#This Row],[Energy saving potential '[TJ']]]*Saving_measures[[#This Row],[Unit investments '[€/GJ']]]*1000 -> 156260308.4 | H47: =Saving_measures[[#This Row],[Subsidy share '[%']]]*Saving_measures[[#This Row],[Investment costs '[€']]] -> 26043384.74 | I47: 6 | J47: =VLOOKUP(Saving_measures[[#This Row],[Measure detail]],Potential_of_measures!$C$1:$E$192,2,0) -> 1897.446603 | K47: 20 | L47: Fuels and heat | M47: Industry | N47: =Saving_measures[[#This Row],[Energy saving potential '[TJ']]]*Saving_measures[[#This Row],[EF of CO2 '[kg/GJ']]] -> 125799.5592 | O47: =Saving_measures[[#This Row],[Energy saving potential '[TJ']]]*Saving_measures[[#This Row],[EF of CH4 '[g/GJ']]] -> 9141.297995 | P47: =Saving_measures[[#This Row],[Energy saving potential '[TJ']]]*Saving_measures[[#This Row],[EF of N2O '[g/GJ']]] -> 1603.442172 | Q47: =Saving_measures[[#This Row],[Energy saving potential '[TJ']]]*Saving_measures[[#This Row],[EF of CO2 eq '[kg/GJ']]] -> 126505.9174 | R47: =VLOOKUP(Saving_measures[[#This Row],[Energy carrier saved]] & "#" & Saving_measures[[#This Row],[The most similar sector]],Emiskoef,2,FALSE) -> 66.29939364 | S47: =VLOOKUP(Saving_measures[[#This Row],[Energy carrier saved]] & "#" & Saving_measures[[#This Row],[The most similar sector]],Emiskoef,3,FALSE) -> 4.817683925 | T47: =VLOOKUP(Saving_measures[[#This Row],[Energy carrier saved]] & "#" & Saving_measures[[#This Row],[The most similar sector]],Emiskoef,4,FALSE) -> 0.8450525932 | U47: =Saving_measures[[#This Row],[EF of CO2 '[kg/GJ']]]+0.025*Saving_measures[[#This Row],[EF of CH4 '[g/GJ']]]+0.298*Saving_measures[[#This Row],[EF of N2O '[g/GJ']]] -> 66.67166142 | V47: =1000*Saving_measures[[#This Row],[Unit investments '[€/GJ']]]/Saving_measures[[#This Row],[EF of CO2 eq '[kg/GJ']]] -> 1235.201575
A48: Transformers replacement | B48: MAX | C48: =Saving_measures[[#This Row],[Measure]] & "#" & Saving_measures[[#This Row],[Cost type]] -> Transformers replacement#MAX | D48: 423.5294118 | E48: =VLOOKUP(Saving_measures[[#This Row],[Measure detail]],Potential_of_measures!$C$1:$E$192,3,0) -> 0.6428571429 | F48: =Saving_measures[[#This Row],[Unit investments '[€/GJ']]]/Saving_measures[[#This Row],[Payback period w/o subsidy '[y']]] -> 30.25210084 | G48: =Saving_measures[[#This Row],[Energy saving potential '[TJ']]]*Saving_measures[[#This Row],[Unit investments '[€/GJ']]]*1000 -> 90228718.21 | H48: =Saving_measures[[#This Row],[Subsidy share '[%']]]*Saving_measures[[#This Row],[Investment costs '[€']]] -> 58004175.99 | I48: 14 | J48: =VLOOKUP(Saving_measures[[#This Row],[Measure detail]],Potential_of_measures!$C$1:$E$192,2,0) -> 213.0400291 | K48: 20 | L48: Electricity | M48: Energy | N48: =Saving_measures[[#This Row],[Energy saving potential '[TJ']]]*Saving_measures[[#This Row],[EF of CO2 '[kg/GJ']]] -> 51833.78034 | O48: =Saving_measures[[#This Row],[Energy saving potential '[TJ']]]*Saving_measures[[#This Row],[EF of CH4 '[g/GJ']]] -> 553.780045 | P48: =Saving_measures[[#This Row],[Energy saving potential '[TJ']]]*Saving_measures[[#This Row],[EF of N2O '[g/GJ']]] -> 726.8917928 | Q48: =Saving_measures[[#This Row],[Energy saving potential '[TJ']]]*Saving_measures[[#This Row],[EF of CO2 eq '[kg/GJ']]] -> 52064.23859 | R48: =VLOOKUP(Saving_measures[[#This Row],[Energy carrier saved]] & "#" & Saving_measures[[#This Row],[The most similar sector]],Emiskoef,2,FALSE) -> 243.305357 | S48: =VLOOKUP(Saving_measures[[#This Row],[Energy carrier saved]] & "#" & Saving_measures[[#This Row],[The most similar sector]],Emiskoef,3,FALSE) -> 2.599417806 | T48: =VLOOKUP(Saving_measures[[#This Row],[Energy carrier saved]] & "#" & Saving_measures[[#This Row],[The most similar sector]],Emiskoef,4,FALSE) -> 3.411996308 | U48: =Saving_measures[[#This Row],[EF of CO2 '[kg/GJ']]]+0.025*Saving_measures[[#This Row],[EF of CH4 '[g/GJ']]]+0.298*Saving_measures[[#This Row],[EF of N2O '[g/GJ']]] -> 244.3871173 | V48: =1000*Saving_measures[[#This Row],[Unit investments '[€/GJ']]]/Saving_measures[[#This Row],[EF of CO2 eq '[kg/GJ']]] -> 1733.02675
A49: Transformers replacement | B49: MIN | C49: =Saving_measures[[#This Row],[Measure]] & "#" & Saving_measures[[#This Row],[Cost type]] -> Transformers replacement#MIN | D49: 117.6470588 | E49: =VLOOKUP(Saving_measures[[#This Row],[Measure detail]],Potential_of_measures!$C$1:$E$192,3,0) -> 0.1666666667 | F49: =Saving_measures[[#This Row],[Unit investments '[€/GJ']]]/Saving_measures[[#This Row],[Payback period w/o subsidy '[y']]] -> 19.60784314 | G49: =Saving_measures[[#This Row],[Energy saving potential '[TJ']]]*Saving_measures[[#This Row],[Unit investments '[€/GJ']]]*1000 -> 25063532.84 | H49: =Saving_measures[[#This Row],[Subsidy share '[%']]]*Saving_measures[[#This Row],[Investment costs '[€']]] -> 4177255.473 | I49: 6 | J49: =VLOOKUP(Saving_measures[[#This Row],[Measure detail]],Potential_of_measures!$C$1:$E$192,2,0) -> 213.0400291 | K49: 20 | L49: Electricity | M49: Energy | N49: =Saving_measures[[#This Row],[Energy saving potential '[TJ']]]*Saving_measures[[#This Row],[EF of CO2 '[kg/GJ']]] -> 51833.78034 | O49: =Saving_measures[[#This Row],[Energy saving potential '[TJ']]]*Saving_measures[[#This Row],[EF of CH4 '[g/GJ']]] -> 553.780045 | P49: =Saving_measures[[#This Row],[Energy saving potential '[TJ']]]*Saving_measures[[#This Row],[EF of N2O '[g/GJ']]] -> 726.8917928 | Q49: =Saving_measures[[#This Row],[Energy saving potential '[TJ']]]*Saving_measures[[#This Row],[EF of CO2 eq '[kg/GJ']]] -> 52064.23859 | R49: =VLOOKUP(Saving_measures[[#This Row],[Energy carrier saved]] & "#" & Saving_measures[[#This Row],[The most similar sector]],Emiskoef,2,FALSE) -> 243.305357 | S49: =VLOOKUP(Saving_measures[[#This Row],[Energy carrier saved]] & "#" & Saving_measures[[#This Row],[The most similar sector]],Emiskoef,3,FALSE) -> 2.599417806 | T49: =VLOOKUP(Saving_measures[[#This Row],[Energy carrier saved]] & "#" & Saving_measures[[#This Row],[The most similar sector]],Emiskoef,4,FALSE) -> 3.411996308 | U49: =Saving_measures[[#This Row],[EF of CO2 '[kg/GJ']]]+0.025*Saving_measures[[#This Row],[EF of CH4 '[g/GJ']]]+0.298*Saving_measures[[#This Row],[EF of N2O '[g/GJ']]] -> 244.3871173 | V49: =1000*Saving_measures[[#This Row],[Unit investments '[€/GJ']]]/Saving_measures[[#This Row],[EF of CO2 eq '[kg/GJ']]] -> 481.3963195
A50: Transformers replacement | B50: TYP | C50: =Saving_measures[[#This Row],[Measure]] & "#" & Saving_measures[[#This Row],[Cost type]] -> Transformers replacement#TYP | D50: 164.7058824 | E50: =VLOOKUP(Saving_measures[[#This Row],[Measure detail]],Potential_of_measures!$C$1:$E$192,3,0) -> 0.5833333333 | F50: =Saving_measures[[#This Row],[Unit investments '[€/GJ']]]/Saving_measures[[#This Row],[Payback period w/o subsidy '[y']]] -> 13.7254902 | G50: =Saving_measures[[#This Row],[Energy saving potential '[TJ']]]*Saving_measures[[#This Row],[Unit investments '[€/GJ']]]*1000 -> 163748414.5 | H50: =Saving_measures[[#This Row],[Subsidy share '[%']]]*Saving_measures[[#This Row],[Investment costs '[€']]] -> 95519908.48 | I50: 12 | J50: =VLOOKUP(Saving_measures[[#This Row],[Measure detail]],Potential_of_measures!$C$1:$E$192,2,0) -> 994.1868025 | K50: 20 | L50: Electricity | M50: Energy | N50: =Saving_measures[[#This Row],[Energy saving potential '[TJ']]]*Saving_measures[[#This Row],[EF of CO2 '[kg/GJ']]] -> 241890.9749 | O50: =Saving_measures[[#This Row],[Energy saving potential '[TJ']]]*Saving_measures[[#This Row],[EF of CH4 '[g/GJ']]] -> 2584.306877 | P50: =Saving_measures[[#This Row],[Energy saving potential '[TJ']]]*Saving_measures[[#This Row],[EF of N2O '[g/GJ']]] -> 3392.1617 | Q50: =Saving_measures[[#This Row],[Energy saving potential '[TJ']]]*Saving_measures[[#This Row],[EF of CO2 eq '[kg/GJ']]] -> 242966.4468 | R50: =VLOOKUP(Saving_measures[[#This Row],[Energy carrier saved]] & "#" & Saving_measures[[#This Row],[The most similar sector]],Emiskoef,2,FALSE) -> 243.305357 | S50: =VLOOKUP(Saving_measures[[#This Row],[Energy carrier saved]] & "#" & Saving_measures[[#This Row],[The most similar sector]],Emiskoef,3,FALSE) -> 2.599417806 | T50: =VLOOKUP(Saving_measures[[#This Row],[Energy carrier saved]] & "#" & Saving_measures[[#This Row],[The most similar sector]],Emiskoef,4,FALSE) -> 3.411996308 | U50: =Saving_measures[[#This Row],[EF of CO2 '[kg/GJ']]]+0.025*Saving_measures[[#This Row],[EF of CH4 '[g/GJ']]]+0.298*Saving_measures[[#This Row],[EF of N2O '[g/GJ']]] -> 244.3871173 | V50: =1000*Saving_measures[[#This Row],[Unit investments '[€/GJ']]]/Saving_measures[[#This Row],[EF of CO2 eq '[kg/GJ']]] -> 673.9548473
A51: Waste heat utilisation | B51: MAX | C51: =Saving_measures[[#This Row],[Measure]] & "#" & Saving_measures[[#This Row],[Cost type]] -> Waste heat utilisation#MAX | D51: 69.84545802 | E51: =VLOOKUP(Saving_measures[[#This Row],[Measure detail]],Potential_of_measures!$C$1:$E$192,3,0) -> 0.5833333333 | F51: =Saving_measures[[#This Row],[Unit investments '[€/GJ']]]/Saving_measures[[#This Row],[Payback period w/o subsidy '[y']]] -> 5.820454835 | G51: =Saving_measures[[#This Row],[Energy saving potential '[TJ']]]*Saving_measures[[#This Row],[Unit investments '[€/GJ']]]*1000 -> 103832098 | H51: =Saving_measures[[#This Row],[Subsidy share '[%']]]*Saving_measures[[#This Row],[Investment costs '[€']]] -> 60568723.83 | I51: 12 | J51: =VLOOKUP(Saving_measures[[#This Row],[Measure detail]],Potential_of_measures!$C$1:$E$192,2,0) -> 1486.597711 | K51: 20 | L51: Electricity | M51: Industry | N51: =Saving_measures[[#This Row],[Energy saving potential '[TJ']]]*Saving_measures[[#This Row],[EF of CO2 '[kg/GJ']]] -> 361697.1867 | O51: =Saving_measures[[#This Row],[Energy saving potential '[TJ']]]*Saving_measures[[#This Row],[EF of CH4 '[g/GJ']]] -> 3864.28856 | P51: =Saving_measures[[#This Row],[Energy saving potential '[TJ']]]*Saving_measures[[#This Row],[EF of N2O '[g/GJ']]] -> 5072.2659 | Q51: =Saving_measures[[#This Row],[Energy saving potential '[TJ']]]*Saving_measures[[#This Row],[EF of CO2 eq '[kg/GJ']]] -> 363305.3292 | R51: =VLOOKUP(Saving_measures[[#This Row],[Energy carrier saved]] & "#" & Saving_measures[[#This Row],[The most similar sector]],Emiskoef,2,FALSE) -> 243.305357 | S51: =VLOOKUP(Saving_measures[[#This Row],[Energy carrier saved]] & "#" & Saving_measures[[#This Row],[The most similar sector]],Emiskoef,3,FALSE) -> 2.599417806 | T51: =VLOOKUP(Saving_measures[[#This Row],[Energy carrier saved]] & "#" & Saving_measures[[#This Row],[The most similar sector]],Emiskoef,4,FALSE) -> 3.411996308 | U51: =Saving_measures[[#This Row],[EF of CO2 '[kg/GJ']]]+0.025*Saving_measures[[#This Row],[EF of CH4 '[g/GJ']]]+0.298*Saving_measures[[#This Row],[EF of N2O '[g/GJ']]] -> 244.3871173 | V51: =1000*Saving_measures[[#This Row],[Unit investments '[€/GJ']]]/Saving_measures[[#This Row],[EF of CO2 eq '[kg/GJ']]] -> 285.7984446
A52: Waste heat utilisation | B52: MIN | C52: =Saving_measures[[#This Row],[Measure]] & "#" & Saving_measures[[#This Row],[Cost type]] -> Waste heat utilisation#MIN | D52: 29.71145534 | E52: =VLOOKUP(Saving_measures[[#This Row],[Measure detail]],Potential_of_measures!$C$1:$E$192,3,0) -> 0 | F52: =Saving_measures[[#This Row],[Unit investments '[€/GJ']]]/Saving_measures[[#This Row],[Payback period w/o subsidy '[y']]] -> 29.71145534 | G52: =Saving_measures[[#This Row],[Energy saving potential '[TJ']]]*Saving_measures[[#This Row],[Unit investments '[€/GJ']]]*1000 -> 1963065.844 | H52: =Saving_measures[[#This Row],[Subsidy share '[%']]]*Saving_measures[[#This Row],[Investment costs '[€']]] -> 0 | I52: 1 | J52: =VLOOKUP(Saving_measures[[#This Row],[Measure detail]],Potential_of_measures!$C$1:$E$192,2,0) -> 66.07100937 | K52: 20 | L52: Fuels and heat | M52: Industry | N52: =Saving_measures[[#This Row],[Energy saving potential '[TJ']]]*Saving_measures[[#This Row],[EF of CO2 '[kg/GJ']]] -> 4380.467859 | O52: =Saving_measures[[#This Row],[Energy saving potential '[TJ']]]*Saving_measures[[#This Row],[EF of CH4 '[g/GJ']]] -> 318.3092397 | P52: =Saving_measures[[#This Row],[Energy saving potential '[TJ']]]*Saving_measures[[#This Row],[EF of N2O '[g/GJ']]] -> 55.8334778 | Q52: =Saving_measures[[#This Row],[Energy saving potential '[TJ']]]*Saving_measures[[#This Row],[EF of CO2 eq '[kg/GJ']]] -> 4405.063966 | R52: =VLOOKUP(Saving_measures[[#This Row],[Energy carrier saved]] & "#" & Saving_measures[[#This Row],[The most similar sector]],Emiskoef,2,FALSE) -> 66.29939364 | S52: =VLOOKUP(Saving_measures[[#This Row],[Energy carrier saved]] & "#" & Saving_measures[[#This Row],[The most similar sector]],Emiskoef,3,FALSE) -> 4.817683925 | T52: =VLOOKUP(Saving_measures[[#This Row],[Energy carrier saved]] & "#" & Saving_measures[[#This Row],[The most similar sector]],Emiskoef,4,FALSE) -> 0.8450525932 | U52: =Saving_measures[[#This Row],[EF of CO2 '[kg/GJ']]]+0.025*Saving_measures[[#This Row],[EF of CH4 '[g/GJ']]]+0.298*Saving_measures[[#This Row],[EF of N2O '[g/GJ']]] -> 66.67166142 | V52: =1000*Saving_measures[[#This Row],[Unit investments '[€/GJ']]]/Saving_measures[[#This Row],[EF of CO2 eq '[kg/GJ']]] -> 445.6384423
A53: Waste heat utilisation | B53: TYP | C53: =Saving_measures[[#This Row],[Measure]] & "#" & Saving_measures[[#This Row],[Cost type]] -> Waste heat utilisation#TYP | D53: 49.27165734 | E53: =VLOOKUP(Saving_measures[[#This Row],[Measure detail]],Potential_of_measures!$C$1:$E$192,3,0) -> 0 | F53: =Saving_measures[[#This Row],[Unit investments '[€/GJ']]]/Saving_measures[[#This Row],[Payback period w/o subsidy '[y']]] -> 9.854331468 | G53: =Saving_measures[[#This Row],[Energy saving potential '[TJ']]]*Saving_measures[[#This Row],[Unit investments '[€/GJ']]]*1000 -> 86268845.55 | H53: =Saving_measures[[#This Row],[Subsidy share '[%']]]*Saving_measures[[#This Row],[Investment costs '[€']]] -> 0 | I53: 5 | J53: =VLOOKUP(Saving_measures[[#This Row],[Measure detail]],Potential_of_measures!$C$1:$E$192,2,0) -> 1750.881748 | K53: 20 | L53: Electricity | M53: Industry | N53: =Saving_measures[[#This Row],[Energy saving potential '[TJ']]]*Saving_measures[[#This Row],[EF of CO2 '[kg/GJ']]] -> 425998.9088 | O53: =Saving_measures[[#This Row],[Energy saving potential '[TJ']]]*Saving_measures[[#This Row],[EF of CH4 '[g/GJ']]] -> 4551.273192 | P53: =Saving_measures[[#This Row],[Energy saving potential '[TJ']]]*Saving_measures[[#This Row],[EF of N2O '[g/GJ']]] -> 5974.00206 | Q53: =Saving_measures[[#This Row],[Energy saving potential '[TJ']]]*Saving_measures[[#This Row],[EF of CO2 eq '[kg/GJ']]] -> 427892.9433 | R53: =VLOOKUP(Saving_measures[[#This Row],[Energy carrier saved]] & "#" & Saving_measures[[#This Row],[The most similar sector]],Emiskoef,2,FALSE) -> 243.305357 | S53: =VLOOKUP(Saving_measures[[#This Row],[Energy carrier saved]] & "#" & Saving_measures[[#This Row],[The most similar sector]],Emiskoef,3,FALSE) -> 2.599417806 | T53: =VLOOKUP(Saving_measures[[#This Row],[Energy carrier saved]] & "#" & Saving_measures[[#This Row],[The most similar sector]],Emiskoef,4,FALSE) -> 3.411996308 | U53: =Saving_measures[[#This Row],[EF of CO2 '[kg/GJ']]]+0.025*Saving_measures[[#This Row],[EF of CH4 '[g/GJ']]]+0.298*Saving_measures[[#This Row],[EF of N2O '[g/GJ']]] -> 244.3871173 | V53: =1000*Saving_measures[[#This Row],[Unit investments '[€/GJ']]]/Saving_measures[[#This Row],[EF of CO2 eq '[kg/GJ']]] -> 201.6131533

Sheet Potential_of_measures (hidden)
A1: Buildings insulation | B1: MAX | C1: =A1 & "#" & B1 -> Buildings insulation#MAX | D1: 2166.899433 | E1: 0.875
A2: Buildings insulation | B2: MIN | C2: Buildings insulation#MIN | D2: 2166.899433 | E2: 0.5833333333
A3: Buildings insulation | B3: TYP | C3: Buildings insulation#TYP | D3: 4333.798865 | E3: 0.75
A4: Control of circulation pumps | B4: MAX | C4: Control of circulation pumps#MAX | D4: 15.71894265 | E4: 0.2857142857
A5: Control of circulation pumps | B5: MIN | C5: Control of circulation pumps#MIN | D5: 15.71894265 | E5: 0
A6: Control of circulation pumps | B6: TYP | C6: Control of circulation pumps#TYP | D6: 31.43788531 | E6: 0
A7: Decrease of losses in heat distribution | B7: MAX | C7: Decrease of losses in heat distribution#MAX | D7: 304.6877644 | E7: 0.9166666667
A8: Decrease of losses in heat distribution | B8: MIN | C8: Decrease of losses in heat distribution#MIN | D8: 304.6877644 | E8: 0.6666666667
A9: Decrease of losses in heat distribution | B9: TYP | C9: Decrease of losses in heat distribution#TYP | D9: 914.0632931 | E9: 0.8888888889
A10: Energy management | B10: MAX | C10: Energy management#MAX | D10: 436.0437372 | E10: 0.375
A11: Energy management | B11: MIN | C11: Energy management#MIN | D11: 48.44930414 | E11: 0
A12: Energy management | B12: TYP | C12: Energy management#TYP | D12: 484.4930414 | E12: 0
A13: Change of technological processes | B13: MAX | C13: Change of technological processes#MAX | D13: 1201.280189 | E13: 0.8333333333
A14: Change of technological processes | B14: MIN | C14: Change of technological processes#MIN | D14: 171.6114556 | E14: 0
A15: Change of technological processes | B15: TYP | C15: Change of technological processes#TYP | D15: 2059.337467 | E15: 0.375
A16: Installation flue gas pre-heaters to boilers | B16: MAX | C16: Installation flue gas pre-heaters to boilers#MAX | D16: 298.7294243 | E16: 0
A17: Installation flue gas pre-heaters to boilers | B17: MIN | C17: Installation flue gas pre-heaters to boilers#MIN | D17: 149.3647122 | E17: 0
A18: Installation flue gas pre-heaters to boilers | B18: TYP | C18: Installation flue gas pre-heaters to boilers#TYP | D18: 547.6706112 | E18: 0
A19: Installation of cogeneration units | B19: MAX | C19: Installation of cogeneration units#MAX | D19: 438.2417129 | E19: 0.5
A20: Installation of cogeneration units | B20: MIN | C20: Installation of cogeneration units#MIN | D20: 438.2417129 | E20: 0
A21: Installation of cogeneration units | B21: TYP | C21: Installation of cogeneration units#TYP | D21: 876.4834258 | E21: 0.1666666667
A22: Installation of frequency inverters | B22: MAX | C22: Installation of frequency inverters#MAX | D22: 404.7760553 | E22: 0.5833333333
A23: Installation of frequency inverters | B23: MIN | C23: Installation of frequency inverters#MIN | D23: 44.97511726 | E23: 0
A24: Installation of frequency inverters | B24: TYP | C24: Installation of frequency inverters#TYP | D24: 449.7511726 | E24: 0.1666666667
A25: Installation of heat pumps | B25: MAX | C25: Installation of heat pumps#MAX | D25: 5075.046659 | E25: 0.5
A26: Installation of heat pumps | B26: MIN | C26: Installation of heat pumps#MIN | D26: 676.6728878 | E26: 0
A27: Installation of heat pumps | B27: TYP | C27: Installation of heat pumps#TYP | D27: 2706.691551 | E27: 0.1666666667
A28: Installation of photovoltaic systems (for electricity generation) | B28: MAX | C28: Installation of photovoltaic systems (for electricity generation)#MAX | D28: 1703.154849 | E28: 0.8214285714
A29: Installation of photovoltaic systems (for electricity generation) | B29: MIN | C29: Installation of photovoltaic systems (for electricity generation)#MIN | D29: 340.6309698 | E29: 0.5
A30: Installation of photovoltaic systems (for electricity generation) | B30: TYP | C30: Installation of photovoltaic systems (for electricity generation)#TYP | D30: 4768.833578 | E30: 0.7368421053
A31: Installation of solar thermal systems (for heat generation) | B31: MAX | C31: Installation of solar thermal systems (for heat generation)#MAX | D31: 37.59020462 | E31: 0.8214285714
A32: Installation of solar thermal systems (for heat generation) | B32: MIN | C32: Installation of solar thermal systems (for heat generation)#MIN | D32: 16.11008769 | E32: 0.6666666667
A33: Installation of solar thermal systems (for heat generation) | B33: TYP | C33: =A33 & "#" & B33 -> Installation of solar thermal systems (for heat generation)#TYP | D33: 53.70029232 | E33: 0.8
A34: Installation/replacement of compressors | B34: MAX | C34: Installation/replacement of compressors#MAX | D34: 2168.443154 | E34: 0.6666666667
A35: Installation/replacement of compressors | B35: MIN | C35: Installation/replacement of compressors#MIN | D35: 96.37525127 | E35: 0
A36: Installation/replacement of compressors | B36: TYP | C36: Installation/replacement of compressors#TYP | D36: 2553.944159 | E36: 0.4444444444
A37: Replacement of coal boiler with biomass boiler | B37: TYP | C37: =A37 & "#" & B37 -> Replacement of coal boiler with biomass boiler#TYP | D37: 520.4618695 | E37: 1.9
A38: Replacement of coal boiler with new coal boiler | B38: MAX | C38: Replacement of coal boiler with new coal boiler#MAX | D38: 1155.931174 | E38: 0.75
A39: Replacement of coal boilers with gas boilers | B39: MIN | C39: Replacement of coal boilers with gas boilers#MIN | D39: 519.4618695 | E39: 0.9
A40: Replacement of existing lighting with LED80 | B40: MAX | C40: Replacement of existing lighting with LED80#MAX | D40: 675.4824346 | E40: 0
A41: Replacement of lighting LED80 with LED110 | B41: MAX | C41: Replacement of lighting LED80 with LED110#MAX | D41: 111.1650571 | E41: 0.6666666667
A42: Replacement of lighting LED80 with LED110 | B42: MIN | C42: Replacement of lighting LED80 with LED110#MIN | D42: 27.79126428 | E42: 0
A43: Replacement of lighting LED80 with LED110 | B43: TYP | C43: Replacement of lighting LED80 with LED110#TYP | D43: 416.8689642 | E43: 0.2857142857
A44: Thermal insulation of technologies | B44: MAX | C44: Thermal insulation of technologies#MAX | D44: 2608.989078 | E44: 0.5
A45: Thermal insulation of technologies | B45: MIN | C45: Thermal insulation of technologies#MIN | D45: 237.1808253 | E45: 0
A46: Thermal insulation of technologies | B46: TYP | C46: Thermal insulation of technologies#TYP | D46: 1897.446603 | E46: 0.1666666667
A47: Transformers replacement | B47: MAX | C47: Transformers replacement#MAX | D47: 213.0400291 | E47: 0.6428571429
A48: Transformers replacement | B48: MIN | C48: Transformers replacement#MIN | D48: 213.0400291 | E48: 0.1666666667
A49: Transformers replacement | B49: TYP | C49: Transformers replacement#TYP | D49: 994.1868025 | E49: 0.5833333333
A50: Waste heat utilisation | B50: MAX | C50: Waste heat utilisation#MAX | D50: 1486.597711 | E50: 0.5833333333
A51: Waste heat utilisation | B51: MIN | C51: Waste heat utilisation#MIN | D51: 66.07100937 | E51: 0
A52: Waste heat utilisation | B52: TYP | C52: Waste heat utilisation#TYP | D52: 1750.881748 | E52: 0

Sheet DataInput (hidden)
A1: Saving Measure 1 | B1: Energy Management | C1: 0.2 | D1: 0.566500349 | E1: =(SUMIFS(Saving_measures[Subsidy '[€']],Saving_measures[Measure],B1,Saving_measures[Cost type],"MIN",Saving_measures[Subsidy share '[%']],">0")*(IF(D1<=SUMIFS(Saving_measures[Subsidy share '[%']],Saving_measures[Measure],B1,Saving_measures[Cost type],"MIN",Saving_measures[Subsidy share '[%']],">0")-Tolerance,0,IF(D1>=SUMIFS(Saving_measures[Subsidy share '[%']],Saving_measures[Measure],B1,Saving_measures[Cost type],"MIN",Saving_measures[Subsidy share '[%']],">0")+Tolerance,1,(D1-(SUMIFS(Saving_measures[Subsidy share '[%']],Saving_measures[Measure],B1,Saving_measures[Cost type],"MIN",Saving_measures[Subsidy share '[%']],">0")-Tolerance))/(2*Tolerance))))+SUMIFS(Saving_measures[Subsidy '[€']],Saving_measures[Measure],B1,Saving_measures[Cost type],"TYP",Saving_measures[Subsidy share '[%']],">0")*(IF(D1<=SUMIFS(Saving_measures[Subsidy share '[%']],Saving_measures[Measure],B1,Saving_measures[Cost type],"TYP",Saving_measures[Subsidy share '[%']],">0")-Tolerance,0,IF(D1>=SUMIFS(Saving_measures[Subsidy share '[%']],Saving_measures[Measure],B1,Saving_measures[Cost type],"TYP",Saving_measures[Subsidy share '[%']],">0")+Tolerance,1,(D1-(SUMIFS(Saving_measures[Subsidy share '[%']],Saving_measures[Measure],B1,Saving_measures[Cost type],"TYP",Saving_measures[Subsidy share '[%']],">0")-Tolerance))/(2*Tolerance))))+SUMIFS(Saving_measures[Subsidy '[€']],Saving_measures[Measure],B1,Saving_measures[Cost type],"MAX",Saving_measures[Subsidy share '[%']],">0")*(IF(D1<=SUMIFS(Saving_measures[Subsidy share '[%']],Saving_measures[Measure],B1,Saving_measures[Cost type],"MAX",Saving_measures[Subsidy share '[%']],">0")-Tolerance,0,IF(D1>=SUMIFS(Saving_measures[Subsidy share '[%']],Saving_measures[Measure],B1,Saving_measures[Cost type],"MAX",Saving_measures[Subsidy share '[%']],">0")+Tolerance,1,(D1-(SUMIFS(Saving_measures[Subsidy share '[%']],Saving_measures[Measure],B1,Saving_measures[Cost type],"MAX",Saving_measures[Subsidy share '[%']],">0")-Tolerance))/(2*Tolerance)))))/1000 -> 12781.40178 | F1: =(SUMIFS(Saving_measures[Investment costs '[€']],Saving_measures[Measure],B1,Saving_measures[Cost type],"MIN",Saving_measures[Subsidy share '[%']],">0")*(IF(D1<=SUMIFS(Saving_measures[Subsidy share '[%']],Saving_measures[Measure],B1,Saving_measures[Cost type],"MIN",Saving_measures[Subsidy share '[%']],">0")-Tolerance,0,IF(D1>=SUMIFS(Saving_measures[Subsidy share '[%']],Saving_measures[Measure],B1,Saving_measures[Cost type],"MIN",Saving_measures[Subsidy share '[%']],">0")+Tolerance,1,(D1-(SUMIFS(Saving_measures[Subsidy share '[%']],Saving_measures[Measure],B1,Saving_measures[Cost type],"MIN",Saving_measures[Subsidy share '[%']],">0")-Tolerance))/(2*Tolerance))))+SUMIFS(Saving_measures[Investment costs '[€']],Saving_measures[Measure],B1,Saving_measures[Cost type],"TYP",Saving_measures[Subsidy share '[%']],">0")*(IF(D1<=SUMIFS(Saving_measures[Subsidy share '[%']],Saving_measures[Measure],B1,Saving_measures[Cost type],"TYP",Saving_measures[Subsidy share '[%']],">0")-Tolerance,0,IF(D1>=SUMIFS(Saving_measures[Subsidy share '[%']],Saving_measures[Measure],B1,Saving_measures[Cost type],"TYP",Saving_measures[Subsidy share '[%']],">0")+Tolerance,1,(D1-(SUMIFS(Saving_measures[Subsidy share '[%']],Saving_measures[Measure],B1,Saving_measures[Cost type],"TYP",Saving_measures[Subsidy share '[%']],">0")-Tolerance))/(2*Tolerance))))+SUMIFS(Saving_measures[Investment costs '[€']],Saving_measures[Measure],B1,Saving_measures[Cost type],"MAX",Saving_measures[Subsidy share '[%']],">0")*(IF(D1<=SUMIFS(Saving_measures[Subsidy share '[%']],Saving_measures[Measure],B1,Saving_measures[Cost type],"MAX",Saving_measures[Subsidy share '[%']],">0")-Tolerance,0,IF(D1>=SUMIFS(Saving_measures[Subsidy share '[%']],Saving_measures[Measure],B1,Saving_measures[Cost type],"MAX",Saving_measures[Subsidy share '[%']],">0")+Tolerance,1,(D1-(SUMIFS(Saving_measures[Subsidy share '[%']],Saving_measures[Measure],B1,Saving_measures[Cost type],"MAX",Saving_measures[Subsidy share '[%']],">0")-Tolerance))/(2*Tolerance)))))/1000 -> 34083.73809 | G1: =(SUMIFS(Saving_measures[Energy saving potential '[TJ']],Saving_measures[Measure],B1,Saving_measures[Cost type],"MIN",Saving_measures[Subsidy share '[%']],">0")*(IF(D1<=SUMIFS(Saving_measures[Subsidy share '[%']],Saving_measures[Measure],B1,Saving_measures[Cost type],"MIN",Saving_measures[Subsidy share '[%']],">0")-Tolerance,0,IF(D1>=SUMIFS(Saving_measures[Subsidy share '[%']],Saving_measures[Measure],B1,Saving_measures[Cost type],"MIN",Saving_measures[Subsidy share '[%']],">0")+Tolerance,1,(D1-(SUMIFS(Saving_measures[Subsidy share '[%']],Saving_measures[Measure],B1,Saving_measures[Cost type],"MIN",Saving_measures[Subsidy share '[%']],">0")-Tolerance))/(2*Tolerance))))+SUMIFS(Saving_measures[Energy saving potential '[TJ']],Saving_measures[Measure],B1,Saving_measures[Cost type],"TYP",Saving_measures[Subsidy share '[%']],">0")*(IF(D1<=SUMIFS(Saving_measures[Subsidy share '[%']],Saving_measures[Measure],B1,Saving_measures[Cost type],"TYP",Saving_measures[Subsidy share '[%']],">0")-Tolerance,0,IF(D1>=SUMIFS(Saving_measures[Subsidy share '[%']],Saving_measures[Measure],B1,Saving_measures[Cost type],"TYP",Saving_measures[Subsidy share '[%']],">0")+Tolerance,1,(D1-(SUMIFS(Saving_measures[Subsidy share '[%']],Saving_measures[Measure],B1,Saving_measures[Cost type],"TYP",Saving_measures[Subsidy share '[%']],">0")-Tolerance))/(2*Tolerance))))+ SUMIFS(Saving_measures[Energy saving potential '[TJ']],Saving_measures[Measure],B1,Saving_measures[Cost type],"MAX",Saving_measures[Subsidy share '[%']],">0")*(IF(D1<=SUMIFS(Saving_measures[Subsidy share '[%']],Saving_measures[Measure],B1,Saving_measures[Cost type],"MAX",Saving_measures[Subsidy share '[%']],">0")-Tolerance,0,IF(D1>=SUMIFS(Saving_measures[Subsidy share '[%']],Saving_measures[Measure],B1,Saving_measures[Cost type],"MAX",Saving_measures[Subsidy share '[%']],">0")+Tolerance,1,(D1-(SUMIFS(Saving_measures[Subsidy share '[%']],Saving_measures[Measure],B1,Saving_measures[Cost type],"MAX",Saving_measures[Subsidy share '[%']],">0")-Tolerance))/(2*Tolerance)))))*0.7 -> 305.2306161 | H1: =(SUMIFS(Saving_measures[Drop of CO2 emissions '[t']],Saving_measures[Measure],B1,Saving_measures[Cost type],"MIN",Saving_measures[Subsidy share '[%']],">0")*(IF(D1<=SUMIFS(Saving_measures[Subsidy share '[%']],Saving_measures[Measure],B1,Saving_measures[Cost type],"MIN",Saving_measures[Subsidy share '[%']],">0")-Tolerance,0,IF(D1>=SUMIFS(Saving_measures[Subsidy share '[%']],Saving_measures[Measure],B1,Saving_measures[Cost type],"MIN",Saving_measures[Subsidy share '[%']],">0")+Tolerance,1,(D1-(SUMIFS(Saving_measures[Subsidy share '[%']],Saving_measures[Measure],B1,Saving_measures[Cost type],"MIN",Saving_measures[Subsidy share '[%']],">0")-Tolerance))/(2*Tolerance))))+SUMIFS(Saving_measures[Drop of CO2 emissions '[t']],Saving_measures[Measure],B1,Saving_measures[Cost type],"TYP",Saving_measures[Subsidy share '[%']],">0")*(IF(D1<=SUMIFS(Saving_measures[Subsidy share '[%']],Saving_measures[Measure],B1,Saving_measures[Cost type],"TYP",Saving_measures[Subsidy share '[%']],">0")-Tolerance,0,IF(D1>=SUMIFS(Saving_measures[Subsidy share '[%']],Saving_measures[Measure],B1,Saving_measures[Cost type],"TYP",Saving_measures[Subsidy share '[%']],">0")+Tolerance,1,(D1-(SUMIFS(Saving_measures[Subsidy share '[%']],Saving_measures[Measure],B1,Saving_measures[Cost type],"TYP",Saving_measures[Subsidy share '[%']],">0")-Tolerance))/(2*Tolerance))))+SUMIFS(Saving_measures[Drop of CO2 emissions '[t']],Saving_measures[Measure],B1,Saving_measures[Cost type],"MAX",Saving_measures[Subsidy share '[%']],">0")*(IF(D1<=SUMIFS(Saving_measures[Subsidy share '[%']],Saving_measures[Measure],B1,Saving_measures[Cost type],"MAX",Saving_measures[Subsidy share '[%']],">0")-Tolerance,0,IF(D1>=SUMIFS(Saving_measures[Subsidy share '[%']],Saving_measures[Measure],B1,Saving_measures[Cost type],"MAX",Saving_measures[Subsidy share '[%']],">0")+Tolerance,1,(D1-(SUMIFS(Saving_measures[Subsidy share '[%']],Saving_measures[Measure],B1,Saving_measures[Cost type],"MAX",Saving_measures[Subsidy share '[%']],">0")-Tolerance))/(2*Tolerance)))))*0.7 -> 33438.21044 | I1: =(SUMIFS(Saving_measures[Drop of CH4 emissions'[kg']],Saving_measures[Measure],B1,Saving_measures[Cost type],"MIN",Saving_measures[Subsidy share '[%']],">0")*(IF(D1<=SUMIFS(Saving_measures[Subsidy share '[%']],Saving_measures[Measure],B1,Saving_measures[Cost type],"MIN",Saving_measures[Subsidy share '[%']],">0")-Tolerance,0,IF(D1>=SUMIFS(Saving_measures[Subsidy share '[%']],Saving_measures[Measure],B1,Saving_measures[Cost type],"MIN",Saving_measures[Subsidy share '[%']],">0")+Tolerance,1,(D1-(SUMIFS(Saving_measures[Subsidy share '[%']],Saving_measures[Measure],B1,Saving_measures[Cost type],"MIN",Saving_measures[Subsidy share '[%']],">0")-Tolerance))/(2*Tolerance))))+SUMIFS(Saving_measures[Drop of CH4 emissions'[kg']],Saving_measures[Measure],B1,Saving_measures[Cost type],"TYP",Saving_measures[Subsidy share '[%']],">0")*(IF(D1<=SUMIFS(Saving_measures[Subsidy share '[%']],Saving_measures[Measure],B1,Saving_measures[Cost type],"TYP",Saving_measures[Subsidy share '[%']],">0")-Tolerance,0,IF(D1>=SUMIFS(Saving_measures[Subsidy share '[%']],Saving_measures[Measure],B1,Saving_measures[Cost type],"TYP",Saving_measures[Subsidy share '[%']],">0")+Tolerance,1,(D1-(SUMIFS(Saving_measures[Subsidy share '[%']],Saving_measures[Measure],B1,Saving_measures[Cost type],"TYP",Saving_measures[Subsidy share '[%']],">0")-Tolerance))/(2*Tolerance))))+SUMIFS(Saving_measures[Drop of CH4 emissions'[kg']],Saving_measures[Measure],B1,Saving_measures[Cost type],"MAX",Saving_measures[Subsidy share '[%']],">0")*(IF(D1<=SUMIFS(Saving_measures[Subsidy share '[%']],Saving_measures[Measure],B1,Saving_measures[Cost type],"MAX",Saving_measures[Subsidy share '[%']],">0")-Tolerance,0,IF(D1>=SUMIFS(Saving_measures[Subsidy share '[%']],Saving_measures[Measure],B1,Saving_measures[Cost type],"MAX",Saving_measures[Subsidy share '[%']],">0")+Tolerance,1,(D1-(SUMIFS(Saving_measures[Subsidy share '[%']],Saving_measures[Measure],B1,Saving_measures[Cost type],"MAX",Saving_measures[Subsidy share '[%']],">0")-Tolerance))/(2*Tolerance)))))*0.7 -> 1305.060068 | J1: =(SUMIFS(Saving_measures[Drop of N2O emissions '[kg']],Saving_measures[Measure],B1,Saving_measures[Cost type],"MIN",Saving_measures[Subsidy share '[%']],">0")*(IF(D1<=SUMIFS(Saving_measures[Subsidy share '[%']],Saving_measures[Measure],B1,Saving_measures[Cost type],"MIN",Saving_measures[Subsidy share '[%']],">0")-Tolerance,0,IF(D1>=SUMIFS(Saving_measures[Subsidy share '[%']],Saving_measures[Measure],B1,Saving_measures[Cost type],"MIN",Saving_measures[Subsidy share '[%']],">0")+Tolerance,1,(D1-(SUMIFS(Saving_measures[Subsidy share '[%']],Saving_measures[Measure],B1,Saving_measures[Cost type],"MIN",Saving_measures[Subsidy share '[%']],">0")-Tolerance))/(2*Tolerance))))+SUMIFS(Saving_measures[Drop of N2O emissions '[kg']],Saving_measures[Measure],B1,Saving_measures[Cost type],"TYP",Saving_measures[Subsidy share '[%']],">0")*(IF(D1<=SUMIFS(Saving_measures[Subsidy share '[%']],Saving_measures[Measure],B1,Saving_measures[Cost type],"TYP",Saving_measures[Subsidy share '[%']],">0")-Tolerance,0,IF(D1>=SUMIFS(Saving_measures[Subsidy share '[%']],Saving_measures[Measure],B1,Saving_measures[Cost type],"TYP",Saving_measures[Subsidy share '[%']],">0")+Tolerance,1,(D1-(SUMIFS(Saving_measures[Subsidy share '[%']],Saving_measures[Measure],B1,Saving_measures[Cost type],"TYP",Saving_measures[Subsidy share '[%']],">0")-Tolerance))/(2*Tolerance))))+SUMIFS(Saving_measures[Drop of N2O emissions '[kg']],Saving_measures[Measure],B1,Saving_measures[Cost type],"MAX",Saving_measures[Subsidy share '[%']],">0")*(IF(D1<=SUMIFS(Saving_measures[Subsidy share '[%']],Saving_measures[Measure],B1,Saving_measures[Cost type],"MAX",Saving_measures[Subsidy share '[%']],">0")-Tolerance,0,IF(D1>=SUMIFS(Saving_measures[Subsidy share '[%']],Saving_measures[Measure],B1,Saving_measures[Cost type],"MAX",Saving_measures[Subsidy share '[%']],">0")+Tolerance,1,(D1-(SUMIFS(Saving_measures[Subsidy share '[%']],Saving_measures[Measure],B1,Saving_measures[Cost type],"MAX",Saving_measures[Subsidy share '[%']],">0")-Tolerance))/(2*Tolerance)))))*0.7 -> 449.3858503 | K1: =(SUMIFS(Saving_measures[Drop of CO2eq emissions '[t']],Saving_measures[Measure],B1,Saving_measures[Cost type],"MIN",Saving_measures[Subsidy share '[%']],">0")*(IF(D1<=SUMIFS(Saving_measures[Subsidy share '[%']],Saving_measures[Measure],B1,Saving_measures[Cost type],"MIN",Saving_measures[Subsidy share '[%']],">0")-Tolerance,0,IF(D1>=SUMIFS(Saving_measures[Subsidy share '[%']],Saving_measures[Measure],B1,Saving_measures[Cost type],"MIN",Saving_measures[Subsidy share '[%']],">0")+Tolerance,1,(D1-(SUMIFS(Saving_measures[Subsidy share '[%']],Saving_measures[Measure],B1,Saving_measures[Cost type],"MIN",Saving_measures[Subsidy share '[%']],">0")-Tolerance))/(2*Tolerance))))+SUMIFS(Saving_measures[Drop of CO2eq emissions '[t']],Saving_measures[Measure],B1,Saving_measures[Cost type],"TYP",Saving_measures[Subsidy share '[%']],">0")*(IF(D1<=SUMIFS(Saving_measures[Subsidy share '[%']],Saving_measures[Measure],B1,Saving_measures[Cost type],"TYP",Saving_measures[Subsidy share '[%']],">0")-Tolerance,0,IF(D1>=SUMIFS(Saving_measures[Subsidy share '[%']],Saving_measures[Measure],B1,Saving_measures[Cost type],"TYP",Saving_measures[Subsidy share '[%']],">0")+Tolerance,1,(D1-(SUMIFS(Saving_measures[Subsidy share '[%']],Saving_measures[Measure],B1,Saving_measures[Cost type],"TYP",Saving_measures[Subsidy share '[%']],">0")-Tolerance))/(2*Tolerance))))+SUMIFS(Saving_measures[Drop of CO2eq emissions '[t']],Saving_measures[Measure],B1,Saving_measures[Cost type],"MAX",Saving_measures[Subsidy share '[%']],">0")*(IF(D1<=SUMIFS(Saving_measures[Subsidy share '[%']],Saving_measures[Measure],B1,Saving_measures[Cost type],"MAX",Saving_measures[Subsidy share '[%']],">0")-Tolerance,0,IF(D1>=SUMIFS(Saving_measures[Subsidy share '[%']],Saving_measures[Measure],B1,Saving_measures[Cost type],"MAX",Saving_measures[Subsidy share '[%']],">0")+Tolerance,1,(D1-(SUMIFS(Saving_measures[Subsidy share '[%']],Saving_measures[Measure],B1,Saving_measures[Cost type],"MAX",Saving_measures[Subsidy share '[%']],">0")-Tolerance))/(2*Tolerance)))))*0.7 -> 33604.75392 | L1: =SUMIFS(Saving_measures[Annual Cost Saved '[€/GJ.y']],Saving_measures[Measure],B1,Saving_measures[Cost type],"MIN",Saving_measures[Subsidy share '[%']],">0")*SUMIFS(Saving_measures[Energy saving potential '[TJ']],Saving_measures[Measure],B1,Saving_measures[Cost type],"MIN",Saving_measures[Subsidy share '[%']],">0")*(IF(D1<=SUMIFS(Saving_measures[Subsidy share '[%']],Saving_measures[Measure],B1,Saving_measures[Cost type],"MIN",Saving_measures[Subsidy share '[%']],">0")-Tolerance,0,IF(D1>=SUMIFS(Saving_measures[Subsidy share '[%']],Saving_measures[Measure],B1,Saving_measures[Cost type],"MIN",Saving_measures[Subsidy share '[%']],">0")+Tolerance,1,(D1-(SUMIFS(Saving_measures[Subsidy share '[%']],Saving_measures[Measure],B1,Saving_measures[Cost type],"MIN",Saving_measures[Subsidy share '[%']],">0")-Tolerance))/(2*Tolerance))))+SUMIFS(Saving_measures[Annual Cost Saved '[€/GJ.y']],Saving_measures[Measure],B1,Saving_measures[Cost type],"TYP",Saving_measures[Subsidy share '[%']],">0")*SUMIFS(Saving_measures[Energy saving potential '[TJ']],Saving_measures[Measure],B1,Saving_measures[Cost type],"TYP",Saving_measures[Subsidy share '[%']],">0")*(IF(D1<=SUMIFS(Saving_measures[Subsidy share '[%']],Saving_measures[Measure],B1,Saving_measures[Cost type],"TYP",Saving_measures[Subsidy share '[%']],">0")-Tolerance,0,IF(D1>=SUMIFS(Saving_measures[Subsidy share '[%']],Saving_measures[Measure],B1,Saving_measures[Cost type],"TYP",Saving_measures[Subsidy share '[%']],">0")+Tolerance,1,(D1-(SUMIFS(Saving_measures[Subsidy share '[%']],Saving_measures[Measure],B1,Saving_measures[Cost type],"TYP",Saving_measures[Subsidy share '[%']],">0")-Tolerance))/(2*Tolerance))))+SUMIFS(Saving_measures[Annual Cost Saved '[€/GJ.y']],Saving_measures[Measure],B1,Saving_measures[Cost type],"MAX",Saving_measures[Subsidy share '[%']],">0")*SUMIFS(Saving_measures[Energy saving potential '[TJ']],Saving_measures[Measure],B1,Saving_measures[Cost type],"MAX",Saving_measures[Subsidy share '[%']],">0")*(IF(D1<=SUMIFS(Saving_measures[Subsidy share '[%']],Saving_measures[Measure],B1,Saving_measures[Cost type],"MAX",Saving_measures[Subsidy share '[%']],">0")-Tolerance,0,IF(D1>=SUMIFS(Saving_measures[Subsidy share '[%']],Saving_measures[Measure],B1,Saving_measures[Cost type],"MAX",Saving_measures[Subsidy share '[%']],">0")+Tolerance,1,(D1-(SUMIFS(Saving_measures[Subsidy share '[%']],Saving_measures[Measure],B1,Saving_measures[Cost type],"MAX",Saving_measures[Subsidy share '[%']],">0")-Tolerance))/(2*Tolerance)))) -> 4260.467261 | O1: 7 | P1: 0.5 | Q1: 0.36 | R1: 0.14 | S1: =(SUMIFS(Saving_measures[Lifetime '[y']],Saving_measures[Measure],B1,Saving_measures[Cost type],"MIN")) -> 10 | T1: Management de l'energie
A2: Saving Measure 2 | B2: Waste heat utilisation | C2: 0.12 | D2: 0.7599999999 | E2: =(SUMIFS(Saving_measures[Subsidy '[€']],Saving_measures[Measure],B2,Saving_measures[Cost type],"MIN",Saving_measures[Subsidy share '[%']],">0")*(IF(D2<=SUMIFS(Saving_measures[Subsidy share '[%']],Saving_measures[Measure],B2,Saving_measures[Cost type],"MIN",Saving_measures[Subsidy share '[%']],">0")-Tolerance,0,IF(D2>=SUMIFS(Saving_measures[Subsidy share '[%']],Saving_measures[Measure],B2,Saving_measures[Cost type],"MIN",Saving_measures[Subsidy share '[%']],">0")+Tolerance,1,(D2-(SUMIFS(Saving_measures[Subsidy share '[%']],Saving_measures[Measure],B2,Saving_measures[Cost type],"MIN",Saving_measures[Subsidy share '[%']],">0")-Tolerance))/(2*Tolerance))))+SUMIFS(Saving_measures[Subsidy '[€']],Saving_measures[Measure],B2,Saving_measures[Cost type],"TYP",Saving_measures[Subsidy share '[%']],">0")*(IF(D2<=SUMIFS(Saving_measures[Subsidy share '[%']],Saving_measures[Measure],B2,Saving_measures[Cost type],"TYP",Saving_measures[Subsidy share '[%']],">0")-Tolerance,0,IF(D2>=SUMIFS(Saving_measures[Subsidy share '[%']],Saving_measures[Measure],B2,Saving_measures[Cost type],"TYP",Saving_measures[Subsidy share '[%']],">0")+Tolerance,1,(D2-(SUMIFS(Saving_measures[Subsidy share '[%']],Saving_measures[Measure],B2,Saving_measures[Cost type],"TYP",Saving_measures[Subsidy share '[%']],">0")-Tolerance))/(2*Tolerance))))+SUMIFS(Saving_measures[Subsidy '[€']],Saving_measures[Measure],B2,Saving_measures[Cost type],"MAX",Saving_measures[Subsidy share '[%']],">0")*(IF(D2<=SUMIFS(Saving_measures[Subsidy share '[%']],Saving_measures[Measure],B2,Saving_measures[Cost type],"MAX",Saving_measures[Subsidy share '[%']],">0")-Tolerance,0,IF(D2>=SUMIFS(Saving_measures[Subsidy share '[%']],Saving_measures[Measure],B2,Saving_measures[Cost type],"MAX",Saving_measures[Subsidy share '[%']],">0")+Tolerance,1,(D2-(SUMIFS(Saving_measures[Subsidy share '[%']],Saving_measures[Measure],B2,Saving_measures[Cost type],"MAX",Saving_measures[Subsidy share '[%']],">0")-Tolerance))/(2*Tolerance)))))/1000 -> 60568.72383 | F2: =(SUMIFS(Saving_measures[Investment costs '[€']],Saving_measures[Measure],B2,Saving_measures[Cost type],"MIN",Saving_measures[Subsidy share '[%']],">0")*(IF(D2<=SUMIFS(Saving_measures[Subsidy share '[%']],Saving_measures[Measure],B2,Saving_measures[Cost type],"MIN",Saving_measures[Subsidy share '[%']],">0")-Tolerance,0,IF(D2>=SUMIFS(Saving_measures[Subsidy share '[%']],Saving_measures[Measure],B2,Saving_measures[Cost type],"MIN",Saving_measures[Subsidy share '[%']],">0")+Tolerance,1,(D2-(SUMIFS(Saving_measures[Subsidy share '[%']],Saving_measures[Measure],B2,Saving_measures[Cost type],"MIN",Saving_measures[Subsidy share '[%']],">0")-Tolerance))/(2*Tolerance))))+SUMIFS(Saving_measures[Investment costs '[€']],Saving_measures[Measure],B2,Saving_measures[Cost type],"TYP",Saving_measures[Subsidy share '[%']],">0")*(IF(D2<=SUMIFS(Saving_measures[Subsidy share '[%']],Saving_measures[Measure],B2,Saving_measures[Cost type],"TYP",Saving_measures[Subsidy share '[%']],">0")-Tolerance,0,IF(D2>=SUMIFS(Saving_measures[Subsidy share '[%']],Saving_measures[Measure],B2,Saving_measures[Cost type],"TYP",Saving_measures[Subsidy share '[%']],">0")+Tolerance,1,(D2-(SUMIFS(Saving_measures[Subsidy share '[%']],Saving_measures[Measure],B2,Saving_measures[Cost type],"TYP",Saving_measures[Subsidy share '[%']],">0")-Tolerance))/(2*Tolerance))))+SUMIFS(Saving_measures[Investment costs '[€']],Saving_measures[Measure],B2,Saving_measures[Cost type],"MAX",Saving_measures[Subsidy share '[%']],">0")*(IF(D2<=SUMIFS(Saving_measures[Subsidy share '[%']],Saving_measures[Measure],B2,Saving_measures[Cost type],"MAX",Saving_measures[Subsidy share '[%']],">0")-Tolerance,0,IF(D2>=SUMIFS(Saving_measures[Subsidy share '[%']],Saving_measures[Measure],B2,Saving_measures[Cost type],"MAX",Saving_measures[Subsidy share '[%']],">0")+Tolerance,1,(D2-(SUMIFS(Saving_measures[Subsidy share '[%']],Saving_measures[Measure],B2,Saving_measures[Cost type],"MAX",Saving_measures[Subsidy share '[%']],">0")-Tolerance))/(2*Tolerance)))))/1000 -> 103832.098 | G2: =(SUMIFS(Saving_measures[Energy saving potential '[TJ']],Saving_measures[Measure],B2,Saving_measures[Cost type],"MIN",Saving_measures[Subsidy share '[%']],">0")*(IF(D2<=SUMIFS(Saving_measures[Subsidy share '[%']],Saving_measures[Measure],B2,Saving_measures[Cost type],"MIN",Saving_measures[Subsidy share '[%']],">0")-Tolerance,0,IF(D2>=SUMIFS(Saving_measures[Subsidy share '[%']],Saving_measures[Measure],B2,Saving_measures[Cost type],"MIN",Saving_measures[Subsidy share '[%']],">0")+Tolerance,1,(D2-(SUMIFS(Saving_measures[Subsidy share '[%']],Saving_measures[Measure],B2,Saving_measures[Cost type],"MIN",Saving_measures[Subsidy share '[%']],">0")-Tolerance))/(2*Tolerance))))+SUMIFS(Saving_measures[Energy saving potential '[TJ']],Saving_measures[Measure],B2,Saving_measures[Cost type],"TYP",Saving_measures[Subsidy share '[%']],">0")*(IF(D2<=SUMIFS(Saving_measures[Subsidy share '[%']],Saving_measures[Measure],B2,Saving_measures[Cost type],"TYP",Saving_measures[Subsidy share '[%']],">0")-Tolerance,0,IF(D2>=SUMIFS(Saving_measures[Subsidy share '[%']],Saving_measures[Measure],B2,Saving_measures[Cost type],"TYP",Saving_measures[Subsidy share '[%']],">0")+Tolerance,1,(D2-(SUMIFS(Saving_measures[Subsidy share '[%']],Saving_measures[Measure],B2,Saving_measures[Cost type],"TYP",Saving_measures[Subsidy share '[%']],">0")-Tolerance))/(2*Tolerance))))+ SUMIFS(Saving_measures[Energy saving potential '[TJ']],Saving_measures[Measure],B2,Saving_measures[Cost type],"MAX",Saving_measures[Subsidy share '[%']],">0")*(IF(D2<=SUMIFS(Saving_measures[Subsidy share '[%']],Saving_measures[Measure],B2,Saving_measures[Cost type],"MAX",Saving_measures[Subsidy share '[%']],">0")-Tolerance,0,IF(D2>=SUMIFS(Saving_measures[Subsidy share '[%']],Saving_measures[Measure],B2,Saving_measures[Cost type],"MAX",Saving_measures[Subsidy share '[%']],">0")+Tolerance,1,(D2-(SUMIFS(Saving_measures[Subsidy share '[%']],Saving_measures[Measure],B2,Saving_measures[Cost type],"MAX",Saving_measures[Subsidy share '[%']],">0")-Tolerance))/(2*Tolerance)))))*0.7 -> 1040.618398 | H2: =(SUMIFS(Saving_measures[Drop of CO2 emissions '[t']],Saving_measures[Measure],B2,Saving_measures[Cost type],"MIN",Saving_measures[Subsidy share '[%']],">0")*(IF(D2<=SUMIFS(Saving_measures[Subsidy share '[%']],Saving_measures[Measure],B2,Saving_measures[Cost type],"MIN",Saving_measures[Subsidy share '[%']],">0")-Tolerance,0,IF(D2>=SUMIFS(Saving_measures[Subsidy share '[%']],Saving_measures[Measure],B2,Saving_measures[Cost type],"MIN",Saving_measures[Subsidy share '[%']],">0")+Tolerance,1,(D2-(SUMIFS(Saving_measures[Subsidy share '[%']],Saving_measures[Measure],B2,Saving_measures[Cost type],"MIN",Saving_measures[Subsidy share '[%']],">0")-Tolerance))/(2*Tolerance))))+SUMIFS(Saving_measures[Drop of CO2 emissions '[t']],Saving_measures[Measure],B2,Saving_measures[Cost type],"TYP",Saving_measures[Subsidy share '[%']],">0")*(IF(D2<=SUMIFS(Saving_measures[Subsidy share '[%']],Saving_measures[Measure],B2,Saving_measures[Cost type],"TYP",Saving_measures[Subsidy share '[%']],">0")-Tolerance,0,IF(D2>=SUMIFS(Saving_measures[Subsidy share '[%']],Saving_measures[Measure],B2,Saving_measures[Cost type],"TYP",Saving_measures[Subsidy share '[%']],">0")+Tolerance,1,(D2-(SUMIFS(Saving_measures[Subsidy share '[%']],Saving_measures[Measure],B2,Saving_measures[Cost type],"TYP",Saving_measures[Subsidy share '[%']],">0")-Tolerance))/(2*Tolerance))))+SUMIFS(Saving_measures[Drop of CO2 emissions '[t']],Saving_measures[Measure],B2,Saving_measures[Cost type],"MAX",Saving_measures[Subsidy share '[%']],">0")*(IF(D2<=SUMIFS(Saving_measures[Subsidy share '[%']],Saving_measures[Measure],B2,Saving_measures[Cost type],"MAX",Saving_measures[Subsidy share '[%']],">0")-Tolerance,0,IF(D2>=SUMIFS(Saving_measures[Subsidy share '[%']],Saving_measures[Measure],B2,Saving_measures[Cost type],"MAX",Saving_measures[Subsidy share '[%']],">0")+Tolerance,1,(D2-(SUMIFS(Saving_measures[Subsidy share '[%']],Saving_measures[Measure],B2,Saving_measures[Cost type],"MAX",Saving_measures[Subsidy share '[%']],">0")-Tolerance))/(2*Tolerance)))))*0.7 -> 253188.0307 | I2: =(SUMIFS(Saving_measures[Drop of CH4 emissions'[kg']],Saving_measures[Measure],B2,Saving_measures[Cost type],"MIN",Saving_measures[Subsidy share '[%']],">0")*(IF(D2<=SUMIFS(Saving_measures[Subsidy share '[%']],Saving_measures[Measure],B2,Saving_measures[Cost type],"MIN",Saving_measures[Subsidy share '[%']],">0")-Tolerance,0,IF(D2>=SUMIFS(Saving_measures[Subsidy share '[%']],Saving_measures[Measure],B2,Saving_measures[Cost type],"MIN",Saving_measures[Subsidy share '[%']],">0")+Tolerance,1,(D2-(SUMIFS(Saving_measures[Subsidy share '[%']],Saving_measures[Measure],B2,Saving_measures[Cost type],"MIN",Saving_measures[Subsidy share '[%']],">0")-Tolerance))/(2*Tolerance))))+SUMIFS(Saving_measures[Drop of CH4 emissions'[kg']],Saving_measures[Measure],B2,Saving_measures[Cost type],"TYP",Saving_measures[Subsidy share '[%']],">0")*(IF(D2<=SUMIFS(Saving_measures[Subsidy share '[%']],Saving_measures[Measure],B2,Saving_measures[Cost type],"TYP",Saving_measures[Subsidy share '[%']],">0")-Tolerance,0,IF(D2>=SUMIFS(Saving_measures[Subsidy share '[%']],Saving_measures[Measure],B2,Saving_measures[Cost type],"TYP",Saving_measures[Subsidy share '[%']],">0")+Tolerance,1,(D2-(SUMIFS(Saving_measures[Subsidy share '[%']],Saving_measures[Measure],B2,Saving_measures[Cost type],"TYP",Saving_measures[Subsidy share '[%']],">0")-Tolerance))/(2*Tolerance))))+SUMIFS(Saving_measures[Drop of CH4 emissions'[kg']],Saving_measures[Measure],B2,Saving_measures[Cost type],"MAX",Saving_measures[Subsidy share '[%']],">0")*(IF(D2<=SUMIFS(Saving_measures[Subsidy share '[%']],Saving_measures[Measure],B2,Saving_measures[Cost type],"MAX",Saving_measures[Subsidy share '[%']],">0")-Tolerance,0,IF(D2>=SUMIFS(Saving_measures[Subsidy share '[%']],Saving_measures[Measure],B2,Saving_measures[Cost type],"MAX",Saving_measures[Subsidy share '[%']],">0")+Tolerance,1,(D2-(SUMIFS(Saving_measures[Subsidy share '[%']],Saving_measures[Measure],B2,Saving_measures[Cost type],"MAX",Saving_measures[Subsidy share '[%']],">0")-Tolerance))/(2*Tolerance)))))*0.7 -> 2705.001992 | J2: =(SUMIFS(Saving_measures[Drop of N2O emissions '[kg']],Saving_measures[Measure],B2,Saving_measures[Cost type],"MIN",Saving_measures[Subsidy share '[%']],">0")*(IF(D2<=SUMIFS(Saving_measures[Subsidy share '[%']],Saving_measures[Measure],B2,Saving_measures[Cost type],"MIN",Saving_measures[Subsidy share '[%']],">0")-Tolerance,0,IF(D2>=SUMIFS(Saving_measures[Subsidy share '[%']],Saving_measures[Measure],B2,Saving_measures[Cost type],"MIN",Saving_measures[Subsidy share '[%']],">0")+Tolerance,1,(D2-(SUMIFS(Saving_measures[Subsidy share '[%']],Saving_measures[Measure],B2,Saving_measures[Cost type],"MIN",Saving_measures[Subsidy share '[%']],">0")-Tolerance))/(2*Tolerance))))+SUMIFS(Saving_measures[Drop of N2O emissions '[kg']],Saving_measures[Measure],B2,Saving_measures[Cost type],"TYP",Saving_measures[Subsidy share '[%']],">0")*(IF(D2<=SUMIFS(Saving_measures[Subsidy share '[%']],Saving_measures[Measure],B2,Saving_measures[Cost type],"TYP",Saving_measures[Subsidy share '[%']],">0")-Tolerance,0,IF(D2>=SUMIFS(Saving_measures[Subsidy share '[%']],Saving_measures[Measure],B2,Saving_measures[Cost type],"TYP",Saving_measures[Subsidy share '[%']],">0")+Tolerance,1,(D2-(SUMIFS(Saving_measures[Subsidy share '[%']],Saving_measures[Measure],B2,Saving_measures[Cost type],"TYP",Saving_measures[Subsidy share '[%']],">0")-Tolerance))/(2*Tolerance))))+SUMIFS(Saving_measures[Drop of N2O emissions '[kg']],Saving_measures[Measure],B2,Saving_measures[Cost type],"MAX",Saving_measures[Subsidy share '[%']],">0")*(IF(D2<=SUMIFS(Saving_measures[Subsidy share '[%']],Saving_measures[Measure],B2,Saving_measures[Cost type],"MAX",Saving_measures[Subsidy share '[%']],">0")-Tolerance,0,IF(D2>=SUMIFS(Saving_measures[Subsidy share '[%']],Saving_measures[Measure],B2,Saving_measures[Cost type],"MAX",Saving_measures[Subsidy share '[%']],">0")+Tolerance,1,(D2-(SUMIFS(Saving_measures[Subsidy share '[%']],Saving_measures[Measure],B2,Saving_measures[Cost type],"MAX",Saving_measures[Subsidy share '[%']],">0")-Tolerance))/(2*Tolerance)))))*0.7 -> 3550.58613 | K2: =(SUMIFS(Saving_measures[Drop of CO2eq emissions '[t']],Saving_measures[Measure],B2,Saving_measures[Cost type],"MIN",Saving_measures[Subsidy share '[%']],">0")*(IF(D2<=SUMIFS(Saving_measures[Subsidy share '[%']],Saving_measures[Measure],B2,Saving_measures[Cost type],"MIN",Saving_measures[Subsidy share '[%']],">0")-Tolerance,0,IF(D2>=SUMIFS(Saving_measures[Subsidy share '[%']],Saving_measures[Measure],B2,Saving_measures[Cost type],"MIN",Saving_measures[Subsidy share '[%']],">0")+Tolerance,1,(D2-(SUMIFS(Saving_measures[Subsidy share '[%']],Saving_measures[Measure],B2,Saving_measures[Cost type],"MIN",Saving_measures[Subsidy share '[%']],">0")-Tolerance))/(2*Tolerance))))+SUMIFS(Saving_measures[Drop of CO2eq emissions '[t']],Saving_measures[Measure],B2,Saving_measures[Cost type],"TYP",Saving_measures[Subsidy share '[%']],">0")*(IF(D2<=SUMIFS(Saving_measures[Subsidy share '[%']],Saving_measures[Measure],B2,Saving_measures[Cost type],"TYP",Saving_measures[Subsidy share '[%']],">0")-Tolerance,0,IF(D2>=SUMIFS(Saving_measures[Subsidy share '[%']],Saving_measures[Measure],B2,Saving_measures[Cost type],"TYP",Saving_measures[Subsidy share '[%']],">0")+Tolerance,1,(D2-(SUMIFS(Saving_measures[Subsidy share '[%']],Saving_measures[Measure],B2,Saving_measures[Cost type],"TYP",Saving_measures[Subsidy share '[%']],">0")-Tolerance))/(2*Tolerance))))+SUMIFS(Saving_measures[Drop of CO2eq emissions '[t']],Saving_measures[Measure],B2,Saving_measures[Cost type],"MAX",Saving_measures[Subsidy share '[%']],">0")*(IF(D2<=SUMIFS(Saving_measures[Subsidy share '[%']],Saving_measures[Measure],B2,Saving_measures[Cost type],"MAX",Saving_measures[Subsidy share '[%']],">0")-Tolerance,0,IF(D2>=SUMIFS(Saving_measures[Subsidy share '[%']],Saving_measures[Measure],B2,Saving_measures[Cost type],"MAX",Saving_measures[Subsidy share '[%']],">0")+Tolerance,1,(D2-(SUMIFS(Saving_measures[Subsidy share '[%']],Saving_measures[Measure],B2,Saving_measures[Cost type],"MAX",Saving_measures[Subsidy share '[%']],">0")-Tolerance))/(2*Tolerance)))))*0.7 -> 254313.7304 | L2: =SUMIFS(Saving_measures[Annual Cost Saved '[€/GJ.y']],Saving_measures[Measure],B2,Saving_measures[Cost type],"MIN",Saving_measures[Subsidy share '[%']],">0")*SUMIFS(Saving_measures[Energy saving potential '[TJ']],Saving_measures[Measure],B2,Saving_measures[Cost type],"MIN",Saving_measures[Subsidy share '[%']],">0")*(IF(D2<=SUMIFS(Saving_measures[Subsidy share '[%']],Saving_measures[Measure],B2,Saving_measures[Cost type],"MIN",Saving_measures[Subsidy share '[%']],">0")-Tolerance,0,IF(D2>=SUMIFS(Saving_measures[Subsidy share '[%']],Saving_measures[Measure],B2,Saving_measures[Cost type],"MIN",Saving_measures[Subsidy share '[%']],">0")+Tolerance,1,(D2-(SUMIFS(Saving_measures[Subsidy share '[%']],Saving_measures[Measure],B2,Saving_measures[Cost type],"MIN",Saving_measures[Subsidy share '[%']],">0")-Tolerance))/(2*Tolerance))))+SUMIFS(Saving_measures[Annual Cost Saved '[€/GJ.y']],Saving_measures[Measure],B2,Saving_measures[Cost type],"TYP",Saving_measures[Subsidy share '[%']],">0")*SUMIFS(Saving_measures[Energy saving potential '[TJ']],Saving_measures[Measure],B2,Saving_measures[Cost type],"TYP",Saving_measures[Subsidy share '[%']],">0")*(IF(D2<=SUMIFS(Saving_measures[Subsidy share '[%']],Saving_measures[Measure],B2,Saving_measures[Cost type],"TYP",Saving_measures[Subsidy share '[%']],">0")-Tolerance,0,IF(D2>=SUMIFS(Saving_measures[Subsidy share '[%']],Saving_measures[Measure],B2,Saving_measures[Cost type],"TYP",Saving_measures[Subsidy share '[%']],">0")+Tolerance,1,(D2-(SUMIFS(Saving_measures[Subsidy share '[%']],Saving_measures[Measure],B2,Saving_measures[Cost type],"TYP",Saving_measures[Subsidy share '[%']],">0")-Tolerance))/(2*Tolerance))))+SUMIFS(Saving_measures[Annual Cost Saved '[€/GJ.y']],Saving_measures[Measure],B2,Saving_measures[Cost type],"MAX",Saving_measures[Subsidy share '[%']],">0")*SUMIFS(Saving_measures[Energy saving potential '[TJ']],Saving_measures[Measure],B2,Saving_measures[Cost type],"MAX",Saving_measures[Subsidy share '[%']],">0")*(IF(D2<=SUMIFS(Saving_measures[Subsidy share '[%']],Saving_measures[Measure],B2,Saving_measures[Cost type],"MAX",Saving_measures[Subsidy share '[%']],">0")-Tolerance,0,IF(D2>=SUMIFS(Saving_measures[Subsidy share '[%']],Saving_measures[Measure],B2,Saving_measures[Cost type],"MAX",Saving_measures[Subsidy share '[%']],">0")+Tolerance,1,(D2-(SUMIFS(Saving_measures[Subsidy share '[%']],Saving_measures[Measure],B2,Saving_measures[Cost type],"MAX",Saving_measures[Subsidy share '[%']],">0")-Tolerance))/(2*Tolerance)))) -> 8652.674833 | P2: 0.6 | Q2: 0.2 | R2: 0.2 | S2: =(SUMIFS(Saving_measures[Lifetime '[y']],Saving_measures[Measure],B2,Saving_measures[Cost type],"MIN")) -> 20 | T2: Recuperation des pertes de chaleur
A3: Saving Measure 3 | B3: Installation of heat pumps | C3: 0.06 | D3: 0.5999999999 | E3: =(SUMIFS(Saving_measures[Subsidy '[€']],Saving_measures[Measure],B3,Saving_measures[Cost type],"MIN",Saving_measures[Subsidy share '[%']],">0")*(IF(D3<=SUMIFS(Saving_measures[Subsidy share '[%']],Saving_measures[Measure],B3,Saving_measures[Cost type],"MIN",Saving_measures[Subsidy share '[%']],">0")-Tolerance,0,IF(D3>=SUMIFS(Saving_measures[Subsidy share '[%']],Saving_measures[Measure],B3,Saving_measures[Cost type],"MIN",Saving_measures[Subsidy share '[%']],">0")+Tolerance,1,(D3-(SUMIFS(Saving_measures[Subsidy share '[%']],Saving_measures[Measure],B3,Saving_measures[Cost type],"MIN",Saving_measures[Subsidy share '[%']],">0")-Tolerance))/(2*Tolerance))))+SUMIFS(Saving_measures[Subsidy '[€']],Saving_measures[Measure],B3,Saving_measures[Cost type],"TYP",Saving_measures[Subsidy share '[%']],">0")*(IF(D3<=SUMIFS(Saving_measures[Subsidy share '[%']],Saving_measures[Measure],B3,Saving_measures[Cost type],"TYP",Saving_measures[Subsidy share '[%']],">0")-Tolerance,0,IF(D3>=SUMIFS(Saving_measures[Subsidy share '[%']],Saving_measures[Measure],B3,Saving_measures[Cost type],"TYP",Saving_measures[Subsidy share '[%']],">0")+Tolerance,1,(D3-(SUMIFS(Saving_measures[Subsidy share '[%']],Saving_measures[Measure],B3,Saving_measures[Cost type],"TYP",Saving_measures[Subsidy share '[%']],">0")-Tolerance))/(2*Tolerance))))+SUMIFS(Saving_measures[Subsidy '[€']],Saving_measures[Measure],B3,Saving_measures[Cost type],"MAX",Saving_measures[Subsidy share '[%']],">0")*(IF(D3<=SUMIFS(Saving_measures[Subsidy share '[%']],Saving_measures[Measure],B3,Saving_measures[Cost type],"MAX",Saving_measures[Subsidy share '[%']],">0")-Tolerance,0,IF(D3>=SUMIFS(Saving_measures[Subsidy share '[%']],Saving_measures[Measure],B3,Saving_measures[Cost type],"MAX",Saving_measures[Subsidy share '[%']],">0")+Tolerance,1,(D3-(SUMIFS(Saving_measures[Subsidy share '[%']],Saving_measures[Measure],B3,Saving_measures[Cost type],"MAX",Saving_measures[Subsidy share '[%']],">0")-Tolerance))/(2*Tolerance)))))/1000 -> 267657.7939 | F3: =(SUMIFS(Saving_measures[Investment costs '[€']],Saving_measures[Measure],B3,Saving_measures[Cost type],"MIN",Saving_measures[Subsidy share '[%']],">0")*(IF(D3<=SUMIFS(Saving_measures[Subsidy share '[%']],Saving_measures[Measure],B3,Saving_measures[Cost type],"MIN",Saving_measures[Subsidy share '[%']],">0")-Tolerance,0,IF(D3>=SUMIFS(Saving_measures[Subsidy share '[%']],Saving_measures[Measure],B3,Saving_measures[Cost type],"MIN",Saving_measures[Subsidy share '[%']],">0")+Tolerance,1,(D3-(SUMIFS(Saving_measures[Subsidy share '[%']],Saving_measures[Measure],B3,Saving_measures[Cost type],"MIN",Saving_measures[Subsidy share '[%']],">0")-Tolerance))/(2*Tolerance))))+SUMIFS(Saving_measures[Investment costs '[€']],Saving_measures[Measure],B3,Saving_measures[Cost type],"TYP",Saving_measures[Subsidy share '[%']],">0")*(IF(D3<=SUMIFS(Saving_measures[Subsidy share '[%']],Saving_measures[Measure],B3,Saving_measures[Cost type],"TYP",Saving_measures[Subsidy share '[%']],">0")-Tolerance,0,IF(D3>=SUMIFS(Saving_measures[Subsidy share '[%']],Saving_measures[Measure],B3,Saving_measures[Cost type],"TYP",Saving_measures[Subsidy share '[%']],">0")+Tolerance,1,(D3-(SUMIFS(Saving_measures[Subsidy share '[%']],Saving_measures[Measure],B3,Saving_measures[Cost type],"TYP",Saving_measures[Subsidy share '[%']],">0")-Tolerance))/(2*Tolerance))))+SUMIFS(Saving_measures[Investment costs '[€']],Saving_measures[Measure],B3,Saving_measures[Cost type],"MAX",Saving_measures[Subsidy share '[%']],">0")*(IF(D3<=SUMIFS(Saving_measures[Subsidy share '[%']],Saving_measures[Measure],B3,Saving_measures[Cost type],"MAX",Saving_measures[Subsidy share '[%']],">0")-Tolerance,0,IF(D3>=SUMIFS(Saving_measures[Subsidy share '[%']],Saving_measures[Measure],B3,Saving_measures[Cost type],"MAX",Saving_measures[Subsidy share '[%']],">0")+Tolerance,1,(D3-(SUMIFS(Saving_measures[Subsidy share '[%']],Saving_measures[Measure],B3,Saving_measures[Cost type],"MAX",Saving_measures[Subsidy share '[%']],">0")-Tolerance))/(2*Tolerance)))))/1000 -> 667118.3772 | G3: =(SUMIFS(Saving_measures[Energy saving potential '[TJ']],Saving_measures[Measure],B3,Saving_measures[Cost type],"MIN",Saving_measures[Subsidy share '[%']],">0")*(IF(D3<=SUMIFS(Saving_measures[Subsidy share '[%']],Saving_measures[Measure],B3,Saving_measures[Cost type],"MIN",Saving_measures[Subsidy share '[%']],">0")-Tolerance,0,IF(D3>=SUMIFS(Saving_measures[Subsidy share '[%']],Saving_measures[Measure],B3,Saving_measures[Cost type],"MIN",Saving_measures[Subsidy share '[%']],">0")+Tolerance,1,(D3-(SUMIFS(Saving_measures[Subsidy share '[%']],Saving_measures[Measure],B3,Saving_measures[Cost type],"MIN",Saving_measures[Subsidy share '[%']],">0")-Tolerance))/(2*Tolerance))))+SUMIFS(Saving_measures[Energy saving potential '[TJ']],Saving_measures[Measure],B3,Saving_measures[Cost type],"TYP",Saving_measures[Subsidy share '[%']],">0")*(IF(D3<=SUMIFS(Saving_measures[Subsidy share '[%']],Saving_measures[Measure],B3,Saving_measures[Cost type],"TYP",Saving_measures[Subsidy share '[%']],">0")-Tolerance,0,IF(D3>=SUMIFS(Saving_measures[Subsidy share '[%']],Saving_measures[Measure],B3,Saving_measures[Cost type],"TYP",Saving_measures[Subsidy share '[%']],">0")+Tolerance,1,(D3-(SUMIFS(Saving_measures[Subsidy share '[%']],Saving_measures[Measure],B3,Saving_measures[Cost type],"TYP",Saving_measures[Subsidy share '[%']],">0")-Tolerance))/(2*Tolerance))))+ SUMIFS(Saving_measures[Energy saving potential '[TJ']],Saving_measures[Measure],B3,Saving_measures[Cost type],"MAX",Saving_measures[Subsidy share '[%']],">0")*(IF(D3<=SUMIFS(Saving_measures[Subsidy share '[%']],Saving_measures[Measure],B3,Saving_measures[Cost type],"MAX",Saving_measures[Subsidy share '[%']],">0")-Tolerance,0,IF(D3>=SUMIFS(Saving_measures[Subsidy share '[%']],Saving_measures[Measure],B3,Saving_measures[Cost type],"MAX",Saving_measures[Subsidy share '[%']],">0")+Tolerance,1,(D3-(SUMIFS(Saving_measures[Subsidy share '[%']],Saving_measures[Measure],B3,Saving_measures[Cost type],"MAX",Saving_measures[Subsidy share '[%']],">0")-Tolerance))/(2*Tolerance)))))*0.7 -> 5447.216744 | H3: =(SUMIFS(Saving_measures[Drop of CO2 emissions '[t']],Saving_measures[Measure],B3,Saving_measures[Cost type],"MIN",Saving_measures[Subsidy share '[%']],">0")*(IF(D3<=SUMIFS(Saving_measures[Subsidy share '[%']],Saving_measures[Measure],B3,Saving_measures[Cost type],"MIN",Saving_measures[Subsidy share '[%']],">0")-Tolerance,0,IF(D3>=SUMIFS(Saving_measures[Subsidy share '[%']],Saving_measures[Measure],B3,Saving_measures[Cost type],"MIN",Saving_measures[Subsidy share '[%']],">0")+Tolerance,1,(D3-(SUMIFS(Saving_measures[Subsidy share '[%']],Saving_measures[Measure],B3,Saving_measures[Cost type],"MIN",Saving_measures[Subsidy share '[%']],">0")-Tolerance))/(2*Tolerance))))+SUMIFS(Saving_measures[Drop of CO2 emissions '[t']],Saving_measures[Measure],B3,Saving_measures[Cost type],"TYP",Saving_measures[Subsidy share '[%']],">0")*(IF(D3<=SUMIFS(Saving_measures[Subsidy share '[%']],Saving_measures[Measure],B3,Saving_measures[Cost type],"TYP",Saving_measures[Subsidy share '[%']],">0")-Tolerance,0,IF(D3>=SUMIFS(Saving_measures[Subsidy share '[%']],Saving_measures[Measure],B3,Saving_measures[Cost type],"TYP",Saving_measures[Subsidy share '[%']],">0")+Tolerance,1,(D3-(SUMIFS(Saving_measures[Subsidy share '[%']],Saving_measures[Measure],B3,Saving_measures[Cost type],"TYP",Saving_measures[Subsidy share '[%']],">0")-Tolerance))/(2*Tolerance))))+SUMIFS(Saving_measures[Drop of CO2 emissions '[t']],Saving_measures[Measure],B3,Saving_measures[Cost type],"MAX",Saving_measures[Subsidy share '[%']],">0")*(IF(D3<=SUMIFS(Saving_measures[Subsidy share '[%']],Saving_measures[Measure],B3,Saving_measures[Cost type],"MAX",Saving_measures[Subsidy share '[%']],">0")-Tolerance,0,IF(D3>=SUMIFS(Saving_measures[Subsidy share '[%']],Saving_measures[Measure],B3,Saving_measures[Cost type],"MAX",Saving_measures[Subsidy share '[%']],">0")+Tolerance,1,(D3-(SUMIFS(Saving_measures[Subsidy share '[%']],Saving_measures[Measure],B3,Saving_measures[Cost type],"MAX",Saving_measures[Subsidy share '[%']],">0")-Tolerance))/(2*Tolerance)))))*0.7 -> 361147.1672 | I3: =(SUMIFS(Saving_measures[Drop of CH4 emissions'[kg']],Saving_measures[Measure],B3,Saving_measures[Cost type],"MIN",Saving_measures[Subsidy share '[%']],">0")*(IF(D3<=SUMIFS(Saving_measures[Subsidy share '[%']],Saving_measures[Measure],B3,Saving_measures[Cost type],"MIN",Saving_measures[Subsidy share '[%']],">0")-Tolerance,0,IF(D3>=SUMIFS(Saving_measures[Subsidy share '[%']],Saving_measures[Measure],B3,Saving_measures[Cost type],"MIN",Saving_measures[Subsidy share '[%']],">0")+Tolerance,1,(D3-(SUMIFS(Saving_measures[Subsidy share '[%']],Saving_measures[Measure],B3,Saving_measures[Cost type],"MIN",Saving_measures[Subsidy share '[%']],">0")-Tolerance))/(2*Tolerance))))+SUMIFS(Saving_measures[Drop of CH4 emissions'[kg']],Saving_measures[Measure],B3,Saving_measures[Cost type],"TYP",Saving_measures[Subsidy share '[%']],">0")*(IF(D3<=SUMIFS(Saving_measures[Subsidy share '[%']],Saving_measures[Measure],B3,Saving_measures[Cost type],"TYP",Saving_measures[Subsidy share '[%']],">0")-Tolerance,0,IF(D3>=SUMIFS(Saving_measures[Subsidy share '[%']],Saving_measures[Measure],B3,Saving_measures[Cost type],"TYP",Saving_measures[Subsidy share '[%']],">0")+Tolerance,1,(D3-(SUMIFS(Saving_measures[Subsidy share '[%']],Saving_measures[Measure],B3,Saving_measures[Cost type],"TYP",Saving_measures[Subsidy share '[%']],">0")-Tolerance))/(2*Tolerance))))+SUMIFS(Saving_measures[Drop of CH4 emissions'[kg']],Saving_measures[Measure],B3,Saving_measures[Cost type],"MAX",Saving_measures[Subsidy share '[%']],">0")*(IF(D3<=SUMIFS(Saving_measures[Subsidy share '[%']],Saving_measures[Measure],B3,Saving_measures[Cost type],"MAX",Saving_measures[Subsidy share '[%']],">0")-Tolerance,0,IF(D3>=SUMIFS(Saving_measures[Subsidy share '[%']],Saving_measures[Measure],B3,Saving_measures[Cost type],"MAX",Saving_measures[Subsidy share '[%']],">0")+Tolerance,1,(D3-(SUMIFS(Saving_measures[Subsidy share '[%']],Saving_measures[Measure],B3,Saving_measures[Cost type],"MAX",Saving_measures[Subsidy share '[%']],">0")-Tolerance))/(2*Tolerance)))))*0.7 -> 26242.96854 | J3: =(SUMIFS(Saving_measures[Drop of N2O emissions '[kg']],Saving_measures[Measure],B3,Saving_measures[Cost type],"MIN",Saving_measures[Subsidy share '[%']],">0")*(IF(D3<=SUMIFS(Saving_measures[Subsidy share '[%']],Saving_measures[Measure],B3,Saving_measures[Cost type],"MIN",Saving_measures[Subsidy share '[%']],">0")-Tolerance,0,IF(D3>=SUMIFS(Saving_measures[Subsidy share '[%']],Saving_measures[Measure],B3,Saving_measures[Cost type],"MIN",Saving_measures[Subsidy share '[%']],">0")+Tolerance,1,(D3-(SUMIFS(Saving_measures[Subsidy share '[%']],Saving_measures[Measure],B3,Saving_measures[Cost type],"MIN",Saving_measures[Subsidy share '[%']],">0")-Tolerance))/(2*Tolerance))))+SUMIFS(Saving_measures[Drop of N2O emissions '[kg']],Saving_measures[Measure],B3,Saving_measures[Cost type],"TYP",Saving_measures[Subsidy share '[%']],">0")*(IF(D3<=SUMIFS(Saving_measures[Subsidy share '[%']],Saving_measures[Measure],B3,Saving_measures[Cost type],"TYP",Saving_measures[Subsidy share '[%']],">0")-Tolerance,0,IF(D3>=SUMIFS(Saving_measures[Subsidy share '[%']],Saving_measures[Measure],B3,Saving_measures[Cost type],"TYP",Saving_measures[Subsidy share '[%']],">0")+Tolerance,1,(D3-(SUMIFS(Saving_measures[Subsidy share '[%']],Saving_measures[Measure],B3,Saving_measures[Cost type],"TYP",Saving_measures[Subsidy share '[%']],">0")-Tolerance))/(2*Tolerance))))+SUMIFS(Saving_measures[Drop of N2O emissions '[kg']],Saving_measures[Measure],B3,Saving_measures[Cost type],"MAX",Saving_measures[Subsidy share '[%']],">0")*(IF(D3<=SUMIFS(Saving_measures[Subsidy share '[%']],Saving_measures[Measure],B3,Saving_measures[Cost type],"MAX",Saving_measures[Subsidy share '[%']],">0")-Tolerance,0,IF(D3>=SUMIFS(Saving_measures[Subsidy share '[%']],Saving_measures[Measure],B3,Saving_measures[Cost type],"MAX",Saving_measures[Subsidy share '[%']],">0")+Tolerance,1,(D3-(SUMIFS(Saving_measures[Subsidy share '[%']],Saving_measures[Measure],B3,Saving_measures[Cost type],"MAX",Saving_measures[Subsidy share '[%']],">0")-Tolerance))/(2*Tolerance)))))*0.7 -> 4603.184636 | K3: =(SUMIFS(Saving_measures[Drop of CO2eq emissions '[t']],Saving_measures[Measure],B3,Saving_measures[Cost type],"MIN",Saving_measures[Subsidy share '[%']],">0")*(IF(D3<=SUMIFS(Saving_measures[Subsidy share '[%']],Saving_measures[Measure],B3,Saving_measures[Cost type],"MIN",Saving_measures[Subsidy share '[%']],">0")-Tolerance,0,IF(D3>=SUMIFS(Saving_measures[Subsidy share '[%']],Saving_measures[Measure],B3,Saving_measures[Cost type],"MIN",Saving_measures[Subsidy share '[%']],">0")+Tolerance,1,(D3-(SUMIFS(Saving_measures[Subsidy share '[%']],Saving_measures[Measure],B3,Saving_measures[Cost type],"MIN",Saving_measures[Subsidy share '[%']],">0")-Tolerance))/(2*Tolerance))))+SUMIFS(Saving_measures[Drop of CO2eq emissions '[t']],Saving_measures[Measure],B3,Saving_measures[Cost type],"TYP",Saving_measures[Subsidy share '[%']],">0")*(IF(D3<=SUMIFS(Saving_measures[Subsidy share '[%']],Saving_measures[Measure],B3,Saving_measures[Cost type],"TYP",Saving_measures[Subsidy share '[%']],">0")-Tolerance,0,IF(D3>=SUMIFS(Saving_measures[Subsidy share '[%']],Saving_measures[Measure],B3,Saving_measures[Cost type],"TYP",Saving_measures[Subsidy share '[%']],">0")+Tolerance,1,(D3-(SUMIFS(Saving_measures[Subsidy share '[%']],Saving_measures[Measure],B3,Saving_measures[Cost type],"TYP",Saving_measures[Subsidy share '[%']],">0")-Tolerance))/(2*Tolerance))))+SUMIFS(Saving_measures[Drop of CO2eq emissions '[t']],Saving_measures[Measure],B3,Saving_measures[Cost type],"MAX",Saving_measures[Subsidy share '[%']],">0")*(IF(D3<=SUMIFS(Saving_measures[Subsidy share '[%']],Saving_measures[Measure],B3,Saving_measures[Cost type],"MAX",Saving_measures[Subsidy share '[%']],">0")-Tolerance,0,IF(D3>=SUMIFS(Saving_measures[Subsidy share '[%']],Saving_measures[Measure],B3,Saving_measures[Cost type],"MAX",Saving_measures[Subsidy share '[%']],">0")+Tolerance,1,(D3-(SUMIFS(Saving_measures[Subsidy share '[%']],Saving_measures[Measure],B3,Saving_measures[Cost type],"MAX",Saving_measures[Subsidy share '[%']],">0")-Tolerance))/(2*Tolerance)))))*0.7 -> 363174.9904 | L3: =SUMIFS(Saving_measures[Annual Cost Saved '[€/GJ.y']],Saving_measures[Measure],B3,Saving_measures[Cost type],"MIN",Saving_measures[Subsidy share '[%']],">0")*SUMIFS(Saving_measures[Energy saving potential '[TJ']],Saving_measures[Measure],B3,Saving_measures[Cost type],"MIN",Saving_measures[Subsidy share '[%']],">0")*(IF(D3<=SUMIFS(Saving_measures[Subsidy share '[%']],Saving_measures[Measure],B3,Saving_measures[Cost type],"MIN",Saving_measures[Subsidy share '[%']],">0")-Tolerance,0,IF(D3>=SUMIFS(Saving_measures[Subsidy share '[%']],Saving_measures[Measure],B3,Saving_measures[Cost type],"MIN",Saving_measures[Subsidy share '[%']],">0")+Tolerance,1,(D3-(SUMIFS(Saving_measures[Subsidy share '[%']],Saving_measures[Measure],B3,Saving_measures[Cost type],"MIN",Saving_measures[Subsidy share '[%']],">0")-Tolerance))/(2*Tolerance))))+SUMIFS(Saving_measures[Annual Cost Saved '[€/GJ.y']],Saving_measures[Measure],B3,Saving_measures[Cost type],"TYP",Saving_measures[Subsidy share '[%']],">0")*SUMIFS(Saving_measures[Energy saving potential '[TJ']],Saving_measures[Measure],B3,Saving_measures[Cost type],"TYP",Saving_measures[Subsidy share '[%']],">0")*(IF(D3<=SUMIFS(Saving_measures[Subsidy share '[%']],Saving_measures[Measure],B3,Saving_measures[Cost type],"TYP",Saving_measures[Subsidy share '[%']],">0")-Tolerance,0,IF(D3>=SUMIFS(Saving_measures[Subsidy share '[%']],Saving_measures[Measure],B3,Saving_measures[Cost type],"TYP",Saving_measures[Subsidy share '[%']],">0")+Tolerance,1,(D3-(SUMIFS(Saving_measures[Subsidy share '[%']],Saving_measures[Measure],B3,Saving_measures[Cost type],"TYP",Saving_measures[Subsidy share '[%']],">0")-Tolerance))/(2*Tolerance))))+SUMIFS(Saving_measures[Annual Cost Saved '[€/GJ.y']],Saving_measures[Measure],B3,Saving_measures[Cost type],"MAX",Saving_measures[Subsidy share '[%']],">0")*SUMIFS(Saving_measures[Energy saving potential '[TJ']],Saving_measures[Measure],B3,Saving_measures[Cost type],"MAX",Saving_measures[Subsidy share '[%']],">0")*(IF(D3<=SUMIFS(Saving_measures[Subsidy share '[%']],Saving_measures[Measure],B3,Saving_measures[Cost type],"MAX",Saving_measures[Subsidy share '[%']],">0")-Tolerance,0,IF(D3>=SUMIFS(Saving_measures[Subsidy share '[%']],Saving_measures[Measure],B3,Saving_measures[Cost type],"MAX",Saving_measures[Subsidy share '[%']],">0")+Tolerance,1,(D3-(SUMIFS(Saving_measures[Subsidy share '[%']],Saving_measures[Measure],B3,Saving_measures[Cost type],"MAX",Saving_measures[Subsidy share '[%']],">0")-Tolerance))/(2*Tolerance)))) -> 79892.11665 | P3: 0.2 | Q3: 0.5 | R3: 0.3 | S3: =(SUMIFS(Saving_measures[Lifetime '[y']],Saving_measures[Measure],B3,Saving_measures[Cost type],"MIN")) -> 15 | T3: Installation de pompes a chaleur
A4: Saving Measure 4 | B4: Control of circulation pumps | C4: 0.2 | D4: 0.7799999998 | E4: =(SUMIFS(Saving_measures[Subsidy '[€']],Saving_measures[Measure],B4,Saving_measures[Cost type],"MIN",Saving_measures[Subsidy share '[%']],">0")*(IF(D4<=SUMIFS(Saving_measures[Subsidy share '[%']],Saving_measures[Measure],B4,Saving_measures[Cost type],"MIN",Saving_measures[Subsidy share '[%']],">0")-Tolerance,0,IF(D4>=SUMIFS(Saving_measures[Subsidy share '[%']],Saving_measures[Measure],B4,Saving_measures[Cost type],"MIN",Saving_measures[Subsidy share '[%']],">0")+Tolerance,1,(D4-(SUMIFS(Saving_measures[Subsidy share '[%']],Saving_measures[Measure],B4,Saving_measures[Cost type],"MIN",Saving_measures[Subsidy share '[%']],">0")-Tolerance))/(2*Tolerance))))+SUMIFS(Saving_measures[Subsidy '[€']],Saving_measures[Measure],B4,Saving_measures[Cost type],"TYP",Saving_measures[Subsidy share '[%']],">0")*(IF(D4<=SUMIFS(Saving_measures[Subsidy share '[%']],Saving_measures[Measure],B4,Saving_measures[Cost type],"TYP",Saving_measures[Subsidy share '[%']],">0")-Tolerance,0,IF(D4>=SUMIFS(Saving_measures[Subsidy share '[%']],Saving_measures[Measure],B4,Saving_measures[Cost type],"TYP",Saving_measures[Subsidy share '[%']],">0")+Tolerance,1,(D4-(SUMIFS(Saving_measures[Subsidy share '[%']],Saving_measures[Measure],B4,Saving_measures[Cost type],"TYP",Saving_measures[Subsidy share '[%']],">0")-Tolerance))/(2*Tolerance))))+SUMIFS(Saving_measures[Subsidy '[€']],Saving_measures[Measure],B4,Saving_measures[Cost type],"MAX",Saving_measures[Subsidy share '[%']],">0")*(IF(D4<=SUMIFS(Saving_measures[Subsidy share '[%']],Saving_measures[Measure],B4,Saving_measures[Cost type],"MAX",Saving_measures[Subsidy share '[%']],">0")-Tolerance,0,IF(D4>=SUMIFS(Saving_measures[Subsidy share '[%']],Saving_measures[Measure],B4,Saving_measures[Cost type],"MAX",Saving_measures[Subsidy share '[%']],">0")+Tolerance,1,(D4-(SUMIFS(Saving_measures[Subsidy share '[%']],Saving_measures[Measure],B4,Saving_measures[Cost type],"MAX",Saving_measures[Subsidy share '[%']],">0")-Tolerance))/(2*Tolerance)))))/1000 -> 352.2452135 | F4: =(SUMIFS(Saving_measures[Investment costs '[€']],Saving_measures[Measure],B4,Saving_measures[Cost type],"MIN",Saving_measures[Subsidy share '[%']],">0")*(IF(D4<=SUMIFS(Saving_measures[Subsidy share '[%']],Saving_measures[Measure],B4,Saving_measures[Cost type],"MIN",Saving_measures[Subsidy share '[%']],">0")-Tolerance,0,IF(D4>=SUMIFS(Saving_measures[Subsidy share '[%']],Saving_measures[Measure],B4,Saving_measures[Cost type],"MIN",Saving_measures[Subsidy share '[%']],">0")+Tolerance,1,(D4-(SUMIFS(Saving_measures[Subsidy share '[%']],Saving_measures[Measure],B4,Saving_measures[Cost type],"MIN",Saving_measures[Subsidy share '[%']],">0")-Tolerance))/(2*Tolerance))))+SUMIFS(Saving_measures[Investment costs '[€']],Saving_measures[Measure],B4,Saving_measures[Cost type],"TYP",Saving_measures[Subsidy share '[%']],">0")*(IF(D4<=SUMIFS(Saving_measures[Subsidy share '[%']],Saving_measures[Measure],B4,Saving_measures[Cost type],"TYP",Saving_measures[Subsidy share '[%']],">0")-Tolerance,0,IF(D4>=SUMIFS(Saving_measures[Subsidy share '[%']],Saving_measures[Measure],B4,Saving_measures[Cost type],"TYP",Saving_measures[Subsidy share '[%']],">0")+Tolerance,1,(D4-(SUMIFS(Saving_measures[Subsidy share '[%']],Saving_measures[Measure],B4,Saving_measures[Cost type],"TYP",Saving_measures[Subsidy share '[%']],">0")-Tolerance))/(2*Tolerance))))+SUMIFS(Saving_measures[Investment costs '[€']],Saving_measures[Measure],B4,Saving_measures[Cost type],"MAX",Saving_measures[Subsidy share '[%']],">0")*(IF(D4<=SUMIFS(Saving_measures[Subsidy share '[%']],Saving_measures[Measure],B4,Saving_measures[Cost type],"MAX",Saving_measures[Subsidy share '[%']],">0")-Tolerance,0,IF(D4>=SUMIFS(Saving_measures[Subsidy share '[%']],Saving_measures[Measure],B4,Saving_measures[Cost type],"MAX",Saving_measures[Subsidy share '[%']],">0")+Tolerance,1,(D4-(SUMIFS(Saving_measures[Subsidy share '[%']],Saving_measures[Measure],B4,Saving_measures[Cost type],"MAX",Saving_measures[Subsidy share '[%']],">0")-Tolerance))/(2*Tolerance)))))/1000 -> 1232.858247 | G4: =(SUMIFS(Saving_measures[Energy saving potential '[TJ']],Saving_measures[Measure],B4,Saving_measures[Cost type],"MIN",Saving_measures[Subsidy share '[%']],">0")*(IF(D4<=SUMIFS(Saving_measures[Subsidy share '[%']],Saving_measures[Measure],B4,Saving_measures[Cost type],"MIN",Saving_measures[Subsidy share '[%']],">0")-Tolerance,0,IF(D4>=SUMIFS(Saving_measures[Subsidy share '[%']],Saving_measures[Measure],B4,Saving_measures[Cost type],"MIN",Saving_measures[Subsidy share '[%']],">0")+Tolerance,1,(D4-(SUMIFS(Saving_measures[Subsidy share '[%']],Saving_measures[Measure],B4,Saving_measures[Cost type],"MIN",Saving_measures[Subsidy share '[%']],">0")-Tolerance))/(2*Tolerance))))+SUMIFS(Saving_measures[Energy saving potential '[TJ']],Saving_measures[Measure],B4,Saving_measures[Cost type],"TYP",Saving_measures[Subsidy share '[%']],">0")*(IF(D4<=SUMIFS(Saving_measures[Subsidy share '[%']],Saving_measures[Measure],B4,Saving_measures[Cost type],"TYP",Saving_measures[Subsidy share '[%']],">0")-Tolerance,0,IF(D4>=SUMIFS(Saving_measures[Subsidy share '[%']],Saving_measures[Measure],B4,Saving_measures[Cost type],"TYP",Saving_measures[Subsidy share '[%']],">0")+Tolerance,1,(D4-(SUMIFS(Saving_measures[Subsidy share '[%']],Saving_measures[Measure],B4,Saving_measures[Cost type],"TYP",Saving_measures[Subsidy share '[%']],">0")-Tolerance))/(2*Tolerance))))+ SUMIFS(Saving_measures[Energy saving potential '[TJ']],Saving_measures[Measure],B4,Saving_measures[Cost type],"MAX",Saving_measures[Subsidy share '[%']],">0")*(IF(D4<=SUMIFS(Saving_measures[Subsidy share '[%']],Saving_measures[Measure],B4,Saving_measures[Cost type],"MAX",Saving_measures[Subsidy share '[%']],">0")-Tolerance,0,IF(D4>=SUMIFS(Saving_measures[Subsidy share '[%']],Saving_measures[Measure],B4,Saving_measures[Cost type],"MAX",Saving_measures[Subsidy share '[%']],">0")+Tolerance,1,(D4-(SUMIFS(Saving_measures[Subsidy share '[%']],Saving_measures[Measure],B4,Saving_measures[Cost type],"MAX",Saving_measures[Subsidy share '[%']],">0")-Tolerance))/(2*Tolerance)))))*0.7 -> 11.00325986 | H4: =(SUMIFS(Saving_measures[Drop of CO2 emissions '[t']],Saving_measures[Measure],B4,Saving_measures[Cost type],"MIN",Saving_measures[Subsidy share '[%']],">0")*(IF(D4<=SUMIFS(Saving_measures[Subsidy share '[%']],Saving_measures[Measure],B4,Saving_measures[Cost type],"MIN",Saving_measures[Subsidy share '[%']],">0")-Tolerance,0,IF(D4>=SUMIFS(Saving_measures[Subsidy share '[%']],Saving_measures[Measure],B4,Saving_measures[Cost type],"MIN",Saving_measures[Subsidy share '[%']],">0")+Tolerance,1,(D4-(SUMIFS(Saving_measures[Subsidy share '[%']],Saving_measures[Measure],B4,Saving_measures[Cost type],"MIN",Saving_measures[Subsidy share '[%']],">0")-Tolerance))/(2*Tolerance))))+SUMIFS(Saving_measures[Drop of CO2 emissions '[t']],Saving_measures[Measure],B4,Saving_measures[Cost type],"TYP",Saving_measures[Subsidy share '[%']],">0")*(IF(D4<=SUMIFS(Saving_measures[Subsidy share '[%']],Saving_measures[Measure],B4,Saving_measures[Cost type],"TYP",Saving_measures[Subsidy share '[%']],">0")-Tolerance,0,IF(D4>=SUMIFS(Saving_measures[Subsidy share '[%']],Saving_measures[Measure],B4,Saving_measures[Cost type],"TYP",Saving_measures[Subsidy share '[%']],">0")+Tolerance,1,(D4-(SUMIFS(Saving_measures[Subsidy share '[%']],Saving_measures[Measure],B4,Saving_measures[Cost type],"TYP",Saving_measures[Subsidy share '[%']],">0")-Tolerance))/(2*Tolerance))))+SUMIFS(Saving_measures[Drop of CO2 emissions '[t']],Saving_measures[Measure],B4,Saving_measures[Cost type],"MAX",Saving_measures[Subsidy share '[%']],">0")*(IF(D4<=SUMIFS(Saving_measures[Subsidy share '[%']],Saving_measures[Measure],B4,Saving_measures[Cost type],"MAX",Saving_measures[Subsidy share '[%']],">0")-Tolerance,0,IF(D4>=SUMIFS(Saving_measures[Subsidy share '[%']],Saving_measures[Measure],B4,Saving_measures[Cost type],"MAX",Saving_measures[Subsidy share '[%']],">0")+Tolerance,1,(D4-(SUMIFS(Saving_measures[Subsidy share '[%']],Saving_measures[Measure],B4,Saving_measures[Cost type],"MAX",Saving_measures[Subsidy share '[%']],">0")-Tolerance))/(2*Tolerance)))))*0.7 -> 2677.152068 | I4: =(SUMIFS(Saving_measures[Drop of CH4 emissions'[kg']],Saving_measures[Measure],B4,Saving_measures[Cost type],"MIN",Saving_measures[Subsidy share '[%']],">0")*(IF(D4<=SUMIFS(Saving_measures[Subsidy share '[%']],Saving_measures[Measure],B4,Saving_measures[Cost type],"MIN",Saving_measures[Subsidy share '[%']],">0")-Tolerance,0,IF(D4>=SUMIFS(Saving_measures[Subsidy share '[%']],Saving_measures[Measure],B4,Saving_measures[Cost type],"MIN",Saving_measures[Subsidy share '[%']],">0")+Tolerance,1,(D4-(SUMIFS(Saving_measures[Subsidy share '[%']],Saving_measures[Measure],B4,Saving_measures[Cost type],"MIN",Saving_measures[Subsidy share '[%']],">0")-Tolerance))/(2*Tolerance))))+SUMIFS(Saving_measures[Drop of CH4 emissions'[kg']],Saving_measures[Measure],B4,Saving_measures[Cost type],"TYP",Saving_measures[Subsidy share '[%']],">0")*(IF(D4<=SUMIFS(Saving_measures[Subsidy share '[%']],Saving_measures[Measure],B4,Saving_measures[Cost type],"TYP",Saving_measures[Subsidy share '[%']],">0")-Tolerance,0,IF(D4>=SUMIFS(Saving_measures[Subsidy share '[%']],Saving_measures[Measure],B4,Saving_measures[Cost type],"TYP",Saving_measures[Subsidy share '[%']],">0")+Tolerance,1,(D4-(SUMIFS(Saving_measures[Subsidy share '[%']],Saving_measures[Measure],B4,Saving_measures[Cost type],"TYP",Saving_measures[Subsidy share '[%']],">0")-Tolerance))/(2*Tolerance))))+SUMIFS(Saving_measures[Drop of CH4 emissions'[kg']],Saving_measures[Measure],B4,Saving_measures[Cost type],"MAX",Saving_measures[Subsidy share '[%']],">0")*(IF(D4<=SUMIFS(Saving_measures[Subsidy share '[%']],Saving_measures[Measure],B4,Saving_measures[Cost type],"MAX",Saving_measures[Subsidy share '[%']],">0")-Tolerance,0,IF(D4>=SUMIFS(Saving_measures[Subsidy share '[%']],Saving_measures[Measure],B4,Saving_measures[Cost type],"MAX",Saving_measures[Subsidy share '[%']],">0")+Tolerance,1,(D4-(SUMIFS(Saving_measures[Subsidy share '[%']],Saving_measures[Measure],B4,Saving_measures[Cost type],"MAX",Saving_measures[Subsidy share '[%']],">0")-Tolerance))/(2*Tolerance)))))*0.7 -> 28.6020696 | J4: =(SUMIFS(Saving_measures[Drop of N2O emissions '[kg']],Saving_measures[Measure],B4,Saving_measures[Cost type],"MIN",Saving_measures[Subsidy share '[%']],">0")*(IF(D4<=SUMIFS(Saving_measures[Subsidy share '[%']],Saving_measures[Measure],B4,Saving_measures[Cost type],"MIN",Saving_measures[Subsidy share '[%']],">0")-Tolerance,0,IF(D4>=SUMIFS(Saving_measures[Subsidy share '[%']],Saving_measures[Measure],B4,Saving_measures[Cost type],"MIN",Saving_measures[Subsidy share '[%']],">0")+Tolerance,1,(D4-(SUMIFS(Saving_measures[Subsidy share '[%']],Saving_measures[Measure],B4,Saving_measures[Cost type],"MIN",Saving_measures[Subsidy share '[%']],">0")-Tolerance))/(2*Tolerance))))+SUMIFS(Saving_measures[Drop of N2O emissions '[kg']],Saving_measures[Measure],B4,Saving_measures[Cost type],"TYP",Saving_measures[Subsidy share '[%']],">0")*(IF(D4<=SUMIFS(Saving_measures[Subsidy share '[%']],Saving_measures[Measure],B4,Saving_measures[Cost type],"TYP",Saving_measures[Subsidy share '[%']],">0")-Tolerance,0,IF(D4>=SUMIFS(Saving_measures[Subsidy share '[%']],Saving_measures[Measure],B4,Saving_measures[Cost type],"TYP",Saving_measures[Subsidy share '[%']],">0")+Tolerance,1,(D4-(SUMIFS(Saving_measures[Subsidy share '[%']],Saving_measures[Measure],B4,Saving_measures[Cost type],"TYP",Saving_measures[Subsidy share '[%']],">0")-Tolerance))/(2*Tolerance))))+SUMIFS(Saving_measures[Drop of N2O emissions '[kg']],Saving_measures[Measure],B4,Saving_measures[Cost type],"MAX",Saving_measures[Subsidy share '[%']],">0")*(IF(D4<=SUMIFS(Saving_measures[Subsidy share '[%']],Saving_measures[Measure],B4,Saving_measures[Cost type],"MAX",Saving_measures[Subsidy share '[%']],">0")-Tolerance,0,IF(D4>=SUMIFS(Saving_measures[Subsidy share '[%']],Saving_measures[Measure],B4,Saving_measures[Cost type],"MAX",Saving_measures[Subsidy share '[%']],">0")+Tolerance,1,(D4-(SUMIFS(Saving_measures[Subsidy share '[%']],Saving_measures[Measure],B4,Saving_measures[Cost type],"MAX",Saving_measures[Subsidy share '[%']],">0")-Tolerance))/(2*Tolerance)))))*0.7 -> 37.54308201 | K4: =(SUMIFS(Saving_measures[Drop of CO2eq emissions '[t']],Saving_measures[Measure],B4,Saving_measures[Cost type],"MIN",Saving_measures[Subsidy share '[%']],">0")*(IF(D4<=SUMIFS(Saving_measures[Subsidy share '[%']],Saving_measures[Measure],B4,Saving_measures[Cost type],"MIN",Saving_measures[Subsidy share '[%']],">0")-Tolerance,0,IF(D4>=SUMIFS(Saving_measures[Subsidy share '[%']],Saving_measures[Measure],B4,Saving_measures[Cost type],"MIN",Saving_measures[Subsidy share '[%']],">0")+Tolerance,1,(D4-(SUMIFS(Saving_measures[Subsidy share '[%']],Saving_measures[Measure],B4,Saving_measures[Cost type],"MIN",Saving_measures[Subsidy share '[%']],">0")-Tolerance))/(2*Tolerance))))+SUMIFS(Saving_measures[Drop of CO2eq emissions '[t']],Saving_measures[Measure],B4,Saving_measures[Cost type],"TYP",Saving_measures[Subsidy share '[%']],">0")*(IF(D4<=SUMIFS(Saving_measures[Subsidy share '[%']],Saving_measures[Measure],B4,Saving_measures[Cost type],"TYP",Saving_measures[Subsidy share '[%']],">0")-Tolerance,0,IF(D4>=SUMIFS(Saving_measures[Subsidy share '[%']],Saving_measures[Measure],B4,Saving_measures[Cost type],"TYP",Saving_measures[Subsidy share '[%']],">0")+Tolerance,1,(D4-(SUMIFS(Saving_measures[Subsidy share '[%']],Saving_measures[Measure],B4,Saving_measures[Cost type],"TYP",Saving_measures[Subsidy share '[%']],">0")-Tolerance))/(2*Tolerance))))+SUMIFS(Saving_measures[Drop of CO2eq emissions '[t']],Saving_measures[Measure],B4,Saving_measures[Cost type],"MAX",Saving_measures[Subsidy share '[%']],">0")*(IF(D4<=SUMIFS(Saving_measures[Subsidy share '[%']],Saving_measures[Measure],B4,Saving_measures[Cost type],"MAX",Saving_measures[Subsidy share '[%']],">0")-Tolerance,0,IF(D4>=SUMIFS(Saving_measures[Subsidy share '[%']],Saving_measures[Measure],B4,Saving_measures[Cost type],"MAX",Saving_measures[Subsidy share '[%']],">0")+Tolerance,1,(D4-(SUMIFS(Saving_measures[Subsidy share '[%']],Saving_measures[Measure],B4,Saving_measures[Cost type],"MAX",Saving_measures[Subsidy share '[%']],">0")-Tolerance))/(2*Tolerance)))))*0.7 -> 2689.054958 | L4: =SUMIFS(Saving_measures[Annual Cost Saved '[€/GJ.y']],Saving_measures[Measure],B4,Saving_measures[Cost type],"MIN",Saving_measures[Subsidy share '[%']],">0")*SUMIFS(Saving_measures[Energy saving potential '[TJ']],Saving_measures[Measure],B4,Saving_measures[Cost type],"MIN",Saving_measures[Subsidy share '[%']],">0")*(IF(D4<=SUMIFS(Saving_measures[Subsidy share '[%']],Saving_measures[Measure],B4,Saving_measures[Cost type],"MIN",Saving_measures[Subsidy share '[%']],">0")-Tolerance,0,IF(D4>=SUMIFS(Saving_measures[Subsidy share '[%']],Saving_measures[Measure],B4,Saving_measures[Cost type],"MIN",Saving_measures[Subsidy share '[%']],">0")+Tolerance,1,(D4-(SUMIFS(Saving_measures[Subsidy share '[%']],Saving_measures[Measure],B4,Saving_measures[Cost type],"MIN",Saving_measures[Subsidy share '[%']],">0")-Tolerance))/(2*Tolerance))))+SUMIFS(Saving_measures[Annual Cost Saved '[€/GJ.y']],Saving_measures[Measure],B4,Saving_measures[Cost type],"TYP",Saving_measures[Subsidy share '[%']],">0")*SUMIFS(Saving_measures[Energy saving potential '[TJ']],Saving_measures[Measure],B4,Saving_measures[Cost type],"TYP",Saving_measures[Subsidy share '[%']],">0")*(IF(D4<=SUMIFS(Saving_measures[Subsidy share '[%']],Saving_measures[Measure],B4,Saving_measures[Cost type],"TYP",Saving_measures[Subsidy share '[%']],">0")-Tolerance,0,IF(D4>=SUMIFS(Saving_measures[Subsidy share '[%']],Saving_measures[Measure],B4,Saving_measures[Cost type],"TYP",Saving_measures[Subsidy share '[%']],">0")+Tolerance,1,(D4-(SUMIFS(Saving_measures[Subsidy share '[%']],Saving_measures[Measure],B4,Saving_measures[Cost type],"TYP",Saving_measures[Subsidy share '[%']],">0")-Tolerance))/(2*Tolerance))))+SUMIFS(Saving_measures[Annual Cost Saved '[€/GJ.y']],Saving_measures[Measure],B4,Saving_measures[Cost type],"MAX",Saving_measures[Subsidy share '[%']],">0")*SUMIFS(Saving_measures[Energy saving potential '[TJ']],Saving_measures[Measure],B4,Saving_measures[Cost type],"MAX",Saving_measures[Subsidy share '[%']],">0")*(IF(D4<=SUMIFS(Saving_measures[Subsidy share '[%']],Saving_measures[Measure],B4,Saving_measures[Cost type],"MAX",Saving_measures[Subsidy share '[%']],">0")-Tolerance,0,IF(D4>=SUMIFS(Saving_measures[Subsidy share '[%']],Saving_measures[Measure],B4,Saving_measures[Cost type],"MAX",Saving_measures[Subsidy share '[%']],">0")+Tolerance,1,(D4-(SUMIFS(Saving_measures[Subsidy share '[%']],Saving_measures[Measure],B4,Saving_measures[Cost type],"MAX",Saving_measures[Subsidy share '[%']],">0")-Tolerance))/(2*Tolerance)))) -> 176.1226068 | P4: 0.3 | Q4: 0.6 | R4: 0.1 | S4: =(SUMIFS(Saving_measures[Lifetime '[y']],Saving_measures[Measure],B4,Saving_measures[Cost type],"MIN")) -> 20 | T4: Controle des pompes de circulations
A5: Saving Measure 5 | B5: Buildings Insulation | C5: 0.4 | D5: 0.8799999999 | E5: =(SUMIFS(Saving_measures[Subsidy '[€']],Saving_measures[Measure],B5,Saving_measures[Cost type],"MIN",Saving_measures[Subsidy share '[%']],">0")*(IF(D5<=SUMIFS(Saving_measures[Subsidy share '[%']],Saving_measures[Measure],B5,Saving_measures[Cost type],"MIN",Saving_measures[Subsidy share '[%']],">0")-Tolerance,0,IF(D5>=SUMIFS(Saving_measures[Subsidy share '[%']],Saving_measures[Measure],B5,Saving_measures[Cost type],"MIN",Saving_measures[Subsidy share '[%']],">0")+Tolerance,1,(D5-(SUMIFS(Saving_measures[Subsidy share '[%']],Saving_measures[Measure],B5,Saving_measures[Cost type],"MIN",Saving_measures[Subsidy share '[%']],">0")-Tolerance))/(2*Tolerance))))+SUMIFS(Saving_measures[Subsidy '[€']],Saving_measures[Measure],B5,Saving_measures[Cost type],"TYP",Saving_measures[Subsidy share '[%']],">0")*(IF(D5<=SUMIFS(Saving_measures[Subsidy share '[%']],Saving_measures[Measure],B5,Saving_measures[Cost type],"TYP",Saving_measures[Subsidy share '[%']],">0")-Tolerance,0,IF(D5>=SUMIFS(Saving_measures[Subsidy share '[%']],Saving_measures[Measure],B5,Saving_measures[Cost type],"TYP",Saving_measures[Subsidy share '[%']],">0")+Tolerance,1,(D5-(SUMIFS(Saving_measures[Subsidy share '[%']],Saving_measures[Measure],B5,Saving_measures[Cost type],"TYP",Saving_measures[Subsidy share '[%']],">0")-Tolerance))/(2*Tolerance))))+SUMIFS(Saving_measures[Subsidy '[€']],Saving_measures[Measure],B5,Saving_measures[Cost type],"MAX",Saving_measures[Subsidy share '[%']],">0")*(IF(D5<=SUMIFS(Saving_measures[Subsidy share '[%']],Saving_measures[Measure],B5,Saving_measures[Cost type],"MAX",Saving_measures[Subsidy share '[%']],">0")-Tolerance,0,IF(D5>=SUMIFS(Saving_measures[Subsidy share '[%']],Saving_measures[Measure],B5,Saving_measures[Cost type],"MAX",Saving_measures[Subsidy share '[%']],">0")+Tolerance,1,(D5-(SUMIFS(Saving_measures[Subsidy share '[%']],Saving_measures[Measure],B5,Saving_measures[Cost type],"MAX",Saving_measures[Subsidy share '[%']],">0")-Tolerance))/(2*Tolerance)))))/1000 -> 1422135.709 | F5: =(SUMIFS(Saving_measures[Investment costs '[€']],Saving_measures[Measure],B5,Saving_measures[Cost type],"MIN",Saving_measures[Subsidy share '[%']],">0")*(IF(D5<=SUMIFS(Saving_measures[Subsidy share '[%']],Saving_measures[Measure],B5,Saving_measures[Cost type],"MIN",Saving_measures[Subsidy share '[%']],">0")-Tolerance,0,IF(D5>=SUMIFS(Saving_measures[Subsidy share '[%']],Saving_measures[Measure],B5,Saving_measures[Cost type],"MIN",Saving_measures[Subsidy share '[%']],">0")+Tolerance,1,(D5-(SUMIFS(Saving_measures[Subsidy share '[%']],Saving_measures[Measure],B5,Saving_measures[Cost type],"MIN",Saving_measures[Subsidy share '[%']],">0")-Tolerance))/(2*Tolerance))))+SUMIFS(Saving_measures[Investment costs '[€']],Saving_measures[Measure],B5,Saving_measures[Cost type],"TYP",Saving_measures[Subsidy share '[%']],">0")*(IF(D5<=SUMIFS(Saving_measures[Subsidy share '[%']],Saving_measures[Measure],B5,Saving_measures[Cost type],"TYP",Saving_measures[Subsidy share '[%']],">0")-Tolerance,0,IF(D5>=SUMIFS(Saving_measures[Subsidy share '[%']],Saving_measures[Measure],B5,Saving_measures[Cost type],"TYP",Saving_measures[Subsidy share '[%']],">0")+Tolerance,1,(D5-(SUMIFS(Saving_measures[Subsidy share '[%']],Saving_measures[Measure],B5,Saving_measures[Cost type],"TYP",Saving_measures[Subsidy share '[%']],">0")-Tolerance))/(2*Tolerance))))+SUMIFS(Saving_measures[Investment costs '[€']],Saving_measures[Measure],B5,Saving_measures[Cost type],"MAX",Saving_measures[Subsidy share '[%']],">0")*(IF(D5<=SUMIFS(Saving_measures[Subsidy share '[%']],Saving_measures[Measure],B5,Saving_measures[Cost type],"MAX",Saving_measures[Subsidy share '[%']],">0")-Tolerance,0,IF(D5>=SUMIFS(Saving_measures[Subsidy share '[%']],Saving_measures[Measure],B5,Saving_measures[Cost type],"MAX",Saving_measures[Subsidy share '[%']],">0")+Tolerance,1,(D5-(SUMIFS(Saving_measures[Subsidy share '[%']],Saving_measures[Measure],B5,Saving_measures[Cost type],"MAX",Saving_measures[Subsidy share '[%']],">0")-Tolerance))/(2*Tolerance)))))/1000 -> 1906184.75 | G5: =(SUMIFS(Saving_measures[Energy saving potential '[TJ']],Saving_measures[Measure],B5,Saving_measures[Cost type],"MIN",Saving_measures[Subsidy share '[%']],">0")*(IF(D5<=SUMIFS(Saving_measures[Subsidy share '[%']],Saving_measures[Measure],B5,Saving_measures[Cost type],"MIN",Saving_measures[Subsidy share '[%']],">0")-Tolerance,0,IF(D5>=SUMIFS(Saving_measures[Subsidy share '[%']],Saving_measures[Measure],B5,Saving_measures[Cost type],"MIN",Saving_measures[Subsidy share '[%']],">0")+Tolerance,1,(D5-(SUMIFS(Saving_measures[Subsidy share '[%']],Saving_measures[Measure],B5,Saving_measures[Cost type],"MIN",Saving_measures[Subsidy share '[%']],">0")-Tolerance))/(2*Tolerance))))+SUMIFS(Saving_measures[Energy saving potential '[TJ']],Saving_measures[Measure],B5,Saving_measures[Cost type],"TYP",Saving_measures[Subsidy share '[%']],">0")*(IF(D5<=SUMIFS(Saving_measures[Subsidy share '[%']],Saving_measures[Measure],B5,Saving_measures[Cost type],"TYP",Saving_measures[Subsidy share '[%']],">0")-Tolerance,0,IF(D5>=SUMIFS(Saving_measures[Subsidy share '[%']],Saving_measures[Measure],B5,Saving_measures[Cost type],"TYP",Saving_measures[Subsidy share '[%']],">0")+Tolerance,1,(D5-(SUMIFS(Saving_measures[Subsidy share '[%']],Saving_measures[Measure],B5,Saving_measures[Cost type],"TYP",Saving_measures[Subsidy share '[%']],">0")-Tolerance))/(2*Tolerance))))+ SUMIFS(Saving_measures[Energy saving potential '[TJ']],Saving_measures[Measure],B5,Saving_measures[Cost type],"MAX",Saving_measures[Subsidy share '[%']],">0")*(IF(D5<=SUMIFS(Saving_measures[Subsidy share '[%']],Saving_measures[Measure],B5,Saving_measures[Cost type],"MAX",Saving_measures[Subsidy share '[%']],">0")-Tolerance,0,IF(D5>=SUMIFS(Saving_measures[Subsidy share '[%']],Saving_measures[Measure],B5,Saving_measures[Cost type],"MAX",Saving_measures[Subsidy share '[%']],">0")+Tolerance,1,(D5-(SUMIFS(Saving_measures[Subsidy share '[%']],Saving_measures[Measure],B5,Saving_measures[Cost type],"MAX",Saving_measures[Subsidy share '[%']],">0")-Tolerance))/(2*Tolerance)))))*0.7 -> 5346.824349 | H5: =(SUMIFS(Saving_measures[Drop of CO2 emissions '[t']],Saving_measures[Measure],B5,Saving_measures[Cost type],"MIN",Saving_measures[Subsidy share '[%']],">0")*(IF(D5<=SUMIFS(Saving_measures[Subsidy share '[%']],Saving_measures[Measure],B5,Saving_measures[Cost type],"MIN",Saving_measures[Subsidy share '[%']],">0")-Tolerance,0,IF(D5>=SUMIFS(Saving_measures[Subsidy share '[%']],Saving_measures[Measure],B5,Saving_measures[Cost type],"MIN",Saving_measures[Subsidy share '[%']],">0")+Tolerance,1,(D5-(SUMIFS(Saving_measures[Subsidy share '[%']],Saving_measures[Measure],B5,Saving_measures[Cost type],"MIN",Saving_measures[Subsidy share '[%']],">0")-Tolerance))/(2*Tolerance))))+SUMIFS(Saving_measures[Drop of CO2 emissions '[t']],Saving_measures[Measure],B5,Saving_measures[Cost type],"TYP",Saving_measures[Subsidy share '[%']],">0")*(IF(D5<=SUMIFS(Saving_measures[Subsidy share '[%']],Saving_measures[Measure],B5,Saving_measures[Cost type],"TYP",Saving_measures[Subsidy share '[%']],">0")-Tolerance,0,IF(D5>=SUMIFS(Saving_measures[Subsidy share '[%']],Saving_measures[Measure],B5,Saving_measures[Cost type],"TYP",Saving_measures[Subsidy share '[%']],">0")+Tolerance,1,(D5-(SUMIFS(Saving_measures[Subsidy share '[%']],Saving_measures[Measure],B5,Saving_measures[Cost type],"TYP",Saving_measures[Subsidy share '[%']],">0")-Tolerance))/(2*Tolerance))))+SUMIFS(Saving_measures[Drop of CO2 emissions '[t']],Saving_measures[Measure],B5,Saving_measures[Cost type],"MAX",Saving_measures[Subsidy share '[%']],">0")*(IF(D5<=SUMIFS(Saving_measures[Subsidy share '[%']],Saving_measures[Measure],B5,Saving_measures[Cost type],"MAX",Saving_measures[Subsidy share '[%']],">0")-Tolerance,0,IF(D5>=SUMIFS(Saving_measures[Subsidy share '[%']],Saving_measures[Measure],B5,Saving_measures[Cost type],"MAX",Saving_measures[Subsidy share '[%']],">0")+Tolerance,1,(D5-(SUMIFS(Saving_measures[Subsidy share '[%']],Saving_measures[Measure],B5,Saving_measures[Cost type],"MAX",Saving_measures[Subsidy share '[%']],">0")-Tolerance))/(2*Tolerance)))))*0.7 -> 354491.2123 | I5: =(SUMIFS(Saving_measures[Drop of CH4 emissions'[kg']],Saving_measures[Measure],B5,Saving_measures[Cost type],"MIN",Saving_measures[Subsidy share '[%']],">0")*(IF(D5<=SUMIFS(Saving_measures[Subsidy share '[%']],Saving_measures[Measure],B5,Saving_measures[Cost type],"MIN",Saving_measures[Subsidy share '[%']],">0")-Tolerance,0,IF(D5>=SUMIFS(Saving_measures[Subsidy share '[%']],Saving_measures[Measure],B5,Saving_measures[Cost type],"MIN",Saving_measures[Subsidy share '[%']],">0")+Tolerance,1,(D5-(SUMIFS(Saving_measures[Subsidy share '[%']],Saving_measures[Measure],B5,Saving_measures[Cost type],"MIN",Saving_measures[Subsidy share '[%']],">0")-Tolerance))/(2*Tolerance))))+SUMIFS(Saving_measures[Drop of CH4 emissions'[kg']],Saving_measures[Measure],B5,Saving_measures[Cost type],"TYP",Saving_measures[Subsidy share '[%']],">0")*(IF(D5<=SUMIFS(Saving_measures[Subsidy share '[%']],Saving_measures[Measure],B5,Saving_measures[Cost type],"TYP",Saving_measures[Subsidy share '[%']],">0")-Tolerance,0,IF(D5>=SUMIFS(Saving_measures[Subsidy share '[%']],Saving_measures[Measure],B5,Saving_measures[Cost type],"TYP",Saving_measures[Subsidy share '[%']],">0")+Tolerance,1,(D5-(SUMIFS(Saving_measures[Subsidy share '[%']],Saving_measures[Measure],B5,Saving_measures[Cost type],"TYP",Saving_measures[Subsidy share '[%']],">0")-Tolerance))/(2*Tolerance))))+SUMIFS(Saving_measures[Drop of CH4 emissions'[kg']],Saving_measures[Measure],B5,Saving_measures[Cost type],"MAX",Saving_measures[Subsidy share '[%']],">0")*(IF(D5<=SUMIFS(Saving_measures[Subsidy share '[%']],Saving_measures[Measure],B5,Saving_measures[Cost type],"MAX",Saving_measures[Subsidy share '[%']],">0")-Tolerance,0,IF(D5>=SUMIFS(Saving_measures[Subsidy share '[%']],Saving_measures[Measure],B5,Saving_measures[Cost type],"MAX",Saving_measures[Subsidy share '[%']],">0")+Tolerance,1,(D5-(SUMIFS(Saving_measures[Subsidy share '[%']],Saving_measures[Measure],B5,Saving_measures[Cost type],"MAX",Saving_measures[Subsidy share '[%']],">0")-Tolerance))/(2*Tolerance)))))*0.7 -> 25759.30972 | J5: =(SUMIFS(Saving_measures[Drop of N2O emissions '[kg']],Saving_measures[Measure],B5,Saving_measures[Cost type],"MIN",Saving_measures[Subsidy share '[%']],">0")*(IF(D5<=SUMIFS(Saving_measures[Subsidy share '[%']],Saving_measures[Measure],B5,Saving_measures[Cost type],"MIN",Saving_measures[Subsidy share '[%']],">0")-Tolerance,0,IF(D5>=SUMIFS(Saving_measures[Subsidy share '[%']],Saving_measures[Measure],B5,Saving_measures[Cost type],"MIN",Saving_measures[Subsidy share '[%']],">0")+Tolerance,1,(D5-(SUMIFS(Saving_measures[Subsidy share '[%']],Saving_measures[Measure],B5,Saving_measures[Cost type],"MIN",Saving_measures[Subsidy share '[%']],">0")-Tolerance))/(2*Tolerance))))+SUMIFS(Saving_measures[Drop of N2O emissions '[kg']],Saving_measures[Measure],B5,Saving_measures[Cost type],"TYP",Saving_measures[Subsidy share '[%']],">0")*(IF(D5<=SUMIFS(Saving_measures[Subsidy share '[%']],Saving_measures[Measure],B5,Saving_measures[Cost type],"TYP",Saving_measures[Subsidy share '[%']],">0")-Tolerance,0,IF(D5>=SUMIFS(Saving_measures[Subsidy share '[%']],Saving_measures[Measure],B5,Saving_measures[Cost type],"TYP",Saving_measures[Subsidy share '[%']],">0")+Tolerance,1,(D5-(SUMIFS(Saving_measures[Subsidy share '[%']],Saving_measures[Measure],B5,Saving_measures[Cost type],"TYP",Saving_measures[Subsidy share '[%']],">0")-Tolerance))/(2*Tolerance))))+SUMIFS(Saving_measures[Drop of N2O emissions '[kg']],Saving_measures[Measure],B5,Saving_measures[Cost type],"MAX",Saving_measures[Subsidy share '[%']],">0")*(IF(D5<=SUMIFS(Saving_measures[Subsidy share '[%']],Saving_measures[Measure],B5,Saving_measures[Cost type],"MAX",Saving_measures[Subsidy share '[%']],">0")-Tolerance,0,IF(D5>=SUMIFS(Saving_measures[Subsidy share '[%']],Saving_measures[Measure],B5,Saving_measures[Cost type],"MAX",Saving_measures[Subsidy share '[%']],">0")+Tolerance,1,(D5-(SUMIFS(Saving_measures[Subsidy share '[%']],Saving_measures[Measure],B5,Saving_measures[Cost type],"MAX",Saving_measures[Subsidy share '[%']],">0")-Tolerance))/(2*Tolerance)))))*0.7 -> 4518.347782 | K5: =(SUMIFS(Saving_measures[Drop of CO2eq emissions '[t']],Saving_measures[Measure],B5,Saving_measures[Cost type],"MIN",Saving_measures[Subsidy share '[%']],">0")*(IF(D5<=SUMIFS(Saving_measures[Subsidy share '[%']],Saving_measures[Measure],B5,Saving_measures[Cost type],"MIN",Saving_measures[Subsidy share '[%']],">0")-Tolerance,0,IF(D5>=SUMIFS(Saving_measures[Subsidy share '[%']],Saving_measures[Measure],B5,Saving_measures[Cost type],"MIN",Saving_measures[Subsidy share '[%']],">0")+Tolerance,1,(D5-(SUMIFS(Saving_measures[Subsidy share '[%']],Saving_measures[Measure],B5,Saving_measures[Cost type],"MIN",Saving_measures[Subsidy share '[%']],">0")-Tolerance))/(2*Tolerance))))+SUMIFS(Saving_measures[Drop of CO2eq emissions '[t']],Saving_measures[Measure],B5,Saving_measures[Cost type],"TYP",Saving_measures[Subsidy share '[%']],">0")*(IF(D5<=SUMIFS(Saving_measures[Subsidy share '[%']],Saving_measures[Measure],B5,Saving_measures[Cost type],"TYP",Saving_measures[Subsidy share '[%']],">0")-Tolerance,0,IF(D5>=SUMIFS(Saving_measures[Subsidy share '[%']],Saving_measures[Measure],B5,Saving_measures[Cost type],"TYP",Saving_measures[Subsidy share '[%']],">0")+Tolerance,1,(D5-(SUMIFS(Saving_measures[Subsidy share '[%']],Saving_measures[Measure],B5,Saving_measures[Cost type],"TYP",Saving_measures[Subsidy share '[%']],">0")-Tolerance))/(2*Tolerance))))+SUMIFS(Saving_measures[Drop of CO2eq emissions '[t']],Saving_measures[Measure],B5,Saving_measures[Cost type],"MAX",Saving_measures[Subsidy share '[%']],">0")*(IF(D5<=SUMIFS(Saving_measures[Subsidy share '[%']],Saving_measures[Measure],B5,Saving_measures[Cost type],"MAX",Saving_measures[Subsidy share '[%']],">0")-Tolerance,0,IF(D5>=SUMIFS(Saving_measures[Subsidy share '[%']],Saving_measures[Measure],B5,Saving_measures[Cost type],"MAX",Saving_measures[Subsidy share '[%']],">0")+Tolerance,1,(D5-(SUMIFS(Saving_measures[Subsidy share '[%']],Saving_measures[Measure],B5,Saving_measures[Cost type],"MAX",Saving_measures[Subsidy share '[%']],">0")-Tolerance))/(2*Tolerance)))))*0.7 -> 356481.6627 | L5: =SUMIFS(Saving_measures[Annual Cost Saved '[€/GJ.y']],Saving_measures[Measure],B5,Saving_measures[Cost type],"MIN",Saving_measures[Subsidy share '[%']],">0")*SUMIFS(Saving_measures[Energy saving potential '[TJ']],Saving_measures[Measure],B5,Saving_measures[Cost type],"MIN",Saving_measures[Subsidy share '[%']],">0")*(IF(D5<=SUMIFS(Saving_measures[Subsidy share '[%']],Saving_measures[Measure],B5,Saving_measures[Cost type],"MIN",Saving_measures[Subsidy share '[%']],">0")-Tolerance,0,IF(D5>=SUMIFS(Saving_measures[Subsidy share '[%']],Saving_measures[Measure],B5,Saving_measures[Cost type],"MIN",Saving_measures[Subsidy share '[%']],">0")+Tolerance,1,(D5-(SUMIFS(Saving_measures[Subsidy share '[%']],Saving_measures[Measure],B5,Saving_measures[Cost type],"MIN",Saving_measures[Subsidy share '[%']],">0")-Tolerance))/(2*Tolerance))))+SUMIFS(Saving_measures[Annual Cost Saved '[€/GJ.y']],Saving_measures[Measure],B5,Saving_measures[Cost type],"TYP",Saving_measures[Subsidy share '[%']],">0")*SUMIFS(Saving_measures[Energy saving potential '[TJ']],Saving_measures[Measure],B5,Saving_measures[Cost type],"TYP",Saving_measures[Subsidy share '[%']],">0")*(IF(D5<=SUMIFS(Saving_measures[Subsidy share '[%']],Saving_measures[Measure],B5,Saving_measures[Cost type],"TYP",Saving_measures[Subsidy share '[%']],">0")-Tolerance,0,IF(D5>=SUMIFS(Saving_measures[Subsidy share '[%']],Saving_measures[Measure],B5,Saving_measures[Cost type],"TYP",Saving_measures[Subsidy share '[%']],">0")+Tolerance,1,(D5-(SUMIFS(Saving_measures[Subsidy share '[%']],Saving_measures[Measure],B5,Saving_measures[Cost type],"TYP",Saving_measures[Subsidy share '[%']],">0")-Tolerance))/(2*Tolerance))))+SUMIFS(Saving_measures[Annual Cost Saved '[€/GJ.y']],Saving_measures[Measure],B5,Saving_measures[Cost type],"MAX",Saving_measures[Subsidy share '[%']],">0")*SUMIFS(Saving_measures[Energy saving potential '[TJ']],Saving_measures[Measure],B5,Saving_measures[Cost type],"MAX",Saving_measures[Subsidy share '[%']],">0")*(IF(D5<=SUMIFS(Saving_measures[Subsidy share '[%']],Saving_measures[Measure],B5,Saving_measures[Cost type],"MAX",Saving_measures[Subsidy share '[%']],">0")-Tolerance,0,IF(D5>=SUMIFS(Saving_measures[Subsidy share '[%']],Saving_measures[Measure],B5,Saving_measures[Cost type],"MAX",Saving_measures[Subsidy share '[%']],">0")+Tolerance,1,(D5-(SUMIFS(Saving_measures[Subsidy share '[%']],Saving_measures[Measure],B5,Saving_measures[Cost type],"MAX",Saving_measures[Subsidy share '[%']],">0")-Tolerance))/(2*Tolerance)))) -> 96809.80817 | P5: 0.6 | Q5: 0.35 | R5: 0.05 | S5: =(SUMIFS(Saving_measures[Lifetime '[y']],Saving_measures[Measure],B5,Saving_measures[Cost type],"MIN")) -> 25 | T5: Isolation thermique des batiments
A6: Saving Measure 6 | B6: Replacement of lighting LED80 with LED110 | C6: 0.15 | D6: 0.32 | E6: =(SUMIFS(Saving_measures[Subsidy '[€']],Saving_measures[Measure],B6,Saving_measures[Cost type],"MIN",Saving_measures[Subsidy share '[%']],">0")*(IF(D6<=SUMIFS(Saving_measures[Subsidy share '[%']],Saving_measures[Measure],B6,Saving_measures[Cost type],"MIN",Saving_measures[Subsidy share '[%']],">0")-Tolerance,0,IF(D6>=SUMIFS(Saving_measures[Subsidy share '[%']],Saving_measures[Measure],B6,Saving_measures[Cost type],"MIN",Saving_measures[Subsidy share '[%']],">0")+Tolerance,1,(D6-(SUMIFS(Saving_measures[Subsidy share '[%']],Saving_measures[Measure],B6,Saving_measures[Cost type],"MIN",Saving_measures[Subsidy share '[%']],">0")-Tolerance))/(2*Tolerance))))+SUMIFS(Saving_measures[Subsidy '[€']],Saving_measures[Measure],B6,Saving_measures[Cost type],"TYP",Saving_measures[Subsidy share '[%']],">0")*(IF(D6<=SUMIFS(Saving_measures[Subsidy share '[%']],Saving_measures[Measure],B6,Saving_measures[Cost type],"TYP",Saving_measures[Subsidy share '[%']],">0")-Tolerance,0,IF(D6>=SUMIFS(Saving_measures[Subsidy share '[%']],Saving_measures[Measure],B6,Saving_measures[Cost type],"TYP",Saving_measures[Subsidy share '[%']],">0")+Tolerance,1,(D6-(SUMIFS(Saving_measures[Subsidy share '[%']],Saving_measures[Measure],B6,Saving_measures[Cost type],"TYP",Saving_measures[Subsidy share '[%']],">0")-Tolerance))/(2*Tolerance))))+SUMIFS(Saving_measures[Subsidy '[€']],Saving_measures[Measure],B6,Saving_measures[Cost type],"MAX",Saving_measures[Subsidy share '[%']],">0")*(IF(D6<=SUMIFS(Saving_measures[Subsidy share '[%']],Saving_measures[Measure],B6,Saving_measures[Cost type],"MAX",Saving_measures[Subsidy share '[%']],">0")-Tolerance,0,IF(D6>=SUMIFS(Saving_measures[Subsidy share '[%']],Saving_measures[Measure],B6,Saving_measures[Cost type],"MAX",Saving_measures[Subsidy share '[%']],">0")+Tolerance,1,(D6-(SUMIFS(Saving_measures[Subsidy share '[%']],Saving_measures[Measure],B6,Saving_measures[Cost type],"MAX",Saving_measures[Subsidy share '[%']],">0")-Tolerance))/(2*Tolerance)))))/1000 -> 7683.46718 | F6: =(SUMIFS(Saving_measures[Investment costs '[€']],Saving_measures[Measure],B6,Saving_measures[Cost type],"MIN",Saving_measures[Subsidy share '[%']],">0")*(IF(D6<=SUMIFS(Saving_measures[Subsidy share '[%']],Saving_measures[Measure],B6,Saving_measures[Cost type],"MIN",Saving_measures[Subsidy share '[%']],">0")-Tolerance,0,IF(D6>=SUMIFS(Saving_measures[Subsidy share '[%']],Saving_measures[Measure],B6,Saving_measures[Cost type],"MIN",Saving_measures[Subsidy share '[%']],">0")+Tolerance,1,(D6-(SUMIFS(Saving_measures[Subsidy share '[%']],Saving_measures[Measure],B6,Saving_measures[Cost type],"MIN",Saving_measures[Subsidy share '[%']],">0")-Tolerance))/(2*Tolerance))))+SUMIFS(Saving_measures[Investment costs '[€']],Saving_measures[Measure],B6,Saving_measures[Cost type],"TYP",Saving_measures[Subsidy share '[%']],">0")*(IF(D6<=SUMIFS(Saving_measures[Subsidy share '[%']],Saving_measures[Measure],B6,Saving_measures[Cost type],"TYP",Saving_measures[Subsidy share '[%']],">0")-Tolerance,0,IF(D6>=SUMIFS(Saving_measures[Subsidy share '[%']],Saving_measures[Measure],B6,Saving_measures[Cost type],"TYP",Saving_measures[Subsidy share '[%']],">0")+Tolerance,1,(D6-(SUMIFS(Saving_measures[Subsidy share '[%']],Saving_measures[Measure],B6,Saving_measures[Cost type],"TYP",Saving_measures[Subsidy share '[%']],">0")-Tolerance))/(2*Tolerance))))+SUMIFS(Saving_measures[Investment costs '[€']],Saving_measures[Measure],B6,Saving_measures[Cost type],"MAX",Saving_measures[Subsidy share '[%']],">0")*(IF(D6<=SUMIFS(Saving_measures[Subsidy share '[%']],Saving_measures[Measure],B6,Saving_measures[Cost type],"MAX",Saving_measures[Subsidy share '[%']],">0")-Tolerance,0,IF(D6>=SUMIFS(Saving_measures[Subsidy share '[%']],Saving_measures[Measure],B6,Saving_measures[Cost type],"MAX",Saving_measures[Subsidy share '[%']],">0")+Tolerance,1,(D6-(SUMIFS(Saving_measures[Subsidy share '[%']],Saving_measures[Measure],B6,Saving_measures[Cost type],"MAX",Saving_measures[Subsidy share '[%']],">0")-Tolerance))/(2*Tolerance)))))/1000 -> 26892.13513 | G6: =(SUMIFS(Saving_measures[Energy saving potential '[TJ']],Saving_measures[Measure],B6,Saving_measures[Cost type],"MIN",Saving_measures[Subsidy share '[%']],">0")*(IF(D6<=SUMIFS(Saving_measures[Subsidy share '[%']],Saving_measures[Measure],B6,Saving_measures[Cost type],"MIN",Saving_measures[Subsidy share '[%']],">0")-Tolerance,0,IF(D6>=SUMIFS(Saving_measures[Subsidy share '[%']],Saving_measures[Measure],B6,Saving_measures[Cost type],"MIN",Saving_measures[Subsidy share '[%']],">0")+Tolerance,1,(D6-(SUMIFS(Saving_measures[Subsidy share '[%']],Saving_measures[Measure],B6,Saving_measures[Cost type],"MIN",Saving_measures[Subsidy share '[%']],">0")-Tolerance))/(2*Tolerance))))+SUMIFS(Saving_measures[Energy saving potential '[TJ']],Saving_measures[Measure],B6,Saving_measures[Cost type],"TYP",Saving_measures[Subsidy share '[%']],">0")*(IF(D6<=SUMIFS(Saving_measures[Subsidy share '[%']],Saving_measures[Measure],B6,Saving_measures[Cost type],"TYP",Saving_measures[Subsidy share '[%']],">0")-Tolerance,0,IF(D6>=SUMIFS(Saving_measures[Subsidy share '[%']],Saving_measures[Measure],B6,Saving_measures[Cost type],"TYP",Saving_measures[Subsidy share '[%']],">0")+Tolerance,1,(D6-(SUMIFS(Saving_measures[Subsidy share '[%']],Saving_measures[Measure],B6,Saving_measures[Cost type],"TYP",Saving_measures[Subsidy share '[%']],">0")-Tolerance))/(2*Tolerance))))+ SUMIFS(Saving_measures[Energy saving potential '[TJ']],Saving_measures[Measure],B6,Saving_measures[Cost type],"MAX",Saving_measures[Subsidy share '[%']],">0")*(IF(D6<=SUMIFS(Saving_measures[Subsidy share '[%']],Saving_measures[Measure],B6,Saving_measures[Cost type],"MAX",Saving_measures[Subsidy share '[%']],">0")-Tolerance,0,IF(D6>=SUMIFS(Saving_measures[Subsidy share '[%']],Saving_measures[Measure],B6,Saving_measures[Cost type],"MAX",Saving_measures[Subsidy share '[%']],">0")+Tolerance,1,(D6-(SUMIFS(Saving_measures[Subsidy share '[%']],Saving_measures[Measure],B6,Saving_measures[Cost type],"MAX",Saving_measures[Subsidy share '[%']],">0")-Tolerance))/(2*Tolerance)))))*0.7 -> 195.9284131 | H6: =(SUMIFS(Saving_measures[Drop of CO2 emissions '[t']],Saving_measures[Measure],B6,Saving_measures[Cost type],"MIN",Saving_measures[Subsidy share '[%']],">0")*(IF(D6<=SUMIFS(Saving_measures[Subsidy share '[%']],Saving_measures[Measure],B6,Saving_measures[Cost type],"MIN",Saving_measures[Subsidy share '[%']],">0")-Tolerance,0,IF(D6>=SUMIFS(Saving_measures[Subsidy share '[%']],Saving_measures[Measure],B6,Saving_measures[Cost type],"MIN",Saving_measures[Subsidy share '[%']],">0")+Tolerance,1,(D6-(SUMIFS(Saving_measures[Subsidy share '[%']],Saving_measures[Measure],B6,Saving_measures[Cost type],"MIN",Saving_measures[Subsidy share '[%']],">0")-Tolerance))/(2*Tolerance))))+SUMIFS(Saving_measures[Drop of CO2 emissions '[t']],Saving_measures[Measure],B6,Saving_measures[Cost type],"TYP",Saving_measures[Subsidy share '[%']],">0")*(IF(D6<=SUMIFS(Saving_measures[Subsidy share '[%']],Saving_measures[Measure],B6,Saving_measures[Cost type],"TYP",Saving_measures[Subsidy share '[%']],">0")-Tolerance,0,IF(D6>=SUMIFS(Saving_measures[Subsidy share '[%']],Saving_measures[Measure],B6,Saving_measures[Cost type],"TYP",Saving_measures[Subsidy share '[%']],">0")+Tolerance,1,(D6-(SUMIFS(Saving_measures[Subsidy share '[%']],Saving_measures[Measure],B6,Saving_measures[Cost type],"TYP",Saving_measures[Subsidy share '[%']],">0")-Tolerance))/(2*Tolerance))))+SUMIFS(Saving_measures[Drop of CO2 emissions '[t']],Saving_measures[Measure],B6,Saving_measures[Cost type],"MAX",Saving_measures[Subsidy share '[%']],">0")*(IF(D6<=SUMIFS(Saving_measures[Subsidy share '[%']],Saving_measures[Measure],B6,Saving_measures[Cost type],"MAX",Saving_measures[Subsidy share '[%']],">0")-Tolerance,0,IF(D6>=SUMIFS(Saving_measures[Subsidy share '[%']],Saving_measures[Measure],B6,Saving_measures[Cost type],"MAX",Saving_measures[Subsidy share '[%']],">0")+Tolerance,1,(D6-(SUMIFS(Saving_measures[Subsidy share '[%']],Saving_measures[Measure],B6,Saving_measures[Cost type],"MAX",Saving_measures[Subsidy share '[%']],">0")-Tolerance))/(2*Tolerance)))))*0.7 -> 47670.43249 | I6: =(SUMIFS(Saving_measures[Drop of CH4 emissions'[kg']],Saving_measures[Measure],B6,Saving_measures[Cost type],"MIN",Saving_measures[Subsidy share '[%']],">0")*(IF(D6<=SUMIFS(Saving_measures[Subsidy share '[%']],Saving_measures[Measure],B6,Saving_measures[Cost type],"MIN",Saving_measures[Subsidy share '[%']],">0")-Tolerance,0,IF(D6>=SUMIFS(Saving_measures[Subsidy share '[%']],Saving_measures[Measure],B6,Saving_measures[Cost type],"MIN",Saving_measures[Subsidy share '[%']],">0")+Tolerance,1,(D6-(SUMIFS(Saving_measures[Subsidy share '[%']],Saving_measures[Measure],B6,Saving_measures[Cost type],"MIN",Saving_measures[Subsidy share '[%']],">0")-Tolerance))/(2*Tolerance))))+SUMIFS(Saving_measures[Drop of CH4 emissions'[kg']],Saving_measures[Measure],B6,Saving_measures[Cost type],"TYP",Saving_measures[Subsidy share '[%']],">0")*(IF(D6<=SUMIFS(Saving_measures[Subsidy share '[%']],Saving_measures[Measure],B6,Saving_measures[Cost type],"TYP",Saving_measures[Subsidy share '[%']],">0")-Tolerance,0,IF(D6>=SUMIFS(Saving_measures[Subsidy share '[%']],Saving_measures[Measure],B6,Saving_measures[Cost type],"TYP",Saving_measures[Subsidy share '[%']],">0")+Tolerance,1,(D6-(SUMIFS(Saving_measures[Subsidy share '[%']],Saving_measures[Measure],B6,Saving_measures[Cost type],"TYP",Saving_measures[Subsidy share '[%']],">0")-Tolerance))/(2*Tolerance))))+SUMIFS(Saving_measures[Drop of CH4 emissions'[kg']],Saving_measures[Measure],B6,Saving_measures[Cost type],"MAX",Saving_measures[Subsidy share '[%']],">0")*(IF(D6<=SUMIFS(Saving_measures[Subsidy share '[%']],Saving_measures[Measure],B6,Saving_measures[Cost type],"MAX",Saving_measures[Subsidy share '[%']],">0")-Tolerance,0,IF(D6>=SUMIFS(Saving_measures[Subsidy share '[%']],Saving_measures[Measure],B6,Saving_measures[Cost type],"MAX",Saving_measures[Subsidy share '[%']],">0")+Tolerance,1,(D6-(SUMIFS(Saving_measures[Subsidy share '[%']],Saving_measures[Measure],B6,Saving_measures[Cost type],"MAX",Saving_measures[Subsidy share '[%']],">0")-Tolerance))/(2*Tolerance)))))*0.7 -> 509.2998057 | J6: =(SUMIFS(Saving_measures[Drop of N2O emissions '[kg']],Saving_measures[Measure],B6,Saving_measures[Cost type],"MIN",Saving_measures[Subsidy share '[%']],">0")*(IF(D6<=SUMIFS(Saving_measures[Subsidy share '[%']],Saving_measures[Measure],B6,Saving_measures[Cost type],"MIN",Saving_measures[Subsidy share '[%']],">0")-Tolerance,0,IF(D6>=SUMIFS(Saving_measures[Subsidy share '[%']],Saving_measures[Measure],B6,Saving_measures[Cost type],"MIN",Saving_measures[Subsidy share '[%']],">0")+Tolerance,1,(D6-(SUMIFS(Saving_measures[Subsidy share '[%']],Saving_measures[Measure],B6,Saving_measures[Cost type],"MIN",Saving_measures[Subsidy share '[%']],">0")-Tolerance))/(2*Tolerance))))+SUMIFS(Saving_measures[Drop of N2O emissions '[kg']],Saving_measures[Measure],B6,Saving_measures[Cost type],"TYP",Saving_measures[Subsidy share '[%']],">0")*(IF(D6<=SUMIFS(Saving_measures[Subsidy share '[%']],Saving_measures[Measure],B6,Saving_measures[Cost type],"TYP",Saving_measures[Subsidy share '[%']],">0")-Tolerance,0,IF(D6>=SUMIFS(Saving_measures[Subsidy share '[%']],Saving_measures[Measure],B6,Saving_measures[Cost type],"TYP",Saving_measures[Subsidy share '[%']],">0")+Tolerance,1,(D6-(SUMIFS(Saving_measures[Subsidy share '[%']],Saving_measures[Measure],B6,Saving_measures[Cost type],"TYP",Saving_measures[Subsidy share '[%']],">0")-Tolerance))/(2*Tolerance))))+SUMIFS(Saving_measures[Drop of N2O emissions '[kg']],Saving_measures[Measure],B6,Saving_measures[Cost type],"MAX",Saving_measures[Subsidy share '[%']],">0")*(IF(D6<=SUMIFS(Saving_measures[Subsidy share '[%']],Saving_measures[Measure],B6,Saving_measures[Cost type],"MAX",Saving_measures[Subsidy share '[%']],">0")-Tolerance,0,IF(D6>=SUMIFS(Saving_measures[Subsidy share '[%']],Saving_measures[Measure],B6,Saving_measures[Cost type],"MAX",Saving_measures[Subsidy share '[%']],">0")+Tolerance,1,(D6-(SUMIFS(Saving_measures[Subsidy share '[%']],Saving_measures[Measure],B6,Saving_measures[Cost type],"MAX",Saving_measures[Subsidy share '[%']],">0")-Tolerance))/(2*Tolerance)))))*0.7 -> 668.5070221 | K6: =(SUMIFS(Saving_measures[Drop of CO2eq emissions '[t']],Saving_measures[Measure],B6,Saving_measures[Cost type],"MIN",Saving_measures[Subsidy share '[%']],">0")*(IF(D6<=SUMIFS(Saving_measures[Subsidy share '[%']],Saving_measures[Measure],B6,Saving_measures[Cost type],"MIN",Saving_measures[Subsidy share '[%']],">0")-Tolerance,0,IF(D6>=SUMIFS(Saving_measures[Subsidy share '[%']],Saving_measures[Measure],B6,Saving_measures[Cost type],"MIN",Saving_measures[Subsidy share '[%']],">0")+Tolerance,1,(D6-(SUMIFS(Saving_measures[Subsidy share '[%']],Saving_measures[Measure],B6,Saving_measures[Cost type],"MIN",Saving_measures[Subsidy share '[%']],">0")-Tolerance))/(2*Tolerance))))+SUMIFS(Saving_measures[Drop of CO2eq emissions '[t']],Saving_measures[Measure],B6,Saving_measures[Cost type],"TYP",Saving_measures[Subsidy share '[%']],">0")*(IF(D6<=SUMIFS(Saving_measures[Subsidy share '[%']],Saving_measures[Measure],B6,Saving_measures[Cost type],"TYP",Saving_measures[Subsidy share '[%']],">0")-Tolerance,0,IF(D6>=SUMIFS(Saving_measures[Subsidy share '[%']],Saving_measures[Measure],B6,Saving_measures[Cost type],"TYP",Saving_measures[Subsidy share '[%']],">0")+Tolerance,1,(D6-(SUMIFS(Saving_measures[Subsidy share '[%']],Saving_measures[Measure],B6,Saving_measures[Cost type],"TYP",Saving_measures[Subsidy share '[%']],">0")-Tolerance))/(2*Tolerance))))+SUMIFS(Saving_measures[Drop of CO2eq emissions '[t']],Saving_measures[Measure],B6,Saving_measures[Cost type],"MAX",Saving_measures[Subsidy share '[%']],">0")*(IF(D6<=SUMIFS(Saving_measures[Subsidy share '[%']],Saving_measures[Measure],B6,Saving_measures[Cost type],"MAX",Saving_measures[Subsidy share '[%']],">0")-Tolerance,0,IF(D6>=SUMIFS(Saving_measures[Subsidy share '[%']],Saving_measures[Measure],B6,Saving_measures[Cost type],"MAX",Saving_measures[Subsidy share '[%']],">0")+Tolerance,1,(D6-(SUMIFS(Saving_measures[Subsidy share '[%']],Saving_measures[Measure],B6,Saving_measures[Cost type],"MAX",Saving_measures[Subsidy share '[%']],">0")-Tolerance))/(2*Tolerance)))))*0.7 -> 47882.38008 | L6: =SUMIFS(Saving_measures[Annual Cost Saved '[€/GJ.y']],Saving_measures[Measure],B6,Saving_measures[Cost type],"MIN",Saving_measures[Subsidy share '[%']],">0")*SUMIFS(Saving_measures[Energy saving potential '[TJ']],Saving_measures[Measure],B6,Saving_measures[Cost type],"MIN",Saving_measures[Subsidy share '[%']],">0")*(IF(D6<=SUMIFS(Saving_measures[Subsidy share '[%']],Saving_measures[Measure],B6,Saving_measures[Cost type],"MIN",Saving_measures[Subsidy share '[%']],">0")-Tolerance,0,IF(D6>=SUMIFS(Saving_measures[Subsidy share '[%']],Saving_measures[Measure],B6,Saving_measures[Cost type],"MIN",Saving_measures[Subsidy share '[%']],">0")+Tolerance,1,(D6-(SUMIFS(Saving_measures[Subsidy share '[%']],Saving_measures[Measure],B6,Saving_measures[Cost type],"MIN",Saving_measures[Subsidy share '[%']],">0")-Tolerance))/(2*Tolerance))))+SUMIFS(Saving_measures[Annual Cost Saved '[€/GJ.y']],Saving_measures[Measure],B6,Saving_measures[Cost type],"TYP",Saving_measures[Subsidy share '[%']],">0")*SUMIFS(Saving_measures[Energy saving potential '[TJ']],Saving_measures[Measure],B6,Saving_measures[Cost type],"TYP",Saving_measures[Subsidy share '[%']],">0")*(IF(D6<=SUMIFS(Saving_measures[Subsidy share '[%']],Saving_measures[Measure],B6,Saving_measures[Cost type],"TYP",Saving_measures[Subsidy share '[%']],">0")-Tolerance,0,IF(D6>=SUMIFS(Saving_measures[Subsidy share '[%']],Saving_measures[Measure],B6,Saving_measures[Cost type],"TYP",Saving_measures[Subsidy share '[%']],">0")+Tolerance,1,(D6-(SUMIFS(Saving_measures[Subsidy share '[%']],Saving_measures[Measure],B6,Saving_measures[Cost type],"TYP",Saving_measures[Subsidy share '[%']],">0")-Tolerance))/(2*Tolerance))))+SUMIFS(Saving_measures[Annual Cost Saved '[€/GJ.y']],Saving_measures[Measure],B6,Saving_measures[Cost type],"MAX",Saving_measures[Subsidy share '[%']],">0")*SUMIFS(Saving_measures[Energy saving potential '[TJ']],Saving_measures[Measure],B6,Saving_measures[Cost type],"MAX",Saving_measures[Subsidy share '[%']],">0")*(IF(D6<=SUMIFS(Saving_measures[Subsidy share '[%']],Saving_measures[Measure],B6,Saving_measures[Cost type],"MAX",Saving_measures[Subsidy share '[%']],">0")-Tolerance,0,IF(D6>=SUMIFS(Saving_measures[Subsidy share '[%']],Saving_measures[Measure],B6,Saving_measures[Cost type],"MAX",Saving_measures[Subsidy share '[%']],">0")+Tolerance,1,(D6-(SUMIFS(Saving_measures[Subsidy share '[%']],Saving_measures[Measure],B6,Saving_measures[Cost type],"MAX",Saving_measures[Subsidy share '[%']],">0")-Tolerance))/(2*Tolerance)))) -> 3841.73359 | P6: 0.2 | Q6: 0.15 | R6: 0.65 | S6: =(SUMIFS(Saving_measures[Lifetime '[y']],Saving_measures[Measure],B6,Saving_measures[Cost type],"MIN")) -> 8 | T6: Remplacement des eclairages LED80 par des LED110
A7: Mesure d'economie 7 | B7: Installation of solar thermal systems (for heat generation | C7: 0.01 | D7: 0 | E7: =(SUMIFS(Saving_measures[Subsidy '[€']],Saving_measures[Measure],B7,Saving_measures[Cost type],"MIN",Saving_measures[Subsidy share '[%']],">0")*(IF(D7<=SUMIFS(Saving_measures[Subsidy share '[%']],Saving_measures[Measure],B7,Saving_measures[Cost type],"MIN",Saving_measures[Subsidy share '[%']],">0")-Tolerance,0,IF(D7>=SUMIFS(Saving_measures[Subsidy share '[%']],Saving_measures[Measure],B7,Saving_measures[Cost type],"MIN",Saving_measures[Subsidy share '[%']],">0")+Tolerance,1,(D7-(SUMIFS(Saving_measures[Subsidy share '[%']],Saving_measures[Measure],B7,Saving_measures[Cost type],"MIN",Saving_measures[Subsidy share '[%']],">0")-Tolerance))/(2*Tolerance))))+SUMIFS(Saving_measures[Subsidy '[€']],Saving_measures[Measure],B7,Saving_measures[Cost type],"TYP",Saving_measures[Subsidy share '[%']],">0")*(IF(D7<=SUMIFS(Saving_measures[Subsidy share '[%']],Saving_measures[Measure],B7,Saving_measures[Cost type],"TYP",Saving_measures[Subsidy share '[%']],">0")-Tolerance,0,IF(D7>=SUMIFS(Saving_measures[Subsidy share '[%']],Saving_measures[Measure],B7,Saving_measures[Cost type],"TYP",Saving_measures[Subsidy share '[%']],">0")+Tolerance,1,(D7-(SUMIFS(Saving_measures[Subsidy share '[%']],Saving_measures[Measure],B7,Saving_measures[Cost type],"TYP",Saving_measures[Subsidy share '[%']],">0")-Tolerance))/(2*Tolerance))))+SUMIFS(Saving_measures[Subsidy '[€']],Saving_measures[Measure],B7,Saving_measures[Cost type],"MAX",Saving_measures[Subsidy share '[%']],">0")*(IF(D7<=SUMIFS(Saving_measures[Subsidy share '[%']],Saving_measures[Measure],B7,Saving_measures[Cost type],"MAX",Saving_measures[Subsidy share '[%']],">0")-Tolerance,0,IF(D7>=SUMIFS(Saving_measures[Subsidy share '[%']],Saving_measures[Measure],B7,Saving_measures[Cost type],"MAX",Saving_measures[Subsidy share '[%']],">0")+Tolerance,1,(D7-(SUMIFS(Saving_measures[Subsidy share '[%']],Saving_measures[Measure],B7,Saving_measures[Cost type],"MAX",Saving_measures[Subsidy share '[%']],">0")-Tolerance))/(2*Tolerance)))))/1000 -> 0 | F7: =(SUMIFS(Saving_measures[Investment costs '[€']],Saving_measures[Measure],B7,Saving_measures[Cost type],"MIN",Saving_measures[Subsidy share '[%']],">0")*(IF(D7<=SUMIFS(Saving_measures[Subsidy share '[%']],Saving_measures[Measure],B7,Saving_measures[Cost type],"MIN",Saving_measures[Subsidy share '[%']],">0")-Tolerance,0,IF(D7>=SUMIFS(Saving_measures[Subsidy share '[%']],Saving_measures[Measure],B7,Saving_measures[Cost type],"MIN",Saving_measures[Subsidy share '[%']],">0")+Tolerance,1,(D7-(SUMIFS(Saving_measures[Subsidy share '[%']],Saving_measures[Measure],B7,Saving_measures[Cost type],"MIN",Saving_measures[Subsidy share '[%']],">0")-Tolerance))/(2*Tolerance))))+SUMIFS(Saving_measures[Investment costs '[€']],Saving_measures[Measure],B7,Saving_measures[Cost type],"TYP",Saving_measures[Subsidy share '[%']],">0")*(IF(D7<=SUMIFS(Saving_measures[Subsidy share '[%']],Saving_measures[Measure],B7,Saving_measures[Cost type],"TYP",Saving_measures[Subsidy share '[%']],">0")-Tolerance,0,IF(D7>=SUMIFS(Saving_measures[Subsidy share '[%']],Saving_measures[Measure],B7,Saving_measures[Cost type],"TYP",Saving_measures[Subsidy share '[%']],">0")+Tolerance,1,(D7-(SUMIFS(Saving_measures[Subsidy share '[%']],Saving_measures[Measure],B7,Saving_measures[Cost type],"TYP",Saving_measures[Subsidy share '[%']],">0")-Tolerance))/(2*Tolerance))))+SUMIFS(Saving_measures[Investment costs '[€']],Saving_measures[Measure],B7,Saving_measures[Cost type],"MAX",Saving_measures[Subsidy share '[%']],">0")*(IF(D7<=SUMIFS(Saving_measures[Subsidy share '[%']],Saving_measures[Measure],B7,Saving_measures[Cost type],"MAX",Saving_measures[Subsidy share '[%']],">0")-Tolerance,0,IF(D7>=SUMIFS(Saving_measures[Subsidy share '[%']],Saving_measures[Measure],B7,Saving_measures[Cost type],"MAX",Saving_measures[Subsidy share '[%']],">0")+Tolerance,1,(D7-(SUMIFS(Saving_measures[Subsidy share '[%']],Saving_measures[Measure],B7,Saving_measures[Cost type],"MAX",Saving_measures[Subsidy share '[%']],">0")-Tolerance))/(2*Tolerance)))))/1000 -> 0 | G7: =(SUMIFS(Saving_measures[Energy saving potential '[TJ']],Saving_measures[Measure],B7,Saving_measures[Cost type],"MIN",Saving_measures[Subsidy share '[%']],">0")*(IF(D7<=SUMIFS(Saving_measures[Subsidy share '[%']],Saving_measures[Measure],B7,Saving_measures[Cost type],"MIN",Saving_measures[Subsidy share '[%']],">0")-Tolerance,0,IF(D7>=SUMIFS(Saving_measures[Subsidy share '[%']],Saving_measures[Measure],B7,Saving_measures[Cost type],"MIN",Saving_measures[Subsidy share '[%']],">0")+Tolerance,1,(D7-(SUMIFS(Saving_measures[Subsidy share '[%']],Saving_measures[Measure],B7,Saving_measures[Cost type],"MIN",Saving_measures[Subsidy share '[%']],">0")-Tolerance))/(2*Tolerance))))+SUMIFS(Saving_measures[Energy saving potential '[TJ']],Saving_measures[Measure],B7,Saving_measures[Cost type],"TYP",Saving_measures[Subsidy share '[%']],">0")*(IF(D7<=SUMIFS(Saving_measures[Subsidy share '[%']],Saving_measures[Measure],B7,Saving_measures[Cost type],"TYP",Saving_measures[Subsidy share '[%']],">0")-Tolerance,0,IF(D7>=SUMIFS(Saving_measures[Subsidy share '[%']],Saving_measures[Measure],B7,Saving_measures[Cost type],"TYP",Saving_measures[Subsidy share '[%']],">0")+Tolerance,1,(D7-(SUMIFS(Saving_measures[Subsidy share '[%']],Saving_measures[Measure],B7,Saving_measures[Cost type],"TYP",Saving_measures[Subsidy share '[%']],">0")-Tolerance))/(2*Tolerance))))+ SUMIFS(Saving_measures[Energy saving potential '[TJ']],Saving_measures[Measure],B7,Saving_measures[Cost type],"MAX",Saving_measures[Subsidy share '[%']],">0")*(IF(D7<=SUMIFS(Saving_measures[Subsidy share '[%']],Saving_measures[Measure],B7,Saving_measures[Cost type],"MAX",Saving_measures[Subsidy share '[%']],">0")-Tolerance,0,IF(D7>=SUMIFS(Saving_measures[Subsidy share '[%']],Saving_measures[Measure],B7,Saving_measures[Cost type],"MAX",Saving_measures[Subsidy share '[%']],">0")+Tolerance,1,(D7-(SUMIFS(Saving_measures[Subsidy share '[%']],Saving_measures[Measure],B7,Saving_measures[Cost type],"MAX",Saving_measures[Subsidy share '[%']],">0")-Tolerance))/(2*Tolerance)))))*0.7 -> 0 | H7: =(SUMIFS(Saving_measures[Drop of CO2 emissions '[t']],Saving_measures[Measure],B7,Saving_measures[Cost type],"MIN",Saving_measures[Subsidy share '[%']],">0")*(IF(D7<=SUMIFS(Saving_measures[Subsidy share '[%']],Saving_measures[Measure],B7,Saving_measures[Cost type],"MIN",Saving_measures[Subsidy share '[%']],">0")-Tolerance,0,IF(D7>=SUMIFS(Saving_measures[Subsidy share '[%']],Saving_measures[Measure],B7,Saving_measures[Cost type],"MIN",Saving_measures[Subsidy share '[%']],">0")+Tolerance,1,(D7-(SUMIFS(Saving_measures[Subsidy share '[%']],Saving_measures[Measure],B7,Saving_measures[Cost type],"MIN",Saving_measures[Subsidy share '[%']],">0")-Tolerance))/(2*Tolerance))))+SUMIFS(Saving_measures[Drop of CO2 emissions '[t']],Saving_measures[Measure],B7,Saving_measures[Cost type],"TYP",Saving_measures[Subsidy share '[%']],">0")*(IF(D7<=SUMIFS(Saving_measures[Subsidy share '[%']],Saving_measures[Measure],B7,Saving_measures[Cost type],"TYP",Saving_measures[Subsidy share '[%']],">0")-Tolerance,0,IF(D7>=SUMIFS(Saving_measures[Subsidy share '[%']],Saving_measures[Measure],B7,Saving_measures[Cost type],"TYP",Saving_measures[Subsidy share '[%']],">0")+Tolerance,1,(D7-(SUMIFS(Saving_measures[Subsidy share '[%']],Saving_measures[Measure],B7,Saving_measures[Cost type],"TYP",Saving_measures[Subsidy share '[%']],">0")-Tolerance))/(2*Tolerance))))+SUMIFS(Saving_measures[Drop of CO2 emissions '[t']],Saving_measures[Measure],B7,Saving_measures[Cost type],"MAX",Saving_measures[Subsidy share '[%']],">0")*(IF(D7<=SUMIFS(Saving_measures[Subsidy share '[%']],Saving_measures[Measure],B7,Saving_measures[Cost type],"MAX",Saving_measures[Subsidy share '[%']],">0")-Tolerance,0,IF(D7>=SUMIFS(Saving_measures[Subsidy share '[%']],Saving_measures[Measure],B7,Saving_measures[Cost type],"MAX",Saving_measures[Subsidy share '[%']],">0")+Tolerance,1,(D7-(SUMIFS(Saving_measures[Subsidy share '[%']],Saving_measures[Measure],B7,Saving_measures[Cost type],"MAX",Saving_measures[Subsidy share '[%']],">0")-Tolerance))/(2*Tolerance)))))*0.7 -> 0 | I7: =(SUMIFS(Saving_measures[Drop of CH4 emissions'[kg']],Saving_measures[Measure],B7,Saving_measures[Cost type],"MIN",Saving_measures[Subsidy share '[%']],">0")*(IF(D7<=SUMIFS(Saving_measures[Subsidy share '[%']],Saving_measures[Measure],B7,Saving_measures[Cost type],"MIN",Saving_measures[Subsidy share '[%']],">0")-Tolerance,0,IF(D7>=SUMIFS(Saving_measures[Subsidy share '[%']],Saving_measures[Measure],B7,Saving_measures[Cost type],"MIN",Saving_measures[Subsidy share '[%']],">0")+Tolerance,1,(D7-(SUMIFS(Saving_measures[Subsidy share '[%']],Saving_measures[Measure],B7,Saving_measures[Cost type],"MIN",Saving_measures[Subsidy share '[%']],">0")-Tolerance))/(2*Tolerance))))+SUMIFS(Saving_measures[Drop of CH4 emissions'[kg']],Saving_measures[Measure],B7,Saving_measures[Cost type],"TYP",Saving_measures[Subsidy share '[%']],">0")*(IF(D7<=SUMIFS(Saving_measures[Subsidy share '[%']],Saving_measures[Measure],B7,Saving_measures[Cost type],"TYP",Saving_measures[Subsidy share '[%']],">0")-Tolerance,0,IF(D7>=SUMIFS(Saving_measures[Subsidy share '[%']],Saving_measures[Measure],B7,Saving_measures[Cost type],"TYP",Saving_measures[Subsidy share '[%']],">0")+Tolerance,1,(D7-(SUMIFS(Saving_measures[Subsidy share '[%']],Saving_measures[Measure],B7,Saving_measures[Cost type],"TYP",Saving_measures[Subsidy share '[%']],">0")-Tolerance))/(2*Tolerance))))+SUMIFS(Saving_measures[Drop of CH4 emissions'[kg']],Saving_measures[Measure],B7,Saving_measures[Cost type],"MAX",Saving_measures[Subsidy share '[%']],">0")*(IF(D7<=SUMIFS(Saving_measures[Subsidy share '[%']],Saving_measures[Measure],B7,Saving_measures[Cost type],"MAX",Saving_measures[Subsidy share '[%']],">0")-Tolerance,0,IF(D7>=SUMIFS(Saving_measures[Subsidy share '[%']],Saving_measures[Measure],B7,Saving_measures[Cost type],"MAX",Saving_measures[Subsidy share '[%']],">0")+Tolerance,1,(D7-(SUMIFS(Saving_measures[Subsidy share '[%']],Saving_measures[Measure],B7,Saving_measures[Cost type],"MAX",Saving_measures[Subsidy share '[%']],">0")-Tolerance))/(2*Tolerance)))))*0.7 -> 0 | J7: =(SUMIFS(Saving_measures[Drop of N2O emissions '[kg']],Saving_measures[Measure],B7,Saving_measures[Cost type],"MIN",Saving_measures[Subsidy share '[%']],">0")*(IF(D7<=SUMIFS(Saving_measures[Subsidy share '[%']],Saving_measures[Measure],B7,Saving_measures[Cost type],"MIN",Saving_measures[Subsidy share '[%']],">0")-Tolerance,0,IF(D7>=SUMIFS(Saving_measures[Subsidy share '[%']],Saving_measures[Measure],B7,Saving_measures[Cost type],"MIN",Saving_measures[Subsidy share '[%']],">0")+Tolerance,1,(D7-(SUMIFS(Saving_measures[Subsidy share '[%']],Saving_measures[Measure],B7,Saving_measures[Cost type],"MIN",Saving_measures[Subsidy share '[%']],">0")-Tolerance))/(2*Tolerance))))+SUMIFS(Saving_measures[Drop of N2O emissions '[kg']],Saving_measures[Measure],B7,Saving_measures[Cost type],"TYP",Saving_measures[Subsidy share '[%']],">0")*(IF(D7<=SUMIFS(Saving_measures[Subsidy share '[%']],Saving_measures[Measure],B7,Saving_measures[Cost type],"TYP",Saving_measures[Subsidy share '[%']],">0")-Tolerance,0,IF(D7>=SUMIFS(Saving_measures[Subsidy share '[%']],Saving_measures[Measure],B7,Saving_measures[Cost type],"TYP",Saving_measures[Subsidy share '[%']],">0")+Tolerance,1,(D7-(SUMIFS(Saving_measures[Subsidy share '[%']],Saving_measures[Measure],B7,Saving_measures[Cost type],"TYP",Saving_measures[Subsidy share '[%']],">0")-Tolerance))/(2*Tolerance))))+SUMIFS(Saving_measures[Drop of N2O emissions '[kg']],Saving_measures[Measure],B7,Saving_measures[Cost type],"MAX",Saving_measures[Subsidy share '[%']],">0")*(IF(D7<=SUMIFS(Saving_measures[Subsidy share '[%']],Saving_measures[Measure],B7,Saving_measures[Cost type],"MAX",Saving_measures[Subsidy share '[%']],">0")-Tolerance,0,IF(D7>=SUMIFS(Saving_measures[Subsidy share '[%']],Saving_measures[Measure],B7,Saving_measures[Cost type],"MAX",Saving_measures[Subsidy share '[%']],">0")+Tolerance,1,(D7-(SUMIFS(Saving_measures[Subsidy share '[%']],Saving_measures[Measure],B7,Saving_measures[Cost type],"MAX",Saving_measures[Subsidy share '[%']],">0")-Tolerance))/(2*Tolerance)))))*0.7 -> 0 | K7: =(SUMIFS(Saving_measures[Drop of CO2eq emissions '[t']],Saving_measures[Measure],B7,Saving_measures[Cost type],"MIN",Saving_measures[Subsidy share '[%']],">0")*(IF(D7<=SUMIFS(Saving_measures[Subsidy share '[%']],Saving_measures[Measure],B7,Saving_measures[Cost type],"MIN",Saving_measures[Subsidy share '[%']],">0")-Tolerance,0,IF(D7>=SUMIFS(Saving_measures[Subsidy share '[%']],Saving_measures[Measure],B7,Saving_measures[Cost type],"MIN",Saving_measures[Subsidy share '[%']],">0")+Tolerance,1,(D7-(SUMIFS(Saving_measures[Subsidy share '[%']],Saving_measures[Measure],B7,Saving_measures[Cost type],"MIN",Saving_measures[Subsidy share '[%']],">0")-Tolerance))/(2*Tolerance))))+SUMIFS(Saving_measures[Drop of CO2eq emissions '[t']],Saving_measures[Measure],B7,Saving_measures[Cost type],"TYP",Saving_measures[Subsidy share '[%']],">0")*(IF(D7<=SUMIFS(Saving_measures[Subsidy share '[%']],Saving_measures[Measure],B7,Saving_measures[Cost type],"TYP",Saving_measures[Subsidy share '[%']],">0")-Tolerance,0,IF(D7>=SUMIFS(Saving_measures[Subsidy share '[%']],Saving_measures[Measure],B7,Saving_measures[Cost type],"TYP",Saving_measures[Subsidy share '[%']],">0")+Tolerance,1,(D7-(SUMIFS(Saving_measures[Subsidy share '[%']],Saving_measures[Measure],B7,Saving_measures[Cost type],"TYP",Saving_measures[Subsidy share '[%']],">0")-Tolerance))/(2*Tolerance))))+SUMIFS(Saving_measures[Drop of CO2eq emissions '[t']],Saving_measures[Measure],B7,Saving_measures[Cost type],"MAX",Saving_measures[Subsidy share '[%']],">0")*(IF(D7<=SUMIFS(Saving_measures[Subsidy share '[%']],Saving_measures[Measure],B7,Saving_measures[Cost type],"MAX",Saving_measures[Subsidy share '[%']],">0")-Tolerance,0,IF(D7>=SUMIFS(Saving_measures[Subsidy share '[%']],Saving_measures[Measure],B7,Saving_measures[Cost type],"MAX",Saving_measures[Subsidy share '[%']],">0")+Tolerance,1,(D7-(SUMIFS(Saving_measures[Subsidy share '[%']],Saving_measures[Measure],B7,Saving_measures[Cost type],"MAX",Saving_measures[Subsidy share '[%']],">0")-Tolerance))/(2*Tolerance)))))*0.7 -> 0 | L7: =SUMIFS(Saving_measures[Annual Cost Saved '[€/GJ.y']],Saving_measures[Measure],B7,Saving_measures[Cost type],"MIN",Saving_measures[Subsidy share '[%']],">0")*SUMIFS(Saving_measures[Energy saving potential '[TJ']],Saving_measures[Measure],B7,Saving_measures[Cost type],"MIN",Saving_measures[Subsidy share '[%']],">0")*(IF(D7<=SUMIFS(Saving_measures[Subsidy share '[%']],Saving_measures[Measure],B7,Saving_measures[Cost type],"MIN",Saving_measures[Subsidy share '[%']],">0")-Tolerance,0,IF(D7>=SUMIFS(Saving_measures[Subsidy share '[%']],Saving_measures[Measure],B7,Saving_measures[Cost type],"MIN",Saving_measures[Subsidy share '[%']],">0")+Tolerance,1,(D7-(SUMIFS(Saving_measures[Subsidy share '[%']],Saving_measures[Measure],B7,Saving_measures[Cost type],"MIN",Saving_measures[Subsidy share '[%']],">0")-Tolerance))/(2*Tolerance))))+SUMIFS(Saving_measures[Annual Cost Saved '[€/GJ.y']],Saving_measures[Measure],B7,Saving_measures[Cost type],"TYP",Saving_measures[Subsidy share '[%']],">0")*SUMIFS(Saving_measures[Energy saving potential '[TJ']],Saving_measures[Measure],B7,Saving_measures[Cost type],"TYP",Saving_measures[Subsidy share '[%']],">0")*(IF(D7<=SUMIFS(Saving_measures[Subsidy share '[%']],Saving_measures[Measure],B7,Saving_measures[Cost type],"TYP",Saving_measures[Subsidy share '[%']],">0")-Tolerance,0,IF(D7>=SUMIFS(Saving_measures[Subsidy share '[%']],Saving_measures[Measure],B7,Saving_measures[Cost type],"TYP",Saving_measures[Subsidy share '[%']],">0")+Tolerance,1,(D7-(SUMIFS(Saving_measures[Subsidy share '[%']],Saving_measures[Measure],B7,Saving_measures[Cost type],"TYP",Saving_measures[Subsidy share '[%']],">0")-Tolerance))/(2*Tolerance))))+SUMIFS(Saving_measures[Annual Cost Saved '[€/GJ.y']],Saving_measures[Measure],B7,Saving_measures[Cost type],"MAX",Saving_measures[Subsidy share '[%']],">0")*SUMIFS(Saving_measures[Energy saving potential '[TJ']],Saving_measures[Measure],B7,Saving_measures[Cost type],"MAX",Saving_measures[Subsidy share '[%']],">0")*(IF(D7<=SUMIFS(Saving_measures[Subsidy share '[%']],Saving_measures[Measure],B7,Saving_measures[Cost type],"MAX",Saving_measures[Subsidy share '[%']],">0")-Tolerance,0,IF(D7>=SUMIFS(Saving_measures[Subsidy share '[%']],Saving_measures[Measure],B7,Saving_measures[Cost type],"MAX",Saving_measures[Subsidy share '[%']],">0")+Tolerance,1,(D7-(SUMIFS(Saving_measures[Subsidy share '[%']],Saving_measures[Measure],B7,Saving_measures[Cost type],"MAX",Saving_measures[Subsidy share '[%']],">0")-Tolerance))/(2*Tolerance)))) -> 0 | P7: 0.89 | Q7: 0 | R7: 0.11 | S7: =(SUMIFS(Saving_measures[Lifetime '[y']],Saving_measures[Measure],B7,Saving_measures[Cost type],"MIN")) -> 0 | T7: Installation de systeme solaire thermique (generation de chaleur)

Sheet Lists (hidden)
A1: Energy_saving_measures[List of energy saving measures]
A3: List of energy saving measures | C3: Saved energy carriers | E3: NIR sectors for energy savings
A4: Buildings insulation | C4: All energy carriers | E4: Energy
A5: Contol of circulation pumps | C5: Coal | E5: Industry
A6: Decrease of losses in heat distribution | C6: Electricity
A7: Energy management | C7: Fuels and heat
A8: Change of technological processes | C8: Fuels only
A9: Installation flue gas pre-heaters to boilers | C9: Gaseous biofuels
A10: Installation of cogeneration units | C10: Heat
A11: Installation of frequency inventors | C11: Liquid biofuels
A12: Installation of heat pumps | C12: Natural gas
A13: Installation of photovoltaic systems (for electricity generation) | C13: RES except biomass
A14: Installation of solar thermal systems (for heat generation) | C14: Solid biofuels
A15: Installation/replacement of compressors
A16: Replacement of coal boiler with new coal boiler
A17: Replacement of coal boilers with gas boilers
A18: Replacement of existing lighting with LED80
A19: Replacement of lighting LED80 with LED110
A20: Thermal insulation of technologies
A21: Transformers replacement
A22: Waste heat utilisation
